Council Name,Date,TransNo,Amount � (Excl VAT),Supplier name,Supplier Category,Expense Area,Expense Type,Expense Code
London Borough of Sutton,05/05/2023,20049735,"2,000.00",REDACTED - PERSONAL DATA,SUNDRY SUPPLIER - HOUSING,Environment Housing and Neighbourhoods,PSL Payments To Landlords,A22031
London Borough of Sutton,16/05/2023,50355800,856.44,A R G Europe Limited,CONSTRUCTION INDUSTRY,HRA,Payments to Contractors,C14000
London Borough of Sutton,22/05/2023,50355801,"1,073.90",A R G Europe Limited,CONSTRUCTION INDUSTRY,HRA,Payments to Contractors,C14000
London Borough of Sutton,19/05/2023,50355570,"9,776.16",A Step Beyond Ltd,SOCIAL SERVICES - OTHER,Peoples Services,Supported Living,A56088
London Borough of Sutton,19/05/2023,50355570,"3,666.06",A Step Beyond Ltd,SOCIAL SERVICES - OTHER,Peoples Services,Supported Living,A56088
London Borough of Sutton,19/05/2023,50355570,643.29,A Step Beyond Ltd,SOCIAL SERVICES - OTHER,Peoples Services,Supported Living,A56088
London Borough of Sutton,19/05/2023,50355570,960.16,A Step Beyond Ltd,SOCIAL SERVICES - OTHER,Peoples Services,Supported Living,A56088
London Borough of Sutton,03/04/2023,50351111,"29,100.00",A Wilderness Way Ltd,CHILDREN'S SERVICES - FOSTERING & ADOPTION SERVICES,Peoples Services,Residential Care-Children,A56115
London Borough of Sutton,12/05/2023,50354192,"3,848.24",Abbey Care Centre,SOCIAL SERVICES RESIDENTIAL,Peoples Services,Nursing Care Short Term,A56026
London Borough of Sutton,12/05/2023,50354192,-750.40,Abbey Care Centre,SOCIAL SERVICES RESIDENTIAL,Peoples Services,Nursing Care - 3rd party top up payment,A56023
London Borough of Sutton,12/05/2023,50354231,"-2,306.72",Abbey Care Centre,SOCIAL SERVICES RESIDENTIAL,Peoples Services,Nursing Care - Ext Provider,A56025
London Borough of Sutton,12/05/2023,50354231,508.03,Abbey Care Centre,SOCIAL SERVICES RESIDENTIAL,Peoples Services,Nursing Care - 3rd party top up payment,A56023
London Borough of Sutton,12/05/2023,50354322,"6,436.76",Abbey Care Centre,SOCIAL SERVICES RESIDENTIAL,Peoples Services,Nursing Care - Ext Provider,A56025
London Borough of Sutton,12/05/2023,50354322,"-1,381.03",Abbey Care Centre,SOCIAL SERVICES RESIDENTIAL,Peoples Services,Nursing Care - 3rd party top up payment,A56023
London Borough of Sutton,12/05/2023,50354398,"4,237.77",Abbey Care Centre,SOCIAL SERVICES RESIDENTIAL,Peoples Services,Nursing Care - Ext Provider,A56025
London Borough of Sutton,12/05/2023,50354398,-952.23,Abbey Care Centre,SOCIAL SERVICES RESIDENTIAL,Peoples Services,Nursing Care - 3rd party top up payment,A56023
London Borough of Sutton,12/05/2023,50354502,"3,848.24",Abbey Care Centre,SOCIAL SERVICES RESIDENTIAL,Peoples Services,Nursing Care Short Term,A56026
London Borough of Sutton,12/05/2023,50354502,-750.40,Abbey Care Centre,SOCIAL SERVICES RESIDENTIAL,Peoples Services,Nursing Care - 3rd party top up payment,A56023
London Borough of Sutton,12/05/2023,50354502,"-1,492.80",Abbey Care Centre,SOCIAL SERVICES RESIDENTIAL,Peoples Services,Nursing Care - 3rd party top up payment,A56023
London Borough of Sutton,01/05/2023,50349369,900.00,ABC Pre-School Beddington LLP,ACADEMIC INSTNS - OTHER,Peoples Services,SEND Inclusion funding,A60038
London Borough of Sutton,11/05/2023,50350622,"4,952.64",ABC Pre-School Beddington LLP,ACADEMIC INSTNS - OTHER,Peoples Services,Payment - Nursery Funding,A51056
London Borough of Sutton,11/05/2023,50350755,912.60,ABC Pre-School Beddington LLP,ACADEMIC INSTNS - OTHER,Peoples Services,Payment - Nursery Funding,A51056
London Borough of Sutton,01/02/2023,20048556,982.50,Abiding Ltd,CHILDREN'S SERVICES - FOSTERING & ADOPTION SERVICES,Peoples Services,Miscellaneous Expenses,A49000
London Borough of Sutton,01/05/2023,20048451,"6,794.87",Absolute Care Services Ltd,SOCIAL SERVICES DAY CARE,Peoples Services,Homecare Core Services,A56020
London Borough of Sutton,01/05/2023,20048452,"5,715.81",Absolute Care Services Ltd,SOCIAL SERVICES DAY CARE,Peoples Services,Homecare Core Services,A56020
London Borough of Sutton,01/05/2023,20048456,"5,926.51",Absolute Care Services Ltd,SOCIAL SERVICES DAY CARE,Peoples Services,Homecare Core Services,A56020
London Borough of Sutton,08/05/2023,20048853,"6,794.87",Absolute Care Services Ltd,SOCIAL SERVICES DAY CARE,Peoples Services,Homecare Core Services,A56020
London Borough of Sutton,08/05/2023,20048854,"5,926.51",Absolute Care Services Ltd,SOCIAL SERVICES DAY CARE,Peoples Services,Homecare Core Services,A56020
London Borough of Sutton,08/05/2023,20048855,"5,715.81",Absolute Care Services Ltd,SOCIAL SERVICES DAY CARE,Peoples Services,Homecare Core Services,A56020
London Borough of Sutton,30/04/2023,50351699,16.08,Absolute Care Services Ltd,SOCIAL SERVICES DAY CARE,Peoples Services,Home Care Services,A56019
London Borough of Sutton,30/04/2023,50351699,506.52,Absolute Care Services Ltd,SOCIAL SERVICES DAY CARE,Peoples Services,Home Care Services,A56019
London Borough of Sutton,30/04/2023,50351709,522.60,Absolute Care Services Ltd,SOCIAL SERVICES DAY CARE,Peoples Services,Home Care Services,A56019
London Borough of Sutton,30/04/2023,50351781,620.62,Absolute Care Services Ltd,SOCIAL SERVICES DAY CARE,Peoples Services,Home Care Services,A56019
London Borough of Sutton,30/04/2023,50351797,896.56,Absolute Care Services Ltd,SOCIAL SERVICES DAY CARE,Peoples Services,Home Care Services,A56019
London Borough of Sutton,30/04/2023,50351797,118.20,Absolute Care Services Ltd,SOCIAL SERVICES DAY CARE,Peoples Services,Home Care Services,A56019
London Borough of Sutton,30/04/2023,50351805,772.61,Absolute Care Services Ltd,SOCIAL SERVICES DAY CARE,Peoples Services,Home Care Services,A56019
London Borough of Sutton,30/04/2023,50351805,45.01,Absolute Care Services Ltd,SOCIAL SERVICES DAY CARE,Peoples Services,Home Care Services,A56019
London Borough of Sutton,30/04/2023,50351810,689.50,Absolute Care Services Ltd,SOCIAL SERVICES DAY CARE,Peoples Services,Home Care Services,A56019
London Borough of Sutton,07/05/2023,50353238,522.60,Absolute Care Services Ltd,SOCIAL SERVICES DAY CARE,Peoples Services,Home Care Services,A56019
London Borough of Sutton,07/05/2023,50353370,620.62,Absolute Care Services Ltd,SOCIAL SERVICES DAY CARE,Peoples Services,Home Care Services,A56019
London Borough of Sutton,07/05/2023,50353391,118.20,Absolute Care Services Ltd,SOCIAL SERVICES DAY CARE,Peoples Services,Home Care Services,A56019
London Borough of Sutton,07/05/2023,50353391,896.56,Absolute Care Services Ltd,SOCIAL SERVICES DAY CARE,Peoples Services,Home Care Services,A56019
London Borough of Sutton,07/05/2023,50353401,45.01,Absolute Care Services Ltd,SOCIAL SERVICES DAY CARE,Peoples Services,Home Care Services,A56019
London Borough of Sutton,07/05/2023,50353401,772.61,Absolute Care Services Ltd,SOCIAL SERVICES DAY CARE,Peoples Services,Home Care Services,A56019
London Borough of Sutton,07/05/2023,50353406,684.58,Absolute Care Services Ltd,SOCIAL SERVICES DAY CARE,Peoples Services,Home Care Services,A56019
London Borough of Sutton,07/05/2023,50353407,16.08,Absolute Care Services Ltd,SOCIAL SERVICES DAY CARE,Peoples Services,Home Care Services,A56019
London Borough of Sutton,07/05/2023,50353407,506.52,Absolute Care Services Ltd,SOCIAL SERVICES DAY CARE,Peoples Services,Home Care Services,A56019
London Borough of Sutton,14/05/2023,50354874,522.60,Absolute Care Services Ltd,SOCIAL SERVICES DAY CARE,Peoples Services,Home Care Services,A56019
London Borough of Sutton,14/05/2023,50354881,16.08,Absolute Care Services Ltd,SOCIAL SERVICES DAY CARE,Peoples Services,Home Care Services,A56019
London Borough of Sutton,14/05/2023,50354881,506.52,Absolute Care Services Ltd,SOCIAL SERVICES DAY CARE,Peoples Services,Home Care Services,A56019
London Borough of Sutton,14/05/2023,50354949,620.62,Absolute Care Services Ltd,SOCIAL SERVICES DAY CARE,Peoples Services,Home Care Services,A56019
London Borough of Sutton,14/05/2023,50354961,118.20,Absolute Care Services Ltd,SOCIAL SERVICES DAY CARE,Peoples Services,Home Care Services,A56019
London Borough of Sutton,14/05/2023,50354961,896.56,Absolute Care Services Ltd,SOCIAL SERVICES DAY CARE,Peoples Services,Home Care Services,A56019
London Borough of Sutton,14/05/2023,50354973,45.01,Absolute Care Services Ltd,SOCIAL SERVICES DAY CARE,Peoples Services,Home Care Services,A56019
London Borough of Sutton,14/05/2023,50354973,772.61,Absolute Care Services Ltd,SOCIAL SERVICES DAY CARE,Peoples Services,Home Care Services,A56019
London Borough of Sutton,14/05/2023,50354980,689.50,Absolute Care Services Ltd,SOCIAL SERVICES DAY CARE,Peoples Services,Home Care Services,A56019
London Borough of Sutton,24/05/2023,50359449,494.65,Absolute Care Services Ltd,SOCIAL SERVICES DAY CARE,Peoples Services,Home Care Services,A56019
London Borough of Sutton,24/05/2023,50359449,124.43,Absolute Care Services Ltd,SOCIAL SERVICES DAY CARE,Peoples Services,Home Care Services,A56019
London Borough of Sutton,24/05/2023,50359449,88.44,Absolute Care Services Ltd,SOCIAL SERVICES DAY CARE,Peoples Services,Home Care Services,A56019
London Borough of Sutton,03/05/2023,20048628,"196,264.26",Access UK Limited  ,TAXI AND COACH HIRE,Peoples Services,Childrens Social Care Transport,A32009
London Borough of Sutton,10/05/2023,20049069,"188,787.59",Access UK Limited  ,TAXI AND COACH HIRE,Peoples Services,Childrens Social Care Transport,A32009
London Borough of Sutton,17/05/2023,20049642,"185,672.55",Access UK Limited  ,TAXI AND COACH HIRE,Peoples Services,Childrens Social Care Transport,A32009
London Borough of Sutton,24/05/2023,20050327,"239,601.56",Access UK Limited  ,TAXI AND COACH HIRE,Peoples Services,Childrens Social Care Transport,A32009
London Borough of Sutton,28/04/2023,50349790,"5,236.07",Accomplish Group Ltd,SOCIAL SERVICES RESIDENTIAL,Peoples Services,Supported Living,A56088
London Borough of Sutton,28/04/2023,50349799,"3,080.00",Accomplish Group Ltd,SOCIAL SERVICES RESIDENTIAL,Peoples Services,Supported Living,A56088
London Borough of Sutton,28/04/2023,50349800,"4,671.40",Accomplish Group Ltd,SOCIAL SERVICES RESIDENTIAL,Peoples Services,Supported Living,A56088
London Borough of Sutton,26/05/2023,50359659,"3,080.00",Accomplish Group Ltd,SOCIAL SERVICES RESIDENTIAL,Peoples Services,Supported Living,A56088
London Borough of Sutton,26/05/2023,50359784,"4,671.40",Accomplish Group Ltd,SOCIAL SERVICES RESIDENTIAL,Peoples Services,Supported Living,A56088
London Borough of Sutton,12/05/2023,50353967,"5,100.00",Achieve Together Limited,SOCIAL SERVICES RESIDENTIAL,Peoples Services,Residential Care - Ext Provider,A56114
London Borough of Sutton,12/05/2023,50354041,-511.80,Achieve Together Limited,SOCIAL SERVICES RESIDENTIAL,Peoples Services,Residential Care - Client Cont ( Net Paymt ),A56113
London Borough of Sutton,12/05/2023,50354041,"4,682.44",Achieve Together Limited,SOCIAL SERVICES RESIDENTIAL,Peoples Services,Residential Care - Ext Provider,A56114
London Borough of Sutton,12/05/2023,50354064,-438.80,Achieve Together Limited,SOCIAL SERVICES RESIDENTIAL,Peoples Services,Residential Care - Client Cont ( Net Paymt ),A56113
London Borough of Sutton,12/05/2023,50354064,"6,845.04",Achieve Together Limited,SOCIAL SERVICES RESIDENTIAL,Peoples Services,Residential Care - Ext Provider,A56114
London Borough of Sutton,12/05/2023,50354101,"8,103.64",Achieve Together Limited,SOCIAL SERVICES RESIDENTIAL,Peoples Services,Residential Care - Ext Provider,A56114
London Borough of Sutton,12/05/2023,50354101,-402.80,Achieve Together Limited,SOCIAL SERVICES RESIDENTIAL,Peoples Services,Residential Care - Client Cont ( Net Paymt ),A56113
London Borough of Sutton,12/05/2023,50354408,-471.80,Achieve Together Limited,SOCIAL SERVICES RESIDENTIAL,Peoples Services,Residential Care - Client Cont ( Net Paymt ),A56113
London Borough of Sutton,12/05/2023,50354408,390.00,Achieve Together Limited,SOCIAL SERVICES RESIDENTIAL,Peoples Services,One to One Care,A56108
London Borough of Sutton,12/05/2023,50354408,"4,375.48",Achieve Together Limited,SOCIAL SERVICES RESIDENTIAL,Peoples Services,Residential Care - Ext Provider,A56114
London Borough of Sutton,12/05/2023,50354425,"7,303.88",Achieve Together Limited,SOCIAL SERVICES RESIDENTIAL,Peoples Services,Residential Care - Ext Provider,A56114
London Borough of Sutton,12/05/2023,50354489,"5,810.56",Achieve Together Limited,SOCIAL SERVICES RESIDENTIAL,Peoples Services,Residential Care - Ext Provider,A56114
London Borough of Sutton,12/05/2023,50354030,"21,173.72",ACHIEVE TOGETHER LTD,SOCIAL SERVICES RESIDENTIAL,Peoples Services,Interim Placements - Ext Provider,A56102
London Borough of Sutton,12/05/2023,50354035,-438.80,ACHIEVE TOGETHER LTD,SOCIAL SERVICES RESIDENTIAL,Peoples Services,Residential Care - Client Cont ( Net Paymt ),A56113
London Borough of Sutton,12/05/2023,50354035,"5,620.60",ACHIEVE TOGETHER LTD,SOCIAL SERVICES RESIDENTIAL,Peoples Services,Residential Care - Ext Provider,A56114
London Borough of Sutton,12/05/2023,50354087,"11,047.88",ACHIEVE TOGETHER LTD,SOCIAL SERVICES RESIDENTIAL,Peoples Services,Residential Care - Ext Provider,A56114
London Borough of Sutton,12/05/2023,50354110,"4,653.76",ACHIEVE TOGETHER LTD,SOCIAL SERVICES RESIDENTIAL,Peoples Services,Residential Care - Ext Provider,A56114
London Borough of Sutton,19/05/2023,50355530,"1,061.44",ACHIEVE TOGETHER LTD,SOCIAL SERVICES RESIDENTIAL,Peoples Services,Supported Living,A56088
London Borough of Sutton,19/05/2023,50355530,"1,061.44",ACHIEVE TOGETHER LTD,SOCIAL SERVICES RESIDENTIAL,Peoples Services,Supported Living,A56088
London Borough of Sutton,19/05/2023,50355530,888.11,ACHIEVE TOGETHER LTD,SOCIAL SERVICES RESIDENTIAL,Peoples Services,Supported Living,A56088
London Borough of Sutton,19/05/2023,50355531,"2,653.60",ACHIEVE TOGETHER LTD,SOCIAL SERVICES RESIDENTIAL,Peoples Services,Supported Living,A56088
London Borough of Sutton,19/05/2023,50355581,"2,388.24",ACHIEVE TOGETHER LTD,SOCIAL SERVICES RESIDENTIAL,Peoples Services,Supported Living,A56088
London Borough of Sutton,19/05/2023,50355581,619.42,ACHIEVE TOGETHER LTD,SOCIAL SERVICES RESIDENTIAL,Peoples Services,Supported Living,A56088
London Borough of Sutton,19/05/2023,50355581,641.52,ACHIEVE TOGETHER LTD,SOCIAL SERVICES RESIDENTIAL,Peoples Services,Supported Living,A56088
London Borough of Sutton,19/05/2023,50355604,"2,940.17",ACHIEVE TOGETHER LTD,SOCIAL SERVICES RESIDENTIAL,Peoples Services,Supported Living,A56088
London Borough of Sutton,19/05/2023,50355604,"3,184.32",ACHIEVE TOGETHER LTD,SOCIAL SERVICES RESIDENTIAL,Peoples Services,Supported Living,A56088
London Borough of Sutton,03/04/2023,50351123,"16,242.90",Acorn Homes UK Ltd,CHILDREN'S SERVICES - FOSTERING & ADOPTION SERVICES,Peoples Services,Residential Care-Children,A56115
London Borough of Sutton,12/05/2023,50353996,"3,012.36",Acorn Lodge,SOCIAL SERVICES RESIDENTIAL,Peoples Services,Residential Care - Ext Provider,A56114
London Borough of Sutton,12/05/2023,50354053,"3,232.48",Acorn Residential Home,SOCIAL SERVICES RESIDENTIAL,Peoples Services,Residential Care - Ext Provider,A56114
London Borough of Sutton,12/05/2023,50354054,"6,441.84",Active Prospects,SOCIAL SERVICES DAY CARE,Peoples Services,Residential Care - Ext Provider,A56114
London Borough of Sutton,12/05/2023,50354108,"8,918.80",Active Prospects,SOCIAL SERVICES DAY CARE,Peoples Services,Residential Care - Ext Provider,A56114
London Borough of Sutton,12/05/2023,50354108,-438.80,Active Prospects,SOCIAL SERVICES DAY CARE,Peoples Services,Residential Care - Client Cont ( Net Paymt ),A56113
London Borough of Sutton,15/03/2023,20049143,"1,864.00",ADCS LTD,CONFERENCES,Peoples Services,Subscriptions,A47010
London Borough of Sutton,12/05/2023,50354109,"1,458.00",Admiral Healthcare Ltd.,SOCIAL SERVICES RESIDENTIAL,Peoples Services,Residential Care - Ext Provider,A56114
London Borough of Sutton,26/04/2023,50351090,"3,413.70",Affinity Fostering Services Ltd,CHILDREN'S SERVICES - FOSTERING & ADOPTION SERVICES,Peoples Services,Foster Parents Support,A44110
London Borough of Sutton,26/04/2023,50351091,"3,381.30",Affinity Fostering Services Ltd,CHILDREN'S SERVICES - FOSTERING & ADOPTION SERVICES,Peoples Services,Foster Parents Support,A44110
London Borough of Sutton,26/04/2023,50351092,"3,595.50",Affinity Fostering Services Ltd,CHILDREN'S SERVICES - FOSTERING & ADOPTION SERVICES,Peoples Services,Foster Parents Support,A44110
London Borough of Sutton,26/04/2023,50351160,"3,210.30",Affinity Fostering Services Ltd,CHILDREN'S SERVICES - FOSTERING & ADOPTION SERVICES,Peoples Services,Foster Parents Support,A44110
London Borough of Sutton,19/05/2023,50355595,"2,024.21",Agincare Enable Limited,SOCIAL SERVICES RESIDENTIAL,Peoples Services,One to One Care,A56108
London Borough of Sutton,19/05/2023,50355595,"2,024.21",Agincare Enable Limited,SOCIAL SERVICES RESIDENTIAL,Peoples Services,Supported Living,A56088
London Borough of Sutton,19/05/2023,50355595,455.70,Agincare Enable Limited,SOCIAL SERVICES RESIDENTIAL,Peoples Services,Supported Living,A56088
London Borough of Sutton,11/05/2023,20049325,969.00,REDACTED - PERSONAL DATA,SUNDRY SUPPLIER - HOUSING,Environment Housing and Neighbourhoods,Rent Deposit Scheme,B32179
London Borough of Sutton,11/05/2023,20049325,"1,050.00",REDACTED - PERSONAL DATA,SUNDRY SUPPLIER - HOUSING,Environment Housing and Neighbourhoods,Rent Deposit Scheme,B32179
London Borough of Sutton,12/05/2023,50354062,"7,793.40",Leighton House Ltd,SOCIAL SERVICES RESIDENTIAL,Peoples Services,Residential Care - Ext Provider,A56114
London Borough of Sutton,12/05/2023,50354112,"8,716.00",Aitch Care Homes,SOCIAL SERVICES RESIDENTIAL,Peoples Services,Residential Care - Ext Provider,A56114
London Borough of Sutton,15/05/2023,20049507,"1,031.40",Alastair Fyfe Photography Limited,SUNDRY SUPPLIER - FINANCE,Resources,Printing,A43010
London Borough of Sutton,30/05/2023,50355982,567.74,REDACTED - PERSONAL DATA,CHILDREN'S SERVICES - FOSTERING & ADOPTION SERVICES,Peoples Services,Holiday Allowances,A56013
London Borough of Sutton,27/04/2023,20048322,"3,000.00",REDACTED - PERSONAL DATA,TEMP STAFF & CONSULTANCY,Peoples Services,Consultancy Services,A56007
London Borough of Sutton,11/05/2023,50350448,"168,131.48",All Saints Benhilton C Of E,GRANTS & EX GRATIA PAYMENTS,Peoples Services,Payments to Schools,A51013
London Borough of Sutton,11/05/2023,50350487,"13,174.20",All Saints Benhilton C Of E,GRANTS & EX GRATIA PAYMENTS,Peoples Services,Place Funding,A56110
London Borough of Sutton,11/05/2023,50350520,"1,740.00",All Saints Benhilton C Of E,GRANTS & EX GRATIA PAYMENTS,Resources,"Grants, Contributions & Donations",A47005
London Borough of Sutton,11/05/2023,50350611,"27,554.00",All Saints Benhilton C Of E,GRANTS & EX GRATIA PAYMENTS,Peoples Services,Other payments to schools,A51023
London Borough of Sutton,09/05/2023,50352081,"1,292.75",All Saints Benhilton C Of E,GRANTS & EX GRATIA PAYMENTS,Peoples Services,Top-up Funding,A51016
London Borough of Sutton,11/05/2023,50350488,"12,414.15",All Saints Carshalton Primary School,GRANTS & EX GRATIA PAYMENTS,Peoples Services,Place Funding,A56110
London Borough of Sutton,11/05/2023,50350521,720.00,All Saints Carshalton Primary School,GRANTS & EX GRATIA PAYMENTS,Resources,"Grants, Contributions & Donations",A47005
London Borough of Sutton,28/04/2023,50349243,"28,600.00",All4One Services,SOCIAL SERVICES RESIDENTIAL,Peoples Services,Supported Living,A56088
London Borough of Sutton,12/05/2023,50354032,"4,621.64",Allied Care (Mhs) Ltd,SOCIAL SERVICES - OTHER,Peoples Services,Residential Care - Ext Provider,A56114
London Borough of Sutton,27/04/2023,20048543,690.28,Allied Publicity Services (Manchester) Ltd,REPROGRAPHICS & PHOTOGRAPHY,Health and Wellbeing,Mobility Scheme for the Disabled,A61015
London Borough of Sutton,17/05/2023,20050565,585.00,Alljos Services Ltd,PREMISES - CLEANING & LAUNDRY,Environment Housing and Neighbourhoods,Grants Given For Capital Purposes,C20004
London Borough of Sutton,22/05/2023,20050566,"1,780.00",Alljos Services Ltd,PREMISES - CLEANING & LAUNDRY,Environment Housing and Neighbourhoods,Grants Given For Capital Purposes,C20004
London Borough of Sutton,01/05/2023,20048498,"1,860.21",Allstar Business Solutions,FUEL AND VEHICLE SUPPLIES,Environment Housing and Neighbourhoods,Vehicles -  Fuel,A30015
London Borough of Sutton,12/05/2023,50354286,"5,397.60",Allswell Care Services Ltd,SOCIAL SERVICES RESIDENTIAL,Peoples Services,Residential Care - Ext Provider,A56114
London Borough of Sutton,12/05/2023,50354312,"6,609.52",Allswell Care Services Ltd,SOCIAL SERVICES RESIDENTIAL,Peoples Services,Residential Care - Ext Provider,A56114
London Borough of Sutton,12/05/2023,50354450,"5,397.60",Allswell Care Services Ltd,SOCIAL SERVICES RESIDENTIAL,Peoples Services,Residential Care - Ext Provider,A56114
London Borough of Sutton,24/02/2023,50355615,"1,353.06",Alpenbest Limited,SOCIAL SERVICES DAY CARE,Peoples Services,Home Care Services,A56019
London Borough of Sutton,27/01/2023,50355616,"1,827.84",Alpenbest Limited,SOCIAL SERVICES DAY CARE,Peoples Services,Home Care Services,A56019
London Borough of Sutton,25/04/2023,50355617,"2,163.92",Alpenbest Limited,SOCIAL SERVICES DAY CARE,Peoples Services,Home Care Services,A56019
London Borough of Sutton,25/04/2023,50355618,747.28,Alpenbest Limited,SOCIAL SERVICES DAY CARE,Peoples Services,Home Care Services,A56019
London Borough of Sutton,26/04/2023,50355621,571.77,Alpenbest Limited,SOCIAL SERVICES DAY CARE,Peoples Services,Home Care Services,A56019
London Borough of Sutton,26/04/2023,50355622,"1,924.22",Alpenbest Limited,SOCIAL SERVICES DAY CARE,Peoples Services,Home Care Services,A56019
London Borough of Sutton,18/05/2023,50355623,"1,834.30",Alpenbest Limited,SOCIAL SERVICES DAY CARE,Peoples Services,Home Care Services,A56019
London Borough of Sutton,18/05/2023,50355629,880.53,Alpenbest Limited,SOCIAL SERVICES DAY CARE,Peoples Services,Home Care Services,A56019
London Borough of Sutton,18/05/2023,50355630,"3,239.32",Alpenbest Limited,SOCIAL SERVICES DAY CARE,Peoples Services,Home Care Services,A56019
London Borough of Sutton,18/05/2023,50355632,880.53,Alpenbest Limited,SOCIAL SERVICES DAY CARE,Peoples Services,Home Care Services,A56019
London Borough of Sutton,18/05/2023,50355636,"3,239.32",Alpenbest Limited,SOCIAL SERVICES DAY CARE,Peoples Services,Home Care Services,A56019
London Borough of Sutton,18/05/2023,50355637,"1,517.11",Alpenbest Limited,SOCIAL SERVICES DAY CARE,Peoples Services,Home Care Services,A56019
London Borough of Sutton,18/05/2023,50355638,504.49,Alpenbest Limited,SOCIAL SERVICES DAY CARE,Peoples Services,Home Care Services,A56019
London Borough of Sutton,18/05/2023,50355640,"3,087.48",Alpenbest Limited,SOCIAL SERVICES DAY CARE,Peoples Services,Home Care Services,A56019
London Borough of Sutton,18/05/2023,50355640,719.72,Alpenbest Limited,SOCIAL SERVICES DAY CARE,Peoples Services,Home Care Services,A56019
London Borough of Sutton,18/05/2023,50355643,929.10,Alpenbest Limited,SOCIAL SERVICES DAY CARE,Peoples Services,Home Care Services,A56019
London Borough of Sutton,18/05/2023,50355644,867.58,Alpenbest Limited,SOCIAL SERVICES DAY CARE,Peoples Services,Home Care Services,A56019
London Borough of Sutton,18/05/2023,50355645,649.92,Alpenbest Limited,SOCIAL SERVICES DAY CARE,Peoples Services,Home Care Services,A56019
London Borough of Sutton,18/05/2023,50355646,748.06,Alpenbest Limited,SOCIAL SERVICES DAY CARE,Peoples Services,Home Care Services,A56019
London Borough of Sutton,18/05/2023,50355655,966.24,Alpenbest Limited,SOCIAL SERVICES DAY CARE,Peoples Services,Home Care Services,A56019
London Borough of Sutton,11/05/2023,50350623,723.60,REDACTED - PERSONAL DATA,GRANTS & EX GRATIA PAYMENTS,Peoples Services,Payment - Nursery Funding,A51056
London Borough of Sutton,11/05/2023,50350690,"1,009.80",REDACTED - PERSONAL DATA,GRANTS & EX GRATIA PAYMENTS,Peoples Services,Payment - Nursery Funding,A51056
London Borough of Sutton,11/05/2023,50350701,673.20,REDACTED - PERSONAL DATA,GRANTS & EX GRATIA PAYMENTS,Peoples Services,Payment - Nursery Funding,A51056
London Borough of Sutton,26/05/2023,50358655,"1,430.00",REDACTED - PERSONAL DATA,SUNDRY SUPPLIER - EDUCATION,Peoples Services,Miscellaneous Expenses,A49000
London Borough of Sutton,01/04/2023,50351135,"3,538.80",Anchor Foster Care Services Ltd,CHILDREN'S SERVICES - FOSTERING & ADOPTION SERVICES,Peoples Services,Foster Parents Support,A44110
London Borough of Sutton,01/04/2023,50351136,"4,350.00",Anchor Foster Care Services Ltd,CHILDREN'S SERVICES - FOSTERING & ADOPTION SERVICES,Peoples Services,Foster Parents Support,A44110
London Borough of Sutton,12/05/2023,50354025,"4,570.03",Anchor Trust  - Thameside,SOCIAL SERVICES RESIDENTIAL,Peoples Services,Residential Care - Ext Provider,A56114
London Borough of Sutton,12/05/2023,50354026,"-1,541.58",Anchor Trust  - Thameside,SOCIAL SERVICES RESIDENTIAL,Peoples Services,Residential Care - Ext Provider,A56114
London Borough of Sutton,23/03/2023,20048585,938.34,REDACTED - PERSONAL DATA,PLS LANDLORDS,Environment Housing and Neighbourhoods,Temporary Protection - Homeless Persons,A62028
London Borough of Sutton,23/04/2023,20049084,"1,096.00",REDACTED - PERSONAL DATA,PLS LANDLORDS,Environment Housing and Neighbourhoods,Temporary Protection - Homeless Persons,A62028
London Borough of Sutton,11/05/2023,50350678,"1,262.25",REDACTED - PERSONAL DATA,GRANTS & EX GRATIA PAYMENTS,Peoples Services,Payment - Nursery Funding,A51056
London Borough of Sutton,30/05/2023,50355964,567.74,REDACTED - PERSONAL DATA,SOCIAL SERVICES - DIRECT PAYMENTS,Peoples Services,Holiday Allowances,A56013
London Borough of Sutton,02/05/2023,50350029,"2,100.00",REDACTED - PERSONAL DATA,CHILDREN'S SERVICES - SEN SERVICES,Peoples Services,Independent School Fees,A56002
London Borough of Sutton,31/05/2023,50360298,840.00,REDACTED - PERSONAL DATA,CHILDREN'S SERVICES - SEN SERVICES,Peoples Services,Independent School Fees,A56002
London Borough of Sutton,03/05/2023,50351175,"3,364.28",Ansacare Fostering Agency Ltd,CHILDREN'S SERVICES - FOSTERING & ADOPTION SERVICES,Peoples Services,Foster Parents Support,A44110
London Borough of Sutton,03/05/2023,50351190,"3,364.28",Ansacare Fostering Agency Ltd,CHILDREN'S SERVICES - FOSTERING & ADOPTION SERVICES,Peoples Services,Foster Parents Support,A44110
London Borough of Sutton,30/04/2023,20048544,"7,002.00",Apex Housing Solutions Ltd,SOCIAL SERVICES DAY CARE,Environment Housing and Neighbourhoods,Bed & Breakfast,A56000
London Borough of Sutton,28/04/2023,20048625,"104,838.49",APL Construction Services Ltd,CONSTRUCTION INDUSTRY,HRA,Council Dwellings - Construction & Renovation,C10002
London Borough of Sutton,23/03/2023,20047627,"1,148.56",Arthur Rai Medical Services Ltd,TEMP STAFF & CONSULTANCY,Health and Wellbeing,Agency Staff - Other,A10505
London Borough of Sutton,23/03/2023,20047628,"1,406.40",Arthur Rai Medical Services Ltd,TEMP STAFF & CONSULTANCY,Health and Wellbeing,Agency Staff - Other,A10505
London Borough of Sutton,15/03/2023,20047629,"1,406.40",Arthur Rai Medical Services Ltd,TEMP STAFF & CONSULTANCY,Health and Wellbeing,Agency Staff - Other,A10505
London Borough of Sutton,08/03/2023,20047630,"1,207.16",Arthur Rai Medical Services Ltd,TEMP STAFF & CONSULTANCY,Health and Wellbeing,Agency Staff - Other,A10505
London Borough of Sutton,23/03/2023,20047631,"1,758.00",Arthur Rai Medical Services Ltd,TEMP STAFF & CONSULTANCY,Health and Wellbeing,Agency Staff - Other,A10505
London Borough of Sutton,08/03/2023,20047632,"1,406.40",Arthur Rai Medical Services Ltd,TEMP STAFF & CONSULTANCY,Health and Wellbeing,Agency Staff - Other,A10505
London Borough of Sutton,23/03/2023,20047633,773.52,Arthur Rai Medical Services Ltd,TEMP STAFF & CONSULTANCY,Health and Wellbeing,Agency Staff - Other,A10505
London Borough of Sutton,08/03/2023,20047636,"1,125.12",Arthur Rai Medical Services Ltd,TEMP STAFF & CONSULTANCY,Health and Wellbeing,Agency Staff - Other,A10505
London Borough of Sutton,15/03/2023,20047642,"1,136.84",Arthur Rai Medical Services Ltd,TEMP STAFF & CONSULTANCY,Health and Wellbeing,Agency Staff - Other,A10505
London Borough of Sutton,29/03/2023,20047644,"1,148.56",Arthur Rai Medical Services Ltd,TEMP STAFF & CONSULTANCY,Health and Wellbeing,Agency Staff - Other,A10505
London Borough of Sutton,05/04/2023,20047646,"1,406.40",Arthur Rai Medical Services Ltd,TEMP STAFF & CONSULTANCY,Health and Wellbeing,Agency Staff - Other,A10505
London Borough of Sutton,29/03/2023,20047655,"1,453.28",Arthur Rai Medical Services Ltd,TEMP STAFF & CONSULTANCY,Health and Wellbeing,Agency Staff - Other,A10505
London Borough of Sutton,04/04/2023,20048638,"6,089.00",Ascendit Lifts Ltd,BUILDING MNTCE - SERVICES,Environment Housing and Neighbourhoods,Grants Given For Capital Purposes,C20004
London Borough of Sutton,05/04/2023,50351183,"5,515.64",Ascent Fostering Agency Ltd,CHILDREN'S SERVICE - OTHER,Peoples Services,Foster Parents Support,A44110
London Borough of Sutton,01/04/2023,50351184,"6,364.20",Ascent Fostering Agency Ltd,CHILDREN'S SERVICE - OTHER,Peoples Services,Foster Parents Support,A44110
London Borough of Sutton,02/05/2023,50351937,"1,065.84",Ashlong House Ltd,SOCIAL SERVICES RESIDENTIAL,Peoples Services,Supported Living,A56088
London Borough of Sutton,12/05/2023,50353989,"3,821.24",Ashton Care Homes Ltd,SOCIAL SERVICES RESIDENTIAL,Peoples Services,Nursing Care - Ext Provider,A56025
London Borough of Sutton,12/05/2023,50353989,-836.76,Ashton Care Homes Ltd,SOCIAL SERVICES RESIDENTIAL,Peoples Services,Nursing Care - 3rd party top up payment,A56023
London Borough of Sutton,12/05/2023,50354114,"3,980.00",Ashurst Lodge Healthcare Ltd,CHILDREN'S SERVICES - RESIDENTIAL,Peoples Services,Residential Care - Ext Provider,A56114
London Borough of Sutton,12/05/2023,50354114,"-1,990.00",Ashurst Lodge Healthcare Ltd,CHILDREN'S SERVICES - RESIDENTIAL,Peoples Services,Nursing Care - 3rd party top up payment,A56023
London Borough of Sutton,12/05/2023,50354031,"4,144.68",Aspen Place,SOCIAL SERVICES DAY CARE,Peoples Services,Nursing Care - Ext Provider,A56025
London Borough of Sutton,12/05/2023,50354091,"5,699.00",Aspens Charities,SOCIAL SERVICES RESIDENTIAL,Peoples Services,Residential Care - Ext Provider,A56114
London Borough of Sutton,03/05/2023,50351228,"2,400.00",Aspirations Care Ltd,SOCIAL SERVICES DAY CARE,Peoples Services,Home Care Services,A56019
London Borough of Sutton,03/05/2023,50351228,"7,119.30",Aspirations Care Ltd,SOCIAL SERVICES DAY CARE,Peoples Services,Home Care Services,A56019
London Borough of Sutton,28/04/2023,20048378,"1,053.00",ASSOCIATON OF ACCOUNTING TECHNICIANS,SUBSCRIPTIONS & PUBLICATIONS,Health and Wellbeing,Examination Fees,A44200
London Borough of Sutton,09/05/2023,50353958,"23,528.57",Athena Housing and Support Ltd,CHILDREN'S SERVICES - RESIDENTIAL,Peoples Services,Residential Care-Children,A56115
London Borough of Sutton,14/04/2023,20047650,"21,750.00",Auditel Rental & Services Ltd,BUSINESS & COMPUTER SYSTEMS,Resources,Equipment Purchase & Hire,A40050
London Borough of Sutton,11/05/2023,50350625,964.80,Aunty Connies Childcare,GRANTS & EX GRATIA PAYMENTS,Peoples Services,Payment - Nursery Funding,A51056
London Borough of Sutton,12/05/2023,50354069,"6,024.56",Autism & Aspergers Care Services,SOCIAL SERVICES RESIDENTIAL,Peoples Services,Residential Care - Ext Provider,A56114
London Borough of Sutton,02/05/2023,50358967,"48,300.00",Avance Ltd,CHILDREN'S SERVICES - FOSTERING & ADOPTION SERVICES,Peoples Services,Residential Care-Children,A56115
London Borough of Sutton,09/05/2023,50350433,"1,120.00",Avenue Primary Acadamy,SCHOOL FUNDS,Peoples Services,Payments to Schools,A51013
London Borough of Sutton,11/05/2023,50350489,"13,759.20",Avenue Primary Acadamy,SCHOOL FUNDS,Peoples Services,Place Funding,A56110
London Borough of Sutton,11/05/2023,50350522,"3,690.00",Avenue Primary Acadamy,SCHOOL FUNDS,Resources,"Grants, Contributions & Donations",A47005
London Borough of Sutton,11/05/2023,50350844,"1,200.00",Avenue Primary Acadamy,SCHOOL FUNDS,Peoples Services,Payments to Schools,A51013
London Borough of Sutton,09/05/2023,50352082,"6,701.48",Avenue Primary Acadamy,SCHOOL FUNDS,Peoples Services,Top-up Funding,A51016
London Borough of Sutton,30/05/2023,50359535,"4,816.80",Avenue Primary Acadamy,SCHOOL FUNDS,Peoples Services,Pupil Growth,A51014
London Borough of Sutton,30/05/2023,50359536,"19,266.80",Avenue Primary Acadamy,SCHOOL FUNDS,Peoples Services,Pupil Growth,A51014
London Borough of Sutton,19/05/2023,50355510,"14,136.00",Ayai Care Limited,SOCIAL SERVICES DAY CARE,Peoples Services,Supported Living,A56088
London Borough of Sutton,19/05/2023,50355572,"13,604.57",Ayai Care Limited,SOCIAL SERVICES DAY CARE,Peoples Services,Supported Living,A56088
London Borough of Sutton,25/05/2023,50359521,860.00,Ayai Care Limited,SOCIAL SERVICES DAY CARE,Peoples Services,One to One Care,A56108
London Borough of Sutton,25/05/2023,50359522,"1,505.00",Ayai Care Limited,SOCIAL SERVICES DAY CARE,Peoples Services,One to One Care,A56108
London Borough of Sutton,26/04/2023,50351093,"5,999.99",Back on Track Housing Ltd,SOCIAL SERVICES - OTHER,Peoples Services,Approved Lodgings,A61000
London Borough of Sutton,26/04/2023,50351093,267.86,Back on Track Housing Ltd,SOCIAL SERVICES - OTHER,Peoples Services,Approved Lodgings,A61000
London Borough of Sutton,25/04/2023,50351095,"5,057.00",Back on Track Housing Ltd,SOCIAL SERVICES - OTHER,Peoples Services,Approved Lodgings,A61000
London Borough of Sutton,25/04/2023,50351097,"5,999.99",Back on Track Housing Ltd,SOCIAL SERVICES - OTHER,Peoples Services,Approved Lodgings,A61000
London Borough of Sutton,25/04/2023,50351097,267.86,Back on Track Housing Ltd,SOCIAL SERVICES - OTHER,Peoples Services,Approved Lodgings,A61000
London Borough of Sutton,25/04/2023,50351098,"4,896.25",Back on Track Housing Ltd,SOCIAL SERVICES - OTHER,Peoples Services,Accommodation - Supported Living,A62001
London Borough of Sutton,25/04/2023,50351156,"4,999.99",Back on Track Housing Ltd,SOCIAL SERVICES - OTHER,Peoples Services,Approved Lodgings,A61000
London Borough of Sutton,25/04/2023,50351156,223.21,Back on Track Housing Ltd,SOCIAL SERVICES - OTHER,Peoples Services,Approved Lodgings,A61000
London Borough of Sutton,11/05/2023,50350490,"14,817.60",Bandon Hill Primary School (Academy),GRANTS & EX GRATIA PAYMENTS,Peoples Services,Place Funding,A56110
London Borough of Sutton,09/05/2023,50352083,"4,355.45",Bandon Hill Primary School (Academy),GRANTS & EX GRATIA PAYMENTS,Peoples Services,Top-up Funding,A51016
London Borough of Sutton,09/05/2023,50352084,"3,821.25",Bandon Hill Primary School (Academy),GRANTS & EX GRATIA PAYMENTS,Peoples Services,Top-up Funding,A51016
London Borough of Sutton,09/05/2023,50352108,"-3,821.25",Bandon Hill Primary School (Academy),GRANTS & EX GRATIA PAYMENTS,Peoples Services,Top-up Funding,A51016
London Borough of Sutton,26/04/2023,20048266,450.63,Banner Group Limited,BOOKS PUBLICATIONS STATIONERY,Peoples Services,Miscellaneous Expenses,A49000
London Borough of Sutton,02/05/2023,20048615,514.50,Banner Group Limited,BOOKS PUBLICATIONS STATIONERY,Health and Wellbeing,Stationery,A43015
London Borough of Sutton,30/04/2023,50355501,"4,425.00",Banya,SOCIAL SERVICES RESIDENTIAL,Peoples Services,Foster Parents Support,A44110
London Borough of Sutton,12/05/2023,50354057,"6,436.76",Barchester Healthcare Homes Ltd,SOCIAL SERVICES RESIDENTIAL,Peoples Services,Nursing Care - Ext Provider,A56025
London Borough of Sutton,12/05/2023,50354057,"-1,381.03",Barchester Healthcare Homes Ltd,SOCIAL SERVICES RESIDENTIAL,Peoples Services,Nursing Care - 3rd party top up payment,A56023
London Borough of Sutton,12/05/2023,50354130,"-2,355.71",Barchester Healthcare Homes Ltd,SOCIAL SERVICES RESIDENTIAL,Peoples Services,Nursing Care - Ext Provider,A56025
London Borough of Sutton,26/05/2023,50358638,526.50,REDACTED - PERSONAL DATA,CHILDREN'S SERVICES - SEN SERVICES,Peoples Services,Miscellaneous Expenses,A49000
London Borough of Sutton,09/05/2023,50350436,"15,000.00",Beddington Infants School,GRANTS & EX GRATIA PAYMENTS,Peoples Services,Payment - school forward funding,A51059
London Borough of Sutton,11/05/2023,50350442,"108,196.24",Beddington Infants School,GRANTS & EX GRATIA PAYMENTS,Peoples Services,Payments to Schools,A51013
London Borough of Sutton,11/05/2023,50350492,"13,759.20",Beddington Infants School,GRANTS & EX GRATIA PAYMENTS,Peoples Services,Place Funding,A56110
London Borough of Sutton,11/05/2023,50350525,"1,260.00",Beddington Infants School,GRANTS & EX GRATIA PAYMENTS,Resources,"Grants, Contributions & Donations",A47005
London Borough of Sutton,11/05/2023,50350605,"17,318.00",Beddington Infants School,GRANTS & EX GRATIA PAYMENTS,Peoples Services,Other payments to schools,A51023
London Borough of Sutton,09/05/2023,50352086,"2,051.30",Beddington Infants School,GRANTS & EX GRATIA PAYMENTS,Peoples Services,Top-up Funding,A51016
London Borough of Sutton,11/05/2023,50350493,"11,907.00",Beddington Park Primary (Academy),GRANTS & EX GRATIA PAYMENTS,Peoples Services,Place Funding,A56110
London Borough of Sutton,11/05/2023,50350526,"3,210.00",Beddington Park Primary (Academy),GRANTS & EX GRATIA PAYMENTS,Resources,"Grants, Contributions & Donations",A47005
London Borough of Sutton,09/05/2023,50352087,"11,210.90",Beddington Park Primary (Academy),GRANTS & EX GRATIA PAYMENTS,Peoples Services,Top-up Funding,A51016
London Borough of Sutton,19/05/2023,50355603,"3,786.43",Beechcroft Care Limited,SOCIAL SERVICES RESIDENTIAL,Peoples Services,Supported Living,A56088
London Borough of Sutton,19/05/2023,50355603,"2,836.50",Beechcroft Care Limited,SOCIAL SERVICES RESIDENTIAL,Peoples Services,Supported Living,A56088
London Borough of Sutton,19/05/2023,50355603,"1,240.00",Beechcroft Care Limited,SOCIAL SERVICES RESIDENTIAL,Peoples Services,One to One Care,A56108
London Borough of Sutton,24/04/2023,20048031,"1,296.96",Beeches Tree Care,AGRICULTURAL & ESTATE SERVICES,Development Growth and Regeneration,External Fees and Consultants,C20000
London Borough of Sutton,27/04/2023,20048278,"20,000.00",Beeches Tree Care,AGRICULTURAL & ESTATE SERVICES,Environment Housing and Neighbourhoods,External Fees and Consultants,C20000
London Borough of Sutton,24/02/2023,20048526,"1,330.30",Beeches Tree Care,AGRICULTURAL & ESTATE SERVICES,Environment Housing and Neighbourhoods,Maintenance of trees,A28003
London Borough of Sutton,03/05/2023,20048635,"2,793.23",Beeches Tree Care,AGRICULTURAL & ESTATE SERVICES,Environment Housing and Neighbourhoods,Maintenance of trees,A28003
London Borough of Sutton,04/05/2023,20048685,"1,248.30",Beeches Tree Care,AGRICULTURAL & ESTATE SERVICES,Environment Housing and Neighbourhoods,Plants and Shrubs,A28004
London Borough of Sutton,04/05/2023,20048686,"2,034.00",Beeches Tree Care,AGRICULTURAL & ESTATE SERVICES,Environment Housing and Neighbourhoods,Plants and Shrubs,A28004
London Borough of Sutton,04/05/2023,20048687,"53,242.86",Beeches Tree Care,AGRICULTURAL & ESTATE SERVICES,Environment Housing and Neighbourhoods,Payments to Contractors,C14000
London Borough of Sutton,04/05/2023,20048688,"7,212.66",Beeches Tree Care,AGRICULTURAL & ESTATE SERVICES,Environment Housing and Neighbourhoods,Plants and Shrubs,A28004
London Borough of Sutton,04/05/2023,20048689,"1,803.10",Beeches Tree Care,AGRICULTURAL & ESTATE SERVICES,Environment Housing and Neighbourhoods,Plants and Shrubs,A28004
London Borough of Sutton,04/05/2023,20048694,"21,420.00",Beeches Tree Care,AGRICULTURAL & ESTATE SERVICES,Environment Housing and Neighbourhoods,Plants and Shrubs,A28004
London Borough of Sutton,04/05/2023,20048701,"2,126.81",Beeches Tree Care,AGRICULTURAL & ESTATE SERVICES,Environment Housing and Neighbourhoods,Plants and Shrubs,A28004
London Borough of Sutton,04/05/2023,20048702,739.76,Beeches Tree Care,AGRICULTURAL & ESTATE SERVICES,Environment Housing and Neighbourhoods,Plants and Shrubs,A28004
London Borough of Sutton,04/05/2023,20048774,554.80,Beeches Tree Care,AGRICULTURAL & ESTATE SERVICES,Environment Housing and Neighbourhoods,Plants and Shrubs,A28004
London Borough of Sutton,04/05/2023,20048775,"6,380.20",Beeches Tree Care,AGRICULTURAL & ESTATE SERVICES,Environment Housing and Neighbourhoods,Plants and Shrubs,A28004
London Borough of Sutton,04/05/2023,20048777,554.00,Beeches Tree Care,AGRICULTURAL & ESTATE SERVICES,Environment Housing and Neighbourhoods,Plants and Shrubs,A28004
London Borough of Sutton,04/05/2023,20048779,"8,368.47",Beeches Tree Care,AGRICULTURAL & ESTATE SERVICES,Environment Housing and Neighbourhoods,Purchases and Repairs Fixtures & Fittings,A25005
London Borough of Sutton,03/05/2023,20048801,"2,356.31",Beeches Tree Care,AGRICULTURAL & ESTATE SERVICES,Environment Housing and Neighbourhoods,Tree Works,A56042
London Borough of Sutton,04/05/2023,20048861,"6,477.09",Beeches Tree Care,AGRICULTURAL & ESTATE SERVICES,Environment Housing and Neighbourhoods,Plants and Shrubs,A28004
London Borough of Sutton,11/05/2023,20049172,"-1,437.56",Beeches Tree Care,AGRICULTURAL & ESTATE SERVICES,Resources,Fees And Charges (VATable),A92310
London Borough of Sutton,11/05/2023,20049174,-578.34,Beeches Tree Care,AGRICULTURAL & ESTATE SERVICES,Resources,Fees And Charges (VATable),A92310
London Borough of Sutton,12/05/2023,20049414,"7,438.82",Beeches Tree Care,AGRICULTURAL & ESTATE SERVICES,Environment Housing and Neighbourhoods,Highway Trees - Maintenance,A28005
London Borough of Sutton,18/05/2023,20049793,"30,514.00",Beeches Tree Care,AGRICULTURAL & ESTATE SERVICES,Environment Housing and Neighbourhoods,Plants and Shrubs,A28004
London Borough of Sutton,19/05/2023,20049903,"4,294.25",Beeches Tree Care,AGRICULTURAL & ESTATE SERVICES,Environment Housing and Neighbourhoods,Tree Works,A56042
London Borough of Sutton,23/05/2023,20050132,879.39,Beeches Tree Care,AGRICULTURAL & ESTATE SERVICES,Environment Housing and Neighbourhoods,Tree Works,A56042
London Borough of Sutton,25/05/2023,20050196,-701.82,Beeches Tree Care,AGRICULTURAL & ESTATE SERVICES,Resources,Fees And Charges (VATable),A92310
London Borough of Sutton,25/05/2023,20050363,"3,494.56",Beeches Tree Care,AGRICULTURAL & ESTATE SERVICES,Environment Housing and Neighbourhoods,Maintenance of trees,A28003
London Borough of Sutton,26/05/2023,20050364,"9,185.24",Beeches Tree Care,AGRICULTURAL & ESTATE SERVICES,Environment Housing and Neighbourhoods,Highway Trees - Maintenance,A28005
London Borough of Sutton,01/05/2023,50349370,600.00,Belmont Village Playgroup,ACADEMIC INSTNS - OTHER,Peoples Services,SEND Inclusion funding,A60038
London Borough of Sutton,01/05/2023,50349371,520.00,Belmont Village Playgroup,ACADEMIC INSTNS - OTHER,Peoples Services,SEND Inclusion funding,A60038
London Borough of Sutton,11/05/2023,50350582,"1,300.00",Belmont Village Playgroup,ACADEMIC INSTNS - OTHER,Peoples Services,Predictable Needs funding,A56125
London Borough of Sutton,11/05/2023,50350627,"4,274.82",Belmont Village Playgroup,ACADEMIC INSTNS - OTHER,Peoples Services,Payment - Nursery Funding,A51056
London Borough of Sutton,11/05/2023,50350757,851.76,Belmont Village Playgroup,ACADEMIC INSTNS - OTHER,Peoples Services,Payment - Nursery Funding,A51056
London Borough of Sutton,18/04/2023,20048436,"1,000.00",Benhill & Belmont GP Centre,SOCIAL SERVICES - OTHER,Health and Wellbeing,Provider Contract Payments,A44290
London Borough of Sutton,18/04/2023,20048438,"1,060.00",Benhill & Belmont GP Centre,SOCIAL SERVICES - OTHER,Health and Wellbeing,Provider Contract Payments,A44290
London Borough of Sutton,12/05/2023,50353982,"-3,890.68",Bespoke Care Support Ltd,SOCIAL SERVICES - OTHER,Peoples Services,Nursing Care - 3rd party top up payment,A56023
London Borough of Sutton,12/05/2023,50354023,"-2,000.00",Bespoke Care Support Ltd,SOCIAL SERVICES - OTHER,Peoples Services,Nursing Care - 3rd party top up payment,A56023
London Borough of Sutton,19/05/2023,50355602,"8,615.08",Bespoke Care Support Ltd,SOCIAL SERVICES - OTHER,Peoples Services,Supported Living,A56088
London Borough of Sutton,19/05/2023,50355606,"3,985.71",Bespoke Care Support Ltd,SOCIAL SERVICES - OTHER,Peoples Services,Supported Living,A56088
London Borough of Sutton,19/05/2023,50355614,"4,428.57",Bespoke Care Support Ltd,SOCIAL SERVICES - OTHER,Peoples Services,Supported Living,A56088
London Borough of Sutton,23/04/2023,50349024,981.94,Best at Home Domiciliary Care Services Ltd,SOCIAL SERVICES DAY CARE,Peoples Services,Home Care Services,A56019
London Borough of Sutton,23/04/2023,50349025,533.25,Best at Home Domiciliary Care Services Ltd,SOCIAL SERVICES DAY CARE,Peoples Services,Home Care Services,A56019
London Borough of Sutton,23/04/2023,50349049,827.97,Best at Home Domiciliary Care Services Ltd,SOCIAL SERVICES DAY CARE,Peoples Services,Home Care Services,A56019
London Borough of Sutton,23/04/2023,50349049,150.00,Best at Home Domiciliary Care Services Ltd,SOCIAL SERVICES DAY CARE,Peoples Services,Home Care Services,A56019
London Borough of Sutton,23/04/2023,50349057,"3,156.00",Best at Home Domiciliary Care Services Ltd,SOCIAL SERVICES DAY CARE,Peoples Services,Home Care Services,A56019
London Borough of Sutton,23/04/2023,50349065,827.97,Best at Home Domiciliary Care Services Ltd,SOCIAL SERVICES DAY CARE,Peoples Services,Home Care Services,A56019
London Borough of Sutton,23/04/2023,50349071,"3,156.00",Best at Home Domiciliary Care Services Ltd,SOCIAL SERVICES DAY CARE,Peoples Services,Home Care Services,A56019
London Borough of Sutton,23/04/2023,50349076,901.97,Best at Home Domiciliary Care Services Ltd,SOCIAL SERVICES DAY CARE,Peoples Services,Home Care Services,A56019
London Borough of Sutton,23/04/2023,50349086,"3,156.00",Best at Home Domiciliary Care Services Ltd,SOCIAL SERVICES DAY CARE,Peoples Services,Home Care Services,A56019
London Borough of Sutton,30/04/2023,50351242,981.94,Best at Home Domiciliary Care Services Ltd,SOCIAL SERVICES DAY CARE,Peoples Services,Home Care Services,A56019
London Borough of Sutton,30/04/2023,50351255,528.50,Best at Home Domiciliary Care Services Ltd,SOCIAL SERVICES DAY CARE,Peoples Services,Home Care Services,A56019
London Borough of Sutton,30/04/2023,50351294,827.97,Best at Home Domiciliary Care Services Ltd,SOCIAL SERVICES DAY CARE,Peoples Services,Home Care Services,A56019
London Borough of Sutton,30/04/2023,50351294,150.00,Best at Home Domiciliary Care Services Ltd,SOCIAL SERVICES DAY CARE,Peoples Services,Home Care Services,A56019
London Borough of Sutton,30/04/2023,50351302,"3,156.00",Best at Home Domiciliary Care Services Ltd,SOCIAL SERVICES DAY CARE,Peoples Services,Home Care Services,A56019
London Borough of Sutton,30/04/2023,50351306,827.97,Best at Home Domiciliary Care Services Ltd,SOCIAL SERVICES DAY CARE,Peoples Services,Home Care Services,A56019
London Borough of Sutton,30/04/2023,50351314,"3,156.00",Best at Home Domiciliary Care Services Ltd,SOCIAL SERVICES DAY CARE,Peoples Services,Home Care Services,A56019
London Borough of Sutton,30/04/2023,50351322,901.97,Best at Home Domiciliary Care Services Ltd,SOCIAL SERVICES DAY CARE,Peoples Services,Home Care Services,A56019
London Borough of Sutton,30/04/2023,50351324,"3,156.00",Best at Home Domiciliary Care Services Ltd,SOCIAL SERVICES DAY CARE,Peoples Services,Home Care Services,A56019
London Borough of Sutton,07/05/2023,50352442,"1,031.95",Best at Home Domiciliary Care Services Ltd,SOCIAL SERVICES DAY CARE,Peoples Services,Home Care Services,A56019
London Borough of Sutton,07/05/2023,50352450,565.00,Best at Home Domiciliary Care Services Ltd,SOCIAL SERVICES DAY CARE,Peoples Services,Home Care Services,A56019
London Borough of Sutton,07/05/2023,50352456,882.00,Best at Home Domiciliary Care Services Ltd,SOCIAL SERVICES DAY CARE,Peoples Services,Home Care Services,A56019
London Borough of Sutton,07/05/2023,50352486,867.98,Best at Home Domiciliary Care Services Ltd,SOCIAL SERVICES DAY CARE,Peoples Services,Home Care Services,A56019
London Borough of Sutton,07/05/2023,50352486,157.50,Best at Home Domiciliary Care Services Ltd,SOCIAL SERVICES DAY CARE,Peoples Services,Home Care Services,A56019
London Borough of Sutton,07/05/2023,50352499,"3,336.00",Best at Home Domiciliary Care Services Ltd,SOCIAL SERVICES DAY CARE,Peoples Services,Home Care Services,A56019
London Borough of Sutton,07/05/2023,50352504,867.98,Best at Home Domiciliary Care Services Ltd,SOCIAL SERVICES DAY CARE,Peoples Services,Home Care Services,A56019
London Borough of Sutton,07/05/2023,50352511,"3,336.00",Best at Home Domiciliary Care Services Ltd,SOCIAL SERVICES DAY CARE,Peoples Services,Home Care Services,A56019
London Borough of Sutton,07/05/2023,50352517,941.98,Best at Home Domiciliary Care Services Ltd,SOCIAL SERVICES DAY CARE,Peoples Services,Home Care Services,A56019
London Borough of Sutton,07/05/2023,50352519,"3,336.00",Best at Home Domiciliary Care Services Ltd,SOCIAL SERVICES DAY CARE,Peoples Services,Home Care Services,A56019
London Borough of Sutton,14/05/2023,50354695,"1,031.95",Best at Home Domiciliary Care Services Ltd,SOCIAL SERVICES DAY CARE,Peoples Services,Home Care Services,A56019
London Borough of Sutton,14/05/2023,50354697,580.00,Best at Home Domiciliary Care Services Ltd,SOCIAL SERVICES DAY CARE,Peoples Services,Home Care Services,A56019
London Borough of Sutton,14/05/2023,50354698,908.00,Best at Home Domiciliary Care Services Ltd,SOCIAL SERVICES DAY CARE,Peoples Services,Home Care Services,A56019
London Borough of Sutton,14/05/2023,50354736,157.50,Best at Home Domiciliary Care Services Ltd,SOCIAL SERVICES DAY CARE,Peoples Services,Home Care Services,A56019
London Borough of Sutton,14/05/2023,50354736,867.98,Best at Home Domiciliary Care Services Ltd,SOCIAL SERVICES DAY CARE,Peoples Services,Home Care Services,A56019
London Borough of Sutton,14/05/2023,50354744,"3,336.00",Best at Home Domiciliary Care Services Ltd,SOCIAL SERVICES DAY CARE,Peoples Services,Home Care Services,A56019
London Borough of Sutton,14/05/2023,50354751,"3,336.00",Best at Home Domiciliary Care Services Ltd,SOCIAL SERVICES DAY CARE,Peoples Services,Home Care Services,A56019
London Borough of Sutton,14/05/2023,50354762,867.98,Best at Home Domiciliary Care Services Ltd,SOCIAL SERVICES DAY CARE,Peoples Services,Home Care Services,A56019
London Borough of Sutton,14/05/2023,50354774,941.98,Best at Home Domiciliary Care Services Ltd,SOCIAL SERVICES DAY CARE,Peoples Services,Home Care Services,A56019
London Borough of Sutton,14/05/2023,50354787,"3,336.00",Best at Home Domiciliary Care Services Ltd,SOCIAL SERVICES DAY CARE,Peoples Services,Home Care Services,A56019
London Borough of Sutton,21/05/2023,50359660,901.97,Best at Home Domiciliary Care Services Ltd,SOCIAL SERVICES DAY CARE,Peoples Services,Home Care Services,A56019
London Borough of Sutton,21/05/2023,50359692,981.94,Best at Home Domiciliary Care Services Ltd,SOCIAL SERVICES DAY CARE,Peoples Services,Home Care Services,A56019
London Borough of Sutton,21/05/2023,50359736,542.50,Best at Home Domiciliary Care Services Ltd,SOCIAL SERVICES DAY CARE,Peoples Services,Home Care Services,A56019
London Borough of Sutton,21/05/2023,50359740,863.00,Best at Home Domiciliary Care Services Ltd,SOCIAL SERVICES DAY CARE,Peoples Services,Home Care Services,A56019
London Borough of Sutton,21/05/2023,50359760,150.00,Best at Home Domiciliary Care Services Ltd,SOCIAL SERVICES DAY CARE,Peoples Services,Home Care Services,A56019
London Borough of Sutton,21/05/2023,50359760,827.97,Best at Home Domiciliary Care Services Ltd,SOCIAL SERVICES DAY CARE,Peoples Services,Home Care Services,A56019
London Borough of Sutton,21/05/2023,50359767,"3,156.00",Best at Home Domiciliary Care Services Ltd,SOCIAL SERVICES DAY CARE,Peoples Services,Home Care Services,A56019
London Borough of Sutton,21/05/2023,50359771,827.97,Best at Home Domiciliary Care Services Ltd,SOCIAL SERVICES DAY CARE,Peoples Services,Home Care Services,A56019
London Borough of Sutton,21/05/2023,50359775,"3,156.00",Best at Home Domiciliary Care Services Ltd,SOCIAL SERVICES DAY CARE,Peoples Services,Home Care Services,A56019
London Borough of Sutton,30/04/2023,20049003,"11,085.00",Bestcourt UK Ltd,ACCOMMODATION BED & BREAKFAST,Environment Housing and Neighbourhoods,Bed & Breakfast,A56000
London Borough of Sutton,19/05/2023,50355550,"4,650.00",BETTER LIFE SUPPORTED LIVING LIMITED,SOCIAL SERVICES RESIDENTIAL,Peoples Services,One to One Care,A56108
London Borough of Sutton,26/04/2023,20048656,"2,400.00",Bevan Brittan LLP,LEGAL & PROFESSIONAL SERVICES,Environment Housing and Neighbourhoods,Staff Development And Training,A15022
London Borough of Sutton,30/05/2023,50355960,567.74,REDACTED - PERSONAL DATA,SOCIAL SERVICES - DIRECT PAYMENTS,Peoples Services,Holiday Allowances,A56013
London Borough of Sutton,16/05/2023,50354584,"22,667.00",BIG BEAR BESPOKE EDUCATION,CHILDREN'S SERVICES - SEN SERVICES,Peoples Services,Independent School Fees,A56002
London Borough of Sutton,11/05/2023,50350428,"1,103.40",Bizzy Bees Day Nursery,GRANTS & EX GRATIA PAYMENTS,Peoples Services,Payment - Nursery Funding,A51056
London Borough of Sutton,11/05/2023,50350742,"6,681.51",Bizzy Bees Day Nursery,GRANTS & EX GRATIA PAYMENTS,Peoples Services,Payment - Nursery Funding,A51056
London Borough of Sutton,27/04/2023,20048338,"35,000.00",Bloom Procurement Services Ltd,TEMP STAFF & CONSULTANCY,Resources,Professional Fees,A44066
London Borough of Sutton,10/05/2023,20049133,"29,500.00",Bloom Procurement Services Ltd,TEMP STAFF & CONSULTANCY,Resources,Professional Fees,A44066
London Borough of Sutton,30/04/2023,20048458,"2,652.77",BOC Limited,BUILDING MNTCE - SERVICES,Resources,Equipment And Materials Purchase,A40000
London Borough of Sutton,30/04/2023,20048600,"3,025.50",Box Twenty Consulting Engineers Ltd,TEMP STAFF & CONSULTANCY,HRA,External Fees and Consultants,C20000
London Borough of Sutton,12/05/2023,50354016,"2,400.00",Brama Care Ltd,SOCIAL SERVICES-HOME CARE,Peoples Services,Nursing Care - Ext Provider,A56025
London Borough of Sutton,12/05/2023,50354199,"4,391.37",Bridge House Care Centre,SOCIAL SERVICES RESIDENTIAL,Peoples Services,Nursing Care - Ext Provider,A56025
London Borough of Sutton,12/05/2023,50354199,"-1,019.52",Bridge House Care Centre,SOCIAL SERVICES RESIDENTIAL,Peoples Services,Nursing Care - 3rd party top up payment,A56023
London Borough of Sutton,12/05/2023,50354204,-750.40,Bridge House Care Centre,SOCIAL SERVICES RESIDENTIAL,Peoples Services,Nursing Care - 3rd party top up payment,A56023
London Borough of Sutton,12/05/2023,50354204,"3,734.88",Bridge House Care Centre,SOCIAL SERVICES RESIDENTIAL,Peoples Services,Nursing Care Short Term,A56026
London Borough of Sutton,12/05/2023,50354236,"4,978.76",Bridge House Care Centre,SOCIAL SERVICES RESIDENTIAL,Peoples Services,Nursing Care - Ext Provider,A56025
London Borough of Sutton,12/05/2023,50354236,-836.76,Bridge House Care Centre,SOCIAL SERVICES RESIDENTIAL,Peoples Services,Nursing Care - 3rd party top up payment,A56023
London Borough of Sutton,12/05/2023,50354251,"3,821.24",Bridge House Care Centre,SOCIAL SERVICES RESIDENTIAL,Peoples Services,Nursing Care - Ext Provider,A56025
London Borough of Sutton,12/05/2023,50354251,-836.76,Bridge House Care Centre,SOCIAL SERVICES RESIDENTIAL,Peoples Services,Nursing Care - 3rd party top up payment,A56023
London Borough of Sutton,12/05/2023,50354288,"3,821.24",Bridge House Care Centre,SOCIAL SERVICES RESIDENTIAL,Peoples Services,Nursing Care Short Term,A56026
London Borough of Sutton,12/05/2023,50354288,-836.76,Bridge House Care Centre,SOCIAL SERVICES RESIDENTIAL,Peoples Services,Nursing Care - 3rd party top up payment,A56023
London Borough of Sutton,12/05/2023,50354316,"-1,381.03",Bridge House Care Centre,SOCIAL SERVICES RESIDENTIAL,Peoples Services,Nursing Care - 3rd party top up payment,A56023
London Borough of Sutton,12/05/2023,50354325,"4,301.90",Bridge House Care Centre,SOCIAL SERVICES RESIDENTIAL,Peoples Services,Nursing Care - Ext Provider,A56025
London Borough of Sutton,12/05/2023,50354325,-952.23,Bridge House Care Centre,SOCIAL SERVICES RESIDENTIAL,Peoples Services,Nursing Care - 3rd party top up payment,A56023
London Borough of Sutton,12/05/2023,50354349,"4,736.76",Bridge House Care Centre,SOCIAL SERVICES RESIDENTIAL,Peoples Services,Nursing Care - Ext Provider,A56025
London Borough of Sutton,12/05/2023,50354349,-836.76,Bridge House Care Centre,SOCIAL SERVICES RESIDENTIAL,Peoples Services,Nursing Care - 3rd party top up payment,A56023
London Borough of Sutton,12/05/2023,50354427,-952.23,Bridge House Care Centre,SOCIAL SERVICES RESIDENTIAL,Peoples Services,Nursing Care - 3rd party top up payment,A56023
London Borough of Sutton,12/05/2023,50354427,"4,237.77",Bridge House Care Centre,SOCIAL SERVICES RESIDENTIAL,Peoples Services,Nursing Care - Ext Provider,A56025
London Borough of Sutton,12/05/2023,50354436,-925.43,Bridge House Care Centre,SOCIAL SERVICES RESIDENTIAL,Peoples Services,Nursing Care - 3rd party top up payment,A56023
London Borough of Sutton,12/05/2023,50354437,"4,302.54",Bridge House Care Centre,SOCIAL SERVICES RESIDENTIAL,Peoples Services,Nursing Care - Ext Provider,A56025
London Borough of Sutton,12/05/2023,50354483,"4,237.77",Bridge House Care Centre,SOCIAL SERVICES RESIDENTIAL,Peoples Services,Nursing Care - Ext Provider,A56025
London Borough of Sutton,12/05/2023,50354483,-925.43,Bridge House Care Centre,SOCIAL SERVICES RESIDENTIAL,Peoples Services,Nursing Care - 3rd party top up payment,A56023
London Borough of Sutton,12/05/2023,50354496,"6,436.76",Bridge House Care Centre,SOCIAL SERVICES RESIDENTIAL,Peoples Services,Nursing Care - Ext Provider,A56025
London Borough of Sutton,12/05/2023,50354496,"-1,381.03",Bridge House Care Centre,SOCIAL SERVICES RESIDENTIAL,Peoples Services,Nursing Care - 3rd party top up payment,A56023
London Borough of Sutton,12/05/2023,50354497,"4,310.95",Bridge House Care Centre,SOCIAL SERVICES RESIDENTIAL,Peoples Services,Nursing Care - Ext Provider,A56025
London Borough of Sutton,12/05/2023,50354497,-960.64,Bridge House Care Centre,SOCIAL SERVICES RESIDENTIAL,Peoples Services,Nursing Care - 3rd party top up payment,A56023
London Borough of Sutton,12/05/2023,50354504,"4,237.77",Bridge House Care Centre,SOCIAL SERVICES RESIDENTIAL,Peoples Services,Nursing Care - Ext Provider,A56025
London Borough of Sutton,12/05/2023,50354504,-925.43,Bridge House Care Centre,SOCIAL SERVICES RESIDENTIAL,Peoples Services,Nursing Care - 3rd party top up payment,A56023
London Borough of Sutton,12/05/2023,50354527,"4,342.36",Bridge House Care Centre,SOCIAL SERVICES RESIDENTIAL,Peoples Services,Nursing Care - Ext Provider,A56025
London Borough of Sutton,12/05/2023,50354527,-996.93,Bridge House Care Centre,SOCIAL SERVICES RESIDENTIAL,Peoples Services,Nursing Care - 3rd party top up payment,A56023
London Borough of Sutton,12/05/2023,50354535,478.15,Bridge House Care Centre,SOCIAL SERVICES RESIDENTIAL,Peoples Services,Nursing Care - 3rd party top up payment,A56023
London Borough of Sutton,12/05/2023,50354535,"-2,228.57",Bridge House Care Centre,SOCIAL SERVICES RESIDENTIAL,Peoples Services,Respite Care,A56116
London Borough of Sutton,12/05/2023,50354539,"4,302.54",Bridge House Care Centre,SOCIAL SERVICES RESIDENTIAL,Peoples Services,Nursing Care - Ext Provider,A56025
London Borough of Sutton,12/05/2023,50354539,455.60,Bridge House Care Centre,SOCIAL SERVICES RESIDENTIAL,Peoples Services,Nursing Care - 3rd party top up payment,A56023
London Borough of Sutton,30/04/2023,50351158,"3,749.99",Bridgestock Housing Services,CHILDREN'S SERVICES - RESIDENTIAL,Peoples Services,Approved Lodgings,A61000
London Borough of Sutton,30/04/2023,50351158,169.65,Bridgestock Housing Services,CHILDREN'S SERVICES - RESIDENTIAL,Peoples Services,Approved Lodgings,A61000
London Borough of Sutton,01/04/2023,50351159,"1,500.01",Bridgestock Housing Services,CHILDREN'S SERVICES - RESIDENTIAL,Peoples Services,Approved Lodgings,A61000
London Borough of Sutton,01/04/2023,50351159,89.28,Bridgestock Housing Services,CHILDREN'S SERVICES - RESIDENTIAL,Peoples Services,Approved Lodgings,A61000
London Borough of Sutton,11/05/2023,50350824,504.90,REDACTED - PERSONAL DATA,TEMP STAFF & CONSULTANCY,Peoples Services,Payment - Nursery Funding,A51056
London Borough of Sutton,01/04/2023,50351121,"3,385.71",Bridging Gaps Limited,CHILDREN'S SERVICES - FOSTERING & ADOPTION SERVICES,Peoples Services,Foster Parents Support,A44110
London Borough of Sutton,01/04/2023,50351122,"3,385.71",Bridging Gaps Limited,CHILDREN'S SERVICES - FOSTERING & ADOPTION SERVICES,Peoples Services,Foster Parents Support,A44110
London Borough of Sutton,24/03/2023,50351115,"3,910.71",Bridging the Gap,CHILDREN'S SERVICE - OTHER,Peoples Services,Approved Lodgings,A61000
London Borough of Sutton,01/04/2023,50351144,"3,062.10",Brighter Futures Foster Care Ltd,CHILDREN'S SERVICES - FOSTERING & ADOPTION SERVICES,Peoples Services,Foster Parents Support,A44110
London Borough of Sutton,01/04/2023,50351145,"3,393.30",Brighter Futures Foster Care Ltd,CHILDREN'S SERVICES - FOSTERING & ADOPTION SERVICES,Peoples Services,Foster Parents Support,A44110
London Borough of Sutton,04/05/2023,50352062,"1,832.36",Brit School,GRANTS & EX GRATIA PAYMENTS,Peoples Services,Independent School Fees,A56002
London Borough of Sutton,21/04/2023,20049055,771.96,British Gas,UTILITIES,HRA,Electricity,A21000
London Borough of Sutton,20/04/2023,20049056,"1,054.33",British Gas,UTILITIES,Resources,Gas,A21003
London Borough of Sutton,03/05/2023,20049203,"2,310.97",British Gas,UTILITIES,Resources,Electricity,A21000
London Borough of Sutton,12/05/2023,50354107,-772.64,British Home & Hospital For Incurables,SOCIAL SERVICES RESIDENTIAL,Peoples Services,Nursing Care - Client Cont ( Net paymt ),A56024
London Borough of Sutton,12/05/2023,50354107,"2,591.80",British Home & Hospital For Incurables,SOCIAL SERVICES RESIDENTIAL,Peoples Services,Nursing Care - Ext Provider,A56025
London Borough of Sutton,25/04/2023,20048095,720.00,British Parking Association,SUBSCRIPTIONS & PUBLICATIONS,Environment Housing and Neighbourhoods,Subscriptions,A47010
London Borough of Sutton,22/04/2023,20048546,830.00,Browne Jacobson LLP Office Account,FINANCIAL / INSURANCE INSTNS,Resources,Professional Fees,A44066
London Borough of Sutton,04/05/2023,50352074,"1,833.29",Brunel SEN Multi Academy Trust,CHILDREN'S SERVICES - SEN SERVICES,Peoples Services,Top-up Funding,A51016
London Borough of Sutton,21/04/2023,20047950,"1,153.74",BT Business Direct Ltd,BUSINESS & COMPUTER SYSTEMS,Health and Wellbeing,Equipment And Materials Purchase,A40000
London Borough of Sutton,02/05/2023,20048599,"30,210.00",BuildVantage Limited,ACCOMMODATION BED & BREAKFAST,Environment Housing and Neighbourhoods,Bed & Breakfast,A56000
London Borough of Sutton,01/05/2023,50349375,600.00,Bumpsa Daisies Nurserys,GRANTS & EX GRATIA PAYMENTS,Peoples Services,SEND Inclusion funding,A60038
London Borough of Sutton,01/05/2023,50349376,600.00,Bumpsa Daisies Nurserys,GRANTS & EX GRATIA PAYMENTS,Peoples Services,SEND Inclusion funding,A60038
London Borough of Sutton,11/05/2023,50350637,"12,783.60",Bumpsa Daisies Nurserys,GRANTS & EX GRATIA PAYMENTS,Peoples Services,Payment - Nursery Funding,A51056
London Borough of Sutton,11/05/2023,50350762,"4,563.00",Bumpsa Daisies Nurserys,GRANTS & EX GRATIA PAYMENTS,Peoples Services,Payment - Nursery Funding,A51056
London Borough of Sutton,16/05/2023,50353227,"57,216.06",Bupa Care Services,SOCIAL SERVICES RESIDENTIAL,Peoples Services,Nursing Care Short Term,A56026
London Borough of Sutton,16/05/2023,50353227,"-1,436.76",Bupa Care Services,SOCIAL SERVICES RESIDENTIAL,Peoples Services,Nursing Care - 3rd party top up payment,A56023
London Borough of Sutton,12/05/2023,50354097,"2,014.65",Bupa Care Services,SOCIAL SERVICES RESIDENTIAL,Peoples Services,Nursing Care - Ext Provider,A56025
London Borough of Sutton,12/05/2023,50354097,-408.03,Bupa Care Services,SOCIAL SERVICES RESIDENTIAL,Peoples Services,Nursing Care - 3rd party top up payment,A56023
London Borough of Sutton,12/05/2023,50354100,"7,084.60",Bupa Care Services,SOCIAL SERVICES RESIDENTIAL,Peoples Services,Nursing Care Short Term,A56026
London Borough of Sutton,12/05/2023,50354100,-836.76,Bupa Care Services,SOCIAL SERVICES RESIDENTIAL,Peoples Services,Nursing Care - 3rd party top up payment,A56023
London Borough of Sutton,12/05/2023,50354145,"4,827.57",Bupa Care Services,SOCIAL SERVICES RESIDENTIAL,Peoples Services,Nursing Care - Ext Provider,A56025
London Borough of Sutton,12/05/2023,50354282,"3,821.24",Bupa Care Services,SOCIAL SERVICES RESIDENTIAL,Peoples Services,Nursing Care Short Term,A56026
London Borough of Sutton,12/05/2023,50354282,-836.76,Bupa Care Services,SOCIAL SERVICES RESIDENTIAL,Peoples Services,Nursing Care - 3rd party top up payment,A56023
London Borough of Sutton,12/05/2023,50354284,508.03,Bupa Care Services,SOCIAL SERVICES RESIDENTIAL,Peoples Services,Nursing Care - 3rd party top up payment,A56023
London Borough of Sutton,12/05/2023,50354284,"4,253.19",Bupa Care Services,SOCIAL SERVICES RESIDENTIAL,Peoples Services,Nursing Care - Ext Provider,A56025
London Borough of Sutton,12/05/2023,50354320,"-1,381.03",Bupa Care Services,SOCIAL SERVICES RESIDENTIAL,Peoples Services,Nursing Care - 3rd party top up payment,A56023
London Borough of Sutton,11/05/2023,50350640,"15,533.28",Busy Bees Day Nurseries Ltd,GRANTS & EX GRATIA PAYMENTS,Peoples Services,Payment - Nursery Funding,A51056
London Borough of Sutton,11/05/2023,50350765,608.40,Busy Bees Day Nurseries Ltd,GRANTS & EX GRATIA PAYMENTS,Peoples Services,Payment - Nursery Funding,A51056
London Borough of Sutton,11/05/2023,50350639,"13,024.80",Busy Bees Day Nurseries Ltd,GRANTS & EX GRATIA PAYMENTS,Peoples Services,Payment - Nursery Funding,A51056
London Borough of Sutton,12/05/2023,50354061,"8,118.48",Butterfly's Care Homes Ltd,SOCIAL SERVICES RESIDENTIAL,Peoples Services,Residential Care - Ext Provider,A56114
London Borough of Sutton,01/05/2023,50351119,"2,879.70",By The Bridge Ltd,CHILDREN'S SERVICES - FOSTERING & ADOPTION SERVICES,Peoples Services,Foster Parents Support,A44110
London Borough of Sutton,01/05/2023,50351120,"2,879.70",By The Bridge Ltd,CHILDREN'S SERVICES - FOSTERING & ADOPTION SERVICES,Peoples Services,Foster Parents Support,A44110
London Borough of Sutton,01/05/2023,50351207,"4,516.50",By The Bridge Ltd,CHILDREN'S SERVICES - FOSTERING & ADOPTION SERVICES,Peoples Services,Foster Parents Support,A44110
London Borough of Sutton,30/05/2023,50355963,567.74,REDACTED - PERSONAL DATA,FOSTER PARENTS,Peoples Services,Holiday Allowances,A56013
London Borough of Sutton,20/03/2023,50351114,"23,588.40",Calcot Services for Children Ltd,CHILDREN'S SERVICES - FOSTERING & ADOPTION SERVICES,Peoples Services,Residential Care-Children,A56115
London Borough of Sutton,24/03/2023,50351113,"19,457.10",Cambian Childcare Ltd,CHILDREN'S SERVICES - FOSTERING & ADOPTION SERVICES,Peoples Services,Residential Care-Children,A56115
London Borough of Sutton,24/03/2023,50351117,"31,242.86",Cambian Childcare Ltd,CHILDREN'S SERVICES - FOSTERING & ADOPTION SERVICES,Peoples Services,Residential Care-Children,A56115
London Borough of Sutton,25/05/2023,50360288,"4,071.43",Cambian Childcare Ltd,CHILDREN'S SERVICES - FOSTERING & ADOPTION SERVICES,Peoples Services,Independent School Fees,A56002
London Borough of Sutton,12/05/2023,50354071,"4,060.72",Canterbury Oast Trust,SOCIAL SERVICES RESIDENTIAL,Peoples Services,Residential Care - Ext Provider,A56114
London Borough of Sutton,12/05/2023,50354071,204.72,Canterbury Oast Trust,SOCIAL SERVICES RESIDENTIAL,Peoples Services,One to One Care,A56108
London Borough of Sutton,12/05/2023,50354071,-965.84,Canterbury Oast Trust,SOCIAL SERVICES RESIDENTIAL,Peoples Services,Residential Care - Client Cont ( Net Paymt ),A56113
London Borough of Sutton,05/05/2023,50353962,"36,428.40",Canterbury Support Ltd,CHILDREN'S SERVICE - OTHER,Peoples Services,Residential Care-Children,A56115
London Borough of Sutton,15/05/2023,50356780,"6,251.37",Capel Manor College,GRANTS & EX GRATIA PAYMENTS,Peoples Services,Top-up Funding,A51016
London Borough of Sutton,15/05/2023,50356781,"6,251.37",Capel Manor College,GRANTS & EX GRATIA PAYMENTS,Peoples Services,Top-up Funding,A51016
London Borough of Sutton,08/11/2022,50356782,"6,126.07",Capel Manor College,GRANTS & EX GRATIA PAYMENTS,Peoples Services,Top-up Funding,A51016
London Borough of Sutton,30/04/2023,50351094,"5,784.60",Capstone Foster Care (South East) Ltd,CHILDREN'S SERVICES - FOSTERING & ADOPTION SERVICES,Peoples Services,Foster Parents Support,A44110
London Borough of Sutton,30/04/2023,50351209,"5,927.70",Capstone Foster Care (South East) Ltd,CHILDREN'S SERVICES - FOSTERING & ADOPTION SERVICES,Peoples Services,Foster Parents Support,A44110
London Borough of Sutton,02/05/2023,50351931,"3,783.60",Care Advocates Ltd,MANAGEMENT & TRAINING SERVICES,Peoples Services,Supported Living,A56088
London Borough of Sutton,02/05/2023,50351931,"2,880.00",Care Advocates Ltd,MANAGEMENT & TRAINING SERVICES,Peoples Services,Supported Living,A56088
London Borough of Sutton,02/05/2023,50351931,"2,490.30",Care Advocates Ltd,MANAGEMENT & TRAINING SERVICES,Peoples Services,Supported Living,A56088
London Borough of Sutton,02/05/2023,50351932,"-3,517.80",Care Advocates Ltd,MANAGEMENT & TRAINING SERVICES,Peoples Services,Supported Living,A56088
London Borough of Sutton,02/05/2023,50351932,"6,336.00",Care Advocates Ltd,MANAGEMENT & TRAINING SERVICES,Peoples Services,Supported Living,A56088
London Borough of Sutton,02/05/2023,50351932,"2,490.30",Care Advocates Ltd,MANAGEMENT & TRAINING SERVICES,Peoples Services,Supported Living,A56088
London Borough of Sutton,02/05/2023,50351942,"2,576.96",Care Advocates Ltd,MANAGEMENT & TRAINING SERVICES,Peoples Services,Supported Living,A56088
London Borough of Sutton,02/05/2023,50351942,"1,504.20",Care Advocates Ltd,MANAGEMENT & TRAINING SERVICES,Peoples Services,Supported Living,A56088
London Borough of Sutton,02/05/2023,50351942,"1,202.44",Care Advocates Ltd,MANAGEMENT & TRAINING SERVICES,Peoples Services,Supported Living,A56088
London Borough of Sutton,02/05/2023,50352049,"1,742.61",Care Advocates Ltd,MANAGEMENT & TRAINING SERVICES,Peoples Services,Supported Living,A56088
London Borough of Sutton,02/05/2023,50352049,"2,386.29",Care Advocates Ltd,MANAGEMENT & TRAINING SERVICES,Peoples Services,Supported Living,A56088
London Borough of Sutton,02/05/2023,50352049,"2,490.30",Care Advocates Ltd,MANAGEMENT & TRAINING SERVICES,Peoples Services,Supported Living,A56088
London Borough of Sutton,12/05/2023,50354017,"3,400.00",Care Assist Ltd.,SOCIAL SERVICES RESIDENTIAL,Peoples Services,Residential Care - Ext Provider,A56114
London Borough of Sutton,12/05/2023,50354017,"-1,700.00",Care Assist Ltd.,SOCIAL SERVICES RESIDENTIAL,Peoples Services,Nursing Care - 3rd party top up payment,A56023
London Borough of Sutton,12/05/2023,50354154,"3,320.32",Care Concern Group,SOCIAL SERVICES RESIDENTIAL,Peoples Services,Residential Care - Ext Provider,A56114
London Borough of Sutton,19/05/2023,50355592,"2,070.36",Care Connexions UK Limited,SOCIAL SERVICES RESIDENTIAL,Peoples Services,One to One Care,A56108
London Borough of Sutton,12/05/2023,50354024,"3,768.36",Care Direct Uk Ltd ,SOCIAL SERVICES RESIDENTIAL,Peoples Services,Residential Care - Ext Provider,A56114
London Borough of Sutton,30/04/2023,50351165,"43,230.00",Care Hubz Ltd,CHILDREN'S SERVICE - OTHER,Peoples Services,Residential Care-Children,A56115
London Borough of Sutton,23/04/2023,50351449,364.02,Care More Ltd,SOCIAL SERVICES RESIDENTIAL,Peoples Services,Home Care Services,A56019
London Borough of Sutton,23/04/2023,50351449,204.75,Care More Ltd,SOCIAL SERVICES RESIDENTIAL,Peoples Services,Home Care Services,A56019
London Borough of Sutton,30/04/2023,50351450,364.02,Care More Ltd,SOCIAL SERVICES RESIDENTIAL,Peoples Services,Home Care Services,A56019
London Borough of Sutton,30/04/2023,50351450,204.75,Care More Ltd,SOCIAL SERVICES RESIDENTIAL,Peoples Services,Home Care Services,A56019
London Borough of Sutton,23/04/2023,50351451,917.07,Care More Ltd,SOCIAL SERVICES RESIDENTIAL,Peoples Services,Home Care Services,A56019
London Borough of Sutton,30/04/2023,50351452,917.07,Care More Ltd,SOCIAL SERVICES RESIDENTIAL,Peoples Services,Home Care Services,A56019
London Borough of Sutton,23/04/2023,50351458,962.61,Care More Ltd,SOCIAL SERVICES RESIDENTIAL,Peoples Services,Home Care Services,A56019
London Borough of Sutton,30/04/2023,50351459,962.61,Care More Ltd,SOCIAL SERVICES RESIDENTIAL,Peoples Services,Home Care Services,A56019
London Borough of Sutton,23/04/2023,50351475,773.54,Care More Ltd,SOCIAL SERVICES RESIDENTIAL,Peoples Services,Home Care Services,A56019
London Borough of Sutton,30/04/2023,50351476,773.54,Care More Ltd,SOCIAL SERVICES RESIDENTIAL,Peoples Services,Home Care Services,A56019
London Borough of Sutton,23/04/2023,50351484,728.00,Care More Ltd,SOCIAL SERVICES RESIDENTIAL,Peoples Services,Home Care Services,A56019
London Borough of Sutton,30/04/2023,50351485,728.00,Care More Ltd,SOCIAL SERVICES RESIDENTIAL,Peoples Services,Home Care Services,A56019
London Borough of Sutton,23/04/2023,50351487,20.00,Care More Ltd,SOCIAL SERVICES RESIDENTIAL,Peoples Services,Home Care Services,A56019
London Borough of Sutton,23/04/2023,50351487,917.07,Care More Ltd,SOCIAL SERVICES RESIDENTIAL,Peoples Services,Home Care Services,A56019
London Borough of Sutton,30/04/2023,50351488,20.00,Care More Ltd,SOCIAL SERVICES RESIDENTIAL,Peoples Services,Home Care Services,A56019
London Borough of Sutton,30/04/2023,50351488,917.07,Care More Ltd,SOCIAL SERVICES RESIDENTIAL,Peoples Services,Home Care Services,A56019
London Borough of Sutton,23/04/2023,50351495,773.54,Care More Ltd,SOCIAL SERVICES RESIDENTIAL,Peoples Services,Home Care Services,A56019
London Borough of Sutton,23/04/2023,50351495,45.50,Care More Ltd,SOCIAL SERVICES RESIDENTIAL,Peoples Services,Home Care Services,A56019
London Borough of Sutton,30/04/2023,50351496,773.54,Care More Ltd,SOCIAL SERVICES RESIDENTIAL,Peoples Services,Home Care Services,A56019
London Borough of Sutton,30/04/2023,50351496,45.50,Care More Ltd,SOCIAL SERVICES RESIDENTIAL,Peoples Services,Home Care Services,A56019
London Borough of Sutton,23/04/2023,50351586,637.07,Care More Ltd,SOCIAL SERVICES RESIDENTIAL,Peoples Services,Home Care Services,A56019
London Borough of Sutton,30/04/2023,50351587,637.07,Care More Ltd,SOCIAL SERVICES RESIDENTIAL,Peoples Services,Home Care Services,A56019
London Borough of Sutton,23/04/2023,50351624,893.54,Care More Ltd,SOCIAL SERVICES RESIDENTIAL,Peoples Services,Home Care Services,A56019
London Borough of Sutton,30/04/2023,50351625,893.54,Care More Ltd,SOCIAL SERVICES RESIDENTIAL,Peoples Services,Home Care Services,A56019
London Borough of Sutton,27/02/2023,50353481,568.77,Care More Ltd,SOCIAL SERVICES RESIDENTIAL,Peoples Services,Home Care Services,A56019
London Borough of Sutton,06/02/2023,50353483,568.77,Care More Ltd,SOCIAL SERVICES RESIDENTIAL,Peoples Services,Home Care Services,A56019
London Borough of Sutton,13/02/2023,50353484,568.77,Care More Ltd,SOCIAL SERVICES RESIDENTIAL,Peoples Services,Home Care Services,A56019
London Borough of Sutton,13/02/2023,50353486,917.07,Care More Ltd,SOCIAL SERVICES RESIDENTIAL,Peoples Services,Home Care Services,A56019
London Borough of Sutton,06/02/2023,50353487,917.07,Care More Ltd,SOCIAL SERVICES RESIDENTIAL,Peoples Services,Home Care Services,A56019
London Borough of Sutton,27/02/2023,50353488,917.07,Care More Ltd,SOCIAL SERVICES RESIDENTIAL,Peoples Services,Home Care Services,A56019
London Borough of Sutton,23/04/2023,50353489,813.78,Care More Ltd,SOCIAL SERVICES RESIDENTIAL,Peoples Services,Home Care Services,A56019
London Borough of Sutton,30/04/2023,50353490,860.01,Care More Ltd,SOCIAL SERVICES RESIDENTIAL,Peoples Services,Home Care Services,A56019
London Borough of Sutton,23/04/2023,50353496,523.28,Care More Ltd,SOCIAL SERVICES RESIDENTIAL,Peoples Services,Home Care Services,A56019
London Borough of Sutton,30/04/2023,50353497,796.30,Care More Ltd,SOCIAL SERVICES RESIDENTIAL,Peoples Services,Home Care Services,A56019
London Borough of Sutton,23/04/2023,50353500,819.07,Care More Ltd,SOCIAL SERVICES RESIDENTIAL,Peoples Services,Home Care Services,A56019
London Borough of Sutton,30/04/2023,50353501,819.07,Care More Ltd,SOCIAL SERVICES RESIDENTIAL,Peoples Services,Home Care Services,A56019
London Borough of Sutton,07/05/2023,50353512,893.54,Care More Ltd,SOCIAL SERVICES RESIDENTIAL,Peoples Services,Home Care Services,A56019
London Borough of Sutton,07/05/2023,50353519,364.02,Care More Ltd,SOCIAL SERVICES RESIDENTIAL,Peoples Services,Home Care Services,A56019
London Borough of Sutton,07/05/2023,50353519,204.75,Care More Ltd,SOCIAL SERVICES RESIDENTIAL,Peoples Services,Home Care Services,A56019
London Borough of Sutton,07/05/2023,50353520,917.07,Care More Ltd,SOCIAL SERVICES RESIDENTIAL,Peoples Services,Home Care Services,A56019
London Borough of Sutton,07/05/2023,50353569,962.61,Care More Ltd,SOCIAL SERVICES RESIDENTIAL,Peoples Services,Home Care Services,A56019
London Borough of Sutton,07/05/2023,50353609,773.54,Care More Ltd,SOCIAL SERVICES RESIDENTIAL,Peoples Services,Home Care Services,A56019
London Borough of Sutton,07/05/2023,50353617,728.00,Care More Ltd,SOCIAL SERVICES RESIDENTIAL,Peoples Services,Home Care Services,A56019
London Borough of Sutton,07/05/2023,50353619,917.07,Care More Ltd,SOCIAL SERVICES RESIDENTIAL,Peoples Services,Home Care Services,A56019
London Borough of Sutton,07/05/2023,50353619,33.00,Care More Ltd,SOCIAL SERVICES RESIDENTIAL,Peoples Services,Home Care Services,A56019
London Borough of Sutton,07/05/2023,50353741,637.07,Care More Ltd,SOCIAL SERVICES RESIDENTIAL,Peoples Services,Home Care Services,A56019
London Borough of Sutton,14/05/2023,50354647,893.54,Care More Ltd,SOCIAL SERVICES RESIDENTIAL,Peoples Services,Home Care Services,A56019
London Borough of Sutton,14/05/2023,50354666,917.07,Care More Ltd,SOCIAL SERVICES RESIDENTIAL,Peoples Services,Home Care Services,A56019
London Borough of Sutton,14/05/2023,50354668,962.61,Care More Ltd,SOCIAL SERVICES RESIDENTIAL,Peoples Services,Home Care Services,A56019
London Borough of Sutton,14/05/2023,50354670,364.02,Care More Ltd,SOCIAL SERVICES RESIDENTIAL,Peoples Services,Home Care Services,A56019
London Borough of Sutton,14/05/2023,50354670,204.75,Care More Ltd,SOCIAL SERVICES RESIDENTIAL,Peoples Services,Home Care Services,A56019
London Borough of Sutton,14/05/2023,50354691,773.54,Care More Ltd,SOCIAL SERVICES RESIDENTIAL,Peoples Services,Home Care Services,A56019
London Borough of Sutton,14/05/2023,50354693,728.00,Care More Ltd,SOCIAL SERVICES RESIDENTIAL,Peoples Services,Home Care Services,A56019
London Borough of Sutton,14/05/2023,50354696,917.07,Care More Ltd,SOCIAL SERVICES RESIDENTIAL,Peoples Services,Home Care Services,A56019
London Borough of Sutton,14/05/2023,50354696,20.00,Care More Ltd,SOCIAL SERVICES RESIDENTIAL,Peoples Services,Home Care Services,A56019
London Borough of Sutton,14/05/2023,50354785,637.07,Care More Ltd,SOCIAL SERVICES RESIDENTIAL,Peoples Services,Home Care Services,A56019
London Borough of Sutton,21/05/2023,50355993,728.00,Care More Ltd,SOCIAL SERVICES RESIDENTIAL,Peoples Services,Home Care Services,A56019
London Borough of Sutton,21/05/2023,50356031,637.07,Care More Ltd,SOCIAL SERVICES RESIDENTIAL,Peoples Services,Home Care Services,A56019
London Borough of Sutton,21/05/2023,50356048,893.54,Care More Ltd,SOCIAL SERVICES RESIDENTIAL,Peoples Services,Home Care Services,A56019
London Borough of Sutton,08/05/2023,50356051,659.80,Care More Ltd,SOCIAL SERVICES RESIDENTIAL,Peoples Services,Home Care Services,A56019
London Borough of Sutton,08/05/2023,50356051,136.50,Care More Ltd,SOCIAL SERVICES RESIDENTIAL,Peoples Services,Home Care Services,A56019
London Borough of Sutton,15/05/2023,50356052,659.80,Care More Ltd,SOCIAL SERVICES RESIDENTIAL,Peoples Services,Home Care Services,A56019
London Borough of Sutton,15/05/2023,50356052,136.50,Care More Ltd,SOCIAL SERVICES RESIDENTIAL,Peoples Services,Home Care Services,A56019
London Borough of Sutton,21/05/2023,50356053,728.00,Care More Ltd,SOCIAL SERVICES RESIDENTIAL,Peoples Services,Home Care Services,A56019
London Borough of Sutton,21/05/2023,50356053,136.50,Care More Ltd,SOCIAL SERVICES RESIDENTIAL,Peoples Services,Home Care Services,A56019
London Borough of Sutton,21/05/2023,50356058,364.02,Care More Ltd,SOCIAL SERVICES RESIDENTIAL,Peoples Services,Home Care Services,A56019
London Borough of Sutton,21/05/2023,50356058,204.75,Care More Ltd,SOCIAL SERVICES RESIDENTIAL,Peoples Services,Home Care Services,A56019
London Borough of Sutton,21/05/2023,50356059,917.07,Care More Ltd,SOCIAL SERVICES RESIDENTIAL,Peoples Services,Home Care Services,A56019
London Borough of Sutton,21/05/2023,50356061,962.61,Care More Ltd,SOCIAL SERVICES RESIDENTIAL,Peoples Services,Home Care Services,A56019
London Borough of Sutton,21/05/2023,50356072,273.00,Care More Ltd,SOCIAL SERVICES RESIDENTIAL,Peoples Services,Home Care Services,A56019
London Borough of Sutton,21/05/2023,50356072,"1,022.00",Care More Ltd,SOCIAL SERVICES RESIDENTIAL,Peoples Services,Home Care Services,A56019
London Borough of Sutton,21/05/2023,50356092,773.54,Care More Ltd,SOCIAL SERVICES RESIDENTIAL,Peoples Services,Home Care Services,A56019
London Borough of Sutton,21/05/2023,50356093,917.07,Care More Ltd,SOCIAL SERVICES RESIDENTIAL,Peoples Services,Home Care Services,A56019
London Borough of Sutton,21/05/2023,50356093,20.00,Care More Ltd,SOCIAL SERVICES RESIDENTIAL,Peoples Services,Home Care Services,A56019
London Borough of Sutton,08/05/2023,50356120,273.00,Care More Ltd,SOCIAL SERVICES RESIDENTIAL,Peoples Services,Home Care Services,A56019
London Borough of Sutton,08/05/2023,50356120,602.00,Care More Ltd,SOCIAL SERVICES RESIDENTIAL,Peoples Services,Home Care Services,A56019
London Borough of Sutton,29/11/2022,50356128,819.14,Care More Ltd,SOCIAL SERVICES RESIDENTIAL,Peoples Services,Home Care Services,A56019
London Borough of Sutton,29/11/2022,50356128,363.86,Care More Ltd,SOCIAL SERVICES RESIDENTIAL,Peoples Services,Home Care Services,A56019
London Borough of Sutton,14/12/2022,50356129,819.14,Care More Ltd,SOCIAL SERVICES RESIDENTIAL,Peoples Services,Home Care Services,A56019
London Borough of Sutton,14/12/2022,50356129,363.86,Care More Ltd,SOCIAL SERVICES RESIDENTIAL,Peoples Services,Home Care Services,A56019
London Borough of Sutton,09/01/2023,50356131,"1,267.50",Care More Ltd,SOCIAL SERVICES RESIDENTIAL,Peoples Services,Home Care Services,A56019
London Borough of Sutton,23/01/2023,50356132,"1,547.00",Care More Ltd,SOCIAL SERVICES RESIDENTIAL,Peoples Services,Home Care Services,A56019
London Borough of Sutton,15/05/2023,50356133,-147.00,Care More Ltd,SOCIAL SERVICES RESIDENTIAL,Peoples Services,Home Care Services,A56019
London Borough of Sutton,15/05/2023,50356133,"1,022.00",Care More Ltd,SOCIAL SERVICES RESIDENTIAL,Peoples Services,Home Care Services,A56019
London Borough of Sutton,09/01/2023,50356153,773.50,Care More Ltd,SOCIAL SERVICES RESIDENTIAL,Peoples Services,Home Care Services,A56019
London Borough of Sutton,07/05/2023,50356161,819.07,Care More Ltd,SOCIAL SERVICES RESIDENTIAL,Peoples Services,Home Care Services,A56019
London Borough of Sutton,14/05/2023,50356171,819.07,Care More Ltd,SOCIAL SERVICES RESIDENTIAL,Peoples Services,Home Care Services,A56019
London Borough of Sutton,12/05/2023,50354004,"4,400.00",Care UK Homecare Ltd,SOCIAL SERVICES RESIDENTIAL,Peoples Services,Residential Care - Ext Provider,A56114
London Borough of Sutton,12/05/2023,50354007,"4,772.96",Care UK Homecare Ltd,SOCIAL SERVICES RESIDENTIAL,Peoples Services,Residential Care - Ext Provider,A56114
London Borough of Sutton,12/05/2023,50354007,-438.80,Care UK Homecare Ltd,SOCIAL SERVICES RESIDENTIAL,Peoples Services,Residential Care - Client Cont ( Net Paymt ),A56113
London Borough of Sutton,12/05/2023,50354185,"4,324.62",Care UK Homecare Ltd,SOCIAL SERVICES RESIDENTIAL,Peoples Services,Nursing Care - Ext Provider,A56025
London Borough of Sutton,12/05/2023,50354185,"-1,002.61",Care UK Homecare Ltd,SOCIAL SERVICES RESIDENTIAL,Peoples Services,Nursing Care - 3rd party top up payment,A56023
London Borough of Sutton,12/05/2023,50354261,-836.76,Care UK Homecare Ltd,SOCIAL SERVICES RESIDENTIAL,Peoples Services,Nursing Care - 3rd party top up payment,A56023
London Borough of Sutton,12/05/2023,50354261,"4,560.00",Care UK Homecare Ltd,SOCIAL SERVICES RESIDENTIAL,Peoples Services,Nursing Care Short Term,A56026
London Borough of Sutton,12/05/2023,50354273,-836.76,Care UK Homecare Ltd,SOCIAL SERVICES RESIDENTIAL,Peoples Services,Nursing Care - 3rd party top up payment,A56023
London Borough of Sutton,12/05/2023,50354273,"4,560.00",Care UK Homecare Ltd,SOCIAL SERVICES RESIDENTIAL,Peoples Services,Nursing Care Short Term,A56026
London Borough of Sutton,12/05/2023,50354299,"4,560.00",Care UK Homecare Ltd,SOCIAL SERVICES RESIDENTIAL,Peoples Services,Nursing Care - Ext Provider,A56025
London Borough of Sutton,12/05/2023,50354299,-836.76,Care UK Homecare Ltd,SOCIAL SERVICES RESIDENTIAL,Peoples Services,Nursing Care - 3rd party top up payment,A56023
London Borough of Sutton,26/04/2023,50349019,205.28,Care Unlimited Domcare Ltd,SOCIAL SERVICES DAY CARE,Peoples Services,Supported Living,A56088
London Borough of Sutton,26/04/2023,50349019,528.44,Care Unlimited Domcare Ltd,SOCIAL SERVICES DAY CARE,Peoples Services,Supported Living,A56088
London Borough of Sutton,26/04/2023,50349019,"1,797.60",Care Unlimited Domcare Ltd,SOCIAL SERVICES DAY CARE,Peoples Services,Supported Living,A56088
London Borough of Sutton,02/05/2023,50351212,"3,595.20",Care Unlimited Domcare Ltd,SOCIAL SERVICES DAY CARE,Peoples Services,Supported Living,A56088
London Borough of Sutton,02/05/2023,50351212,410.56,Care Unlimited Domcare Ltd,SOCIAL SERVICES DAY CARE,Peoples Services,Supported Living,A56088
London Borough of Sutton,02/05/2023,50351212,"1,056.88",Care Unlimited Domcare Ltd,SOCIAL SERVICES DAY CARE,Peoples Services,Supported Living,A56088
London Borough of Sutton,02/05/2023,50351335,"3,595.20",Care Unlimited Domcare Ltd,SOCIAL SERVICES DAY CARE,Peoples Services,Supported Living,A56088
London Borough of Sutton,02/05/2023,50351335,410.56,Care Unlimited Domcare Ltd,SOCIAL SERVICES DAY CARE,Peoples Services,Supported Living,A56088
London Borough of Sutton,02/05/2023,50351335,"1,056.88",Care Unlimited Domcare Ltd,SOCIAL SERVICES DAY CARE,Peoples Services,Supported Living,A56088
London Borough of Sutton,02/05/2023,50351336,"3,595.20",Care Unlimited Domcare Ltd,SOCIAL SERVICES DAY CARE,Peoples Services,Supported Living,A56088
London Borough of Sutton,02/05/2023,50351336,410.56,Care Unlimited Domcare Ltd,SOCIAL SERVICES DAY CARE,Peoples Services,Supported Living,A56088
London Borough of Sutton,02/05/2023,50351336,"1,056.88",Care Unlimited Domcare Ltd,SOCIAL SERVICES DAY CARE,Peoples Services,Supported Living,A56088
London Borough of Sutton,02/05/2023,50351363,"5,931.52",Care Unlimited Domcare Ltd,SOCIAL SERVICES DAY CARE,Peoples Services,Supported Living,A56088
London Borough of Sutton,02/05/2023,50351337,"3,958.40",Care4Care Services Ltd,SOCIAL SERVICES DAY CARE,Peoples Services,Home Care Services,A56019
London Borough of Sutton,02/05/2023,50351338,"1,041.30",Care4Care Services Ltd,SOCIAL SERVICES DAY CARE,Peoples Services,Home Care Services,A56019
London Borough of Sutton,02/05/2023,50351365,513.00,Care4Care Services Ltd,SOCIAL SERVICES DAY CARE,Peoples Services,Home Care Services,A56019
London Borough of Sutton,02/05/2023,50351367,"3,087.20",Care4Care Services Ltd,SOCIAL SERVICES DAY CARE,Peoples Services,Home Care Services,A56019
London Borough of Sutton,02/05/2023,50351368,875.78,Care4Care Services Ltd,SOCIAL SERVICES DAY CARE,Peoples Services,Home Care Services,A56019
London Borough of Sutton,02/05/2023,50351370,"1,378.00",Care4Care Services Ltd,SOCIAL SERVICES DAY CARE,Peoples Services,Home Care Services,A56019
London Borough of Sutton,02/05/2023,50351374,891.00,Care4Care Services Ltd,SOCIAL SERVICES DAY CARE,Peoples Services,Home Care Services,A56019
London Borough of Sutton,02/05/2023,50352330,"1,555.20",Care4Care Services Ltd,SOCIAL SERVICES DAY CARE,Peoples Services,Home Care Services,A56019
London Borough of Sutton,02/05/2023,50352331,"4,012.10",Care4Care Services Ltd,SOCIAL SERVICES DAY CARE,Peoples Services,Home Care Services,A56019
London Borough of Sutton,12/05/2023,50354094,"6,600.00",CAREBASE (CLARE) LTD,SOCIAL SERVICES RESIDENTIAL,Peoples Services,Nursing Care - Ext Provider,A56025
London Borough of Sutton,01/05/2023,20048551,580.00,Caremark (Sutton),SOCIAL SERVICES DAY CARE,Peoples Services,Home Care Services,A56019
London Borough of Sutton,01/05/2023,50350036,750.00,Caremark (Sutton),SOCIAL SERVICES DAY CARE,Peoples Services,Miscellaneous Expenses,A49000
London Borough of Sutton,23/04/2023,50351764,540.75,Caremark (Sutton),SOCIAL SERVICES DAY CARE,Peoples Services,Home Care Services,A56019
London Borough of Sutton,23/04/2023,50351776,"1,897.00",Caremark (Sutton),SOCIAL SERVICES DAY CARE,Peoples Services,Home Care Services,A56019
London Borough of Sutton,23/04/2023,50351784,500.41,Caremark (Sutton),SOCIAL SERVICES DAY CARE,Peoples Services,Home Care Services,A56019
London Borough of Sutton,23/04/2023,50351799,580.36,Caremark (Sutton),SOCIAL SERVICES DAY CARE,Peoples Services,Home Care Services,A56019
London Borough of Sutton,23/04/2023,50351806,"1,053.30",Caremark (Sutton),SOCIAL SERVICES DAY CARE,Peoples Services,Home Care Services,A56019
London Borough of Sutton,23/04/2023,50351812,938.37,Caremark (Sutton),SOCIAL SERVICES DAY CARE,Peoples Services,Home Care Services,A56019
London Borough of Sutton,07/05/2023,50352757,500.41,Caremark (Sutton),SOCIAL SERVICES DAY CARE,Peoples Services,Home Care Services,A56019
London Borough of Sutton,07/05/2023,50352781,938.37,Caremark (Sutton),SOCIAL SERVICES DAY CARE,Peoples Services,Home Care Services,A56019
London Borough of Sutton,09/04/2023,50352782,948.78,Caremark (Sutton),SOCIAL SERVICES DAY CARE,Peoples Services,Home Care Services,A56019
London Borough of Sutton,09/04/2023,50352821,524.25,Caremark (Sutton),SOCIAL SERVICES DAY CARE,Peoples Services,Home Care Services,A56019
London Borough of Sutton,07/05/2023,50352842,594.27,Caremark (Sutton),SOCIAL SERVICES DAY CARE,Peoples Services,Home Care Services,A56019
London Borough of Sutton,15/05/2023,50354587,500.00,Caremark (Sutton),SOCIAL SERVICES DAY CARE,Peoples Services,Miscellaneous Expenses,A49000
London Borough of Sutton,18/05/2023,50355504,"9,997.51",Caremore Group Ltd,CHILDREN'S SERVICES - FOSTERING & ADOPTION SERVICES,Peoples Services,Approved Lodgings,A61000
London Borough of Sutton,18/05/2023,50355505,"9,675.00",Caremore Group Ltd,CHILDREN'S SERVICES - FOSTERING & ADOPTION SERVICES,Peoples Services,Approved Lodgings,A61000
London Borough of Sutton,12/05/2023,50354201,-627.80,Caretech Community Services Ltd,SOCIAL SERVICES RESIDENTIAL,Peoples Services,Residential Care - Client Cont ( Net Paymt ),A56113
London Borough of Sutton,12/05/2023,50354201,"6,030.96",Caretech Community Services Ltd,SOCIAL SERVICES RESIDENTIAL,Peoples Services,Residential Care - Ext Provider,A56114
London Borough of Sutton,12/05/2023,50354301,"5,621.56",Caretech Community Services Ltd,SOCIAL SERVICES RESIDENTIAL,Peoples Services,Residential Care - Ext Provider,A56114
London Borough of Sutton,12/05/2023,50354419,-710.00,Caretech Community Services Ltd,SOCIAL SERVICES RESIDENTIAL,Peoples Services,Residential Care - Client Cont ( Net Paymt ),A56113
London Borough of Sutton,12/05/2023,50354419,"5,879.88",Caretech Community Services Ltd,SOCIAL SERVICES RESIDENTIAL,Peoples Services,Residential Care - Ext Provider,A56114
London Borough of Sutton,11/05/2023,50350474,"4,076.70",Carew Academy,CHILDREN'S SERVICES - RESIDENTIAL,Peoples Services,Payment - Teachers Pay Grant,A51026
London Borough of Sutton,11/05/2023,50350480,"11,296.86",Carew Academy,CHILDREN'S SERVICES - RESIDENTIAL,Peoples Services,Payment - Teachers Pension Grant,A51027
London Borough of Sutton,11/05/2023,50350528,"3,570.00",Carew Academy,CHILDREN'S SERVICES - RESIDENTIAL,Resources,"Grants, Contributions & Donations",A47005
London Borough of Sutton,22/05/2023,50356786,"736,511.02",Carew Academy,CHILDREN'S SERVICES - RESIDENTIAL,Peoples Services,Top-up Funding,A51016
London Borough of Sutton,22/05/2023,50356787,"25,041.37",Carew Academy,CHILDREN'S SERVICES - RESIDENTIAL,Peoples Services,Top-up Funding,A51016
London Borough of Sutton,30/04/2023,50353955,267.86,Caridon Young Living Ltd,CHILDREN'S SERVICES - RESIDENTIAL,Peoples Services,Approved Lodgings,A61000
London Borough of Sutton,30/04/2023,50353955,"19,821.43",Caridon Young Living Ltd,CHILDREN'S SERVICES - RESIDENTIAL,Peoples Services,Approved Lodgings,A61000
London Borough of Sutton,30/04/2023,50353965,89.29,Caridon Young Living Ltd,CHILDREN'S SERVICES - RESIDENTIAL,Peoples Services,Approved Lodgings,A61000
London Borough of Sutton,30/04/2023,50353965,"2,357.14",Caridon Young Living Ltd,CHILDREN'S SERVICES - RESIDENTIAL,Peoples Services,Approved Lodgings,A61000
London Borough of Sutton,19/05/2023,50355547,792.71,Care  Support Partners Ltd,SOCIAL SERVICES RESIDENTIAL,Peoples Services,Supported Living,A56088
London Borough of Sutton,19/05/2023,50355547,634.17,Care  Support Partners Ltd,SOCIAL SERVICES RESIDENTIAL,Peoples Services,Supported Living,A56088
London Borough of Sutton,19/05/2023,50355547,"2,147.86",Care  Support Partners Ltd,SOCIAL SERVICES RESIDENTIAL,Peoples Services,Supported Living,A56088
London Borough of Sutton,02/05/2023,50350090,"1,335.60",Carlene House,SOCIAL SERVICES RESIDENTIAL,Peoples Services,Home Care Services,A56019
London Borough of Sutton,02/05/2023,50350091,"3,524.52",Carlene House,SOCIAL SERVICES RESIDENTIAL,Peoples Services,Home Care Services,A56019
London Borough of Sutton,02/05/2023,50350092,"1,187.20",Carlene House,SOCIAL SERVICES RESIDENTIAL,Peoples Services,Home Care Services,A56019
London Borough of Sutton,02/05/2023,50350096,964.60,Carlene House,SOCIAL SERVICES RESIDENTIAL,Peoples Services,Home Care Services,A56019
London Borough of Sutton,02/05/2023,50350098,"1,409.80",Carlene House,SOCIAL SERVICES RESIDENTIAL,Peoples Services,Home Care Services,A56019
London Borough of Sutton,02/05/2023,50350115,"1,409.80",Carlene House,SOCIAL SERVICES RESIDENTIAL,Peoples Services,Home Care Services,A56019
London Borough of Sutton,02/05/2023,50350150,712.08,Carlene House,SOCIAL SERVICES RESIDENTIAL,Peoples Services,Supported Living,A56088
London Borough of Sutton,02/05/2023,50350150,984.48,Carlene House,SOCIAL SERVICES RESIDENTIAL,Peoples Services,Supported Living,A56088
London Borough of Sutton,02/05/2023,50350150,"1,312.88",Carlene House,SOCIAL SERVICES RESIDENTIAL,Peoples Services,Supported Living,A56088
London Borough of Sutton,02/05/2023,50350151,712.08,Carlene House,SOCIAL SERVICES RESIDENTIAL,Peoples Services,Supported Living,A56088
London Borough of Sutton,02/05/2023,50350151,"1,898.64",Carlene House,SOCIAL SERVICES RESIDENTIAL,Peoples Services,Supported Living,A56088
London Borough of Sutton,02/05/2023,50350151,"1,312.88",Carlene House,SOCIAL SERVICES RESIDENTIAL,Peoples Services,Supported Living,A56088
London Borough of Sutton,01/10/2022,50352333,"1,323.20",Carlene House,SOCIAL SERVICES RESIDENTIAL,Peoples Services,Supported Living,A56088
London Borough of Sutton,07/06/2022,50352334,"1,323.20",Carlene House,SOCIAL SERVICES RESIDENTIAL,Peoples Services,Supported Living,A56088
London Borough of Sutton,27/04/2023,50352411,"1,265.76",Carlene House,SOCIAL SERVICES RESIDENTIAL,Peoples Services,Supported Living,A56088
London Borough of Sutton,27/04/2023,50352412,"1,075.10",Carlene House,SOCIAL SERVICES RESIDENTIAL,Peoples Services,Supported Living,A56088
London Borough of Sutton,01/10/2022,50352413,"1,666.30",Carlene House,SOCIAL SERVICES RESIDENTIAL,Peoples Services,Supported Living,A56088
London Borough of Sutton,27/04/2023,50352414,"1,518.60",Carlene House,SOCIAL SERVICES RESIDENTIAL,Peoples Services,Supported Living,A56088
London Borough of Sutton,01/07/2022,50352415,"1,666.30",Carlene House,SOCIAL SERVICES RESIDENTIAL,Peoples Services,Supported Living,A56088
London Borough of Sutton,31/07/2022,50352416,"1,333.04",Carlene House,SOCIAL SERVICES RESIDENTIAL,Peoples Services,Supported Living,A56088
London Borough of Sutton,27/04/2023,50352417,"1,264.32",Carlene House,SOCIAL SERVICES RESIDENTIAL,Peoples Services,Supported Living,A56088
London Borough of Sutton,27/04/2023,50352418,"1,525.68",Carlene House,SOCIAL SERVICES RESIDENTIAL,Peoples Services,Supported Living,A56088
London Borough of Sutton,27/04/2023,50352419,"1,334.56",Carlene House,SOCIAL SERVICES RESIDENTIAL,Peoples Services,Supported Living,A56088
London Borough of Sutton,27/04/2023,50352420,"1,610.44",Carlene House,SOCIAL SERVICES RESIDENTIAL,Peoples Services,Supported Living,A56088
London Borough of Sutton,27/04/2023,50352421,"1,668.20",Carlene House,SOCIAL SERVICES RESIDENTIAL,Peoples Services,Supported Living,A56088
London Borough of Sutton,27/04/2023,50352422,"1,668.20",Carlene House,SOCIAL SERVICES RESIDENTIAL,Peoples Services,Supported Living,A56088
London Borough of Sutton,27/04/2023,50352423,"1,580.40",Carlene House,SOCIAL SERVICES RESIDENTIAL,Peoples Services,Supported Living,A56088
London Borough of Sutton,27/04/2023,50352424,"1,334.56",Carlene House,SOCIAL SERVICES RESIDENTIAL,Peoples Services,Supported Living,A56088
London Borough of Sutton,27/04/2023,50352425,"1,580.40",Carlene House,SOCIAL SERVICES RESIDENTIAL,Peoples Services,Supported Living,A56088
London Borough of Sutton,31/10/2022,50352426,"1,333.04",Carlene House,SOCIAL SERVICES RESIDENTIAL,Peoples Services,Supported Living,A56088
London Borough of Sutton,03/03/2023,50352439,"1,484.00",Carlene House,SOCIAL SERVICES RESIDENTIAL,Peoples Services,Home Care Services,A56019
London Borough of Sutton,31/01/2023,50352557,"1,187.20",Carlene House,SOCIAL SERVICES RESIDENTIAL,Peoples Services,Home Care Services,A56019
London Borough of Sutton,27/04/2023,50352560,"1,265.76",Carlene House,SOCIAL SERVICES RESIDENTIAL,Peoples Services,Home Care Services,A56019
London Borough of Sutton,05/01/2023,50352561,"1,669.50",Carlene House,SOCIAL SERVICES RESIDENTIAL,Peoples Services,Home Care Services,A56019
London Borough of Sutton,05/01/2023,50352566,"1,335.60",Carlene House,SOCIAL SERVICES RESIDENTIAL,Peoples Services,Home Care Services,A56019
London Borough of Sutton,27/04/2023,50352567,"1,582.20",Carlene House,SOCIAL SERVICES RESIDENTIAL,Peoples Services,Home Care Services,A56019
London Borough of Sutton,31/01/2023,50352590,"1,409.80",Carlene House,SOCIAL SERVICES RESIDENTIAL,Peoples Services,Home Care Services,A56019
London Borough of Sutton,31/03/2023,50352591,"1,409.80",Carlene House,SOCIAL SERVICES RESIDENTIAL,Peoples Services,Home Care Services,A56019
London Borough of Sutton,31/12/2022,50352592,"1,334.56",Carlene House,SOCIAL SERVICES RESIDENTIAL,Peoples Services,Home Care Services,A56019
London Borough of Sutton,03/03/2023,50352593,"1,762.25",Carlene House,SOCIAL SERVICES RESIDENTIAL,Peoples Services,Home Care Services,A56019
London Borough of Sutton,01/12/2022,50352594,"1,668.20",Carlene House,SOCIAL SERVICES RESIDENTIAL,Peoples Services,Home Care Services,A56019
London Borough of Sutton,06/01/2023,50352610,"1,409.80",Carlene House,SOCIAL SERVICES RESIDENTIAL,Peoples Services,Home Care Services,A56019
London Borough of Sutton,27/04/2023,50352612,"1,334.56",Carlene House,SOCIAL SERVICES RESIDENTIAL,Peoples Services,Home Care Services,A56019
London Borough of Sutton,10/02/2023,50352613,"1,762.25",Carlene House,SOCIAL SERVICES RESIDENTIAL,Peoples Services,Home Care Services,A56019
London Borough of Sutton,27/04/2023,50352614,"1,668.20",Carlene House,SOCIAL SERVICES RESIDENTIAL,Peoples Services,Home Care Services,A56019
London Borough of Sutton,05/01/2023,50352625,964.60,Carlene House,SOCIAL SERVICES RESIDENTIAL,Peoples Services,Home Care Services,A56019
London Borough of Sutton,10/02/2023,50352626,"1,205.75",Carlene House,SOCIAL SERVICES RESIDENTIAL,Peoples Services,Home Care Services,A56019
London Borough of Sutton,27/04/2023,50353446,"3,336.40",Carlene House,SOCIAL SERVICES RESIDENTIAL,Peoples Services,Supported Living,A56088
London Borough of Sutton,27/04/2023,50353447,"3,796.20",Carlene House,SOCIAL SERVICES RESIDENTIAL,Peoples Services,Supported Living,A56088
London Borough of Sutton,27/04/2023,50353448,"4,170.50",Carlene House,SOCIAL SERVICES RESIDENTIAL,Peoples Services,Supported Living,A56088
London Borough of Sutton,27/04/2023,50353449,"4,170.50",Carlene House,SOCIAL SERVICES RESIDENTIAL,Peoples Services,Supported Living,A56088
London Borough of Sutton,27/04/2023,50353450,"3,336.40",Carlene House,SOCIAL SERVICES RESIDENTIAL,Peoples Services,Supported Living,A56088
London Borough of Sutton,05/01/2023,50353458,"3,524.52",Carlene House,SOCIAL SERVICES RESIDENTIAL,Peoples Services,Home Care Services,A56019
London Borough of Sutton,27/04/2023,50353461,"3,336.40",Carlene House,SOCIAL SERVICES RESIDENTIAL,Peoples Services,Home Care Services,A56019
London Borough of Sutton,10/02/2023,50353462,"4,405.65",Carlene House,SOCIAL SERVICES RESIDENTIAL,Peoples Services,Home Care Services,A56019
London Borough of Sutton,27/04/2023,50353463,"4,170.50",Carlene House,SOCIAL SERVICES RESIDENTIAL,Peoples Services,Home Care Services,A56019
London Borough of Sutton,12/05/2023,50354266,"5,684.08",Carlene House,SOCIAL SERVICES RESIDENTIAL,Peoples Services,Residential Care - Ext Provider,A56114
London Borough of Sutton,12/05/2023,50354421,"5,684.08",Carlene House,SOCIAL SERVICES RESIDENTIAL,Peoples Services,Residential Care - Ext Provider,A56114
London Borough of Sutton,12/05/2023,50354467,"5,684.08",Carlene House,SOCIAL SERVICES RESIDENTIAL,Peoples Services,Residential Care - Ext Provider,A56114
London Borough of Sutton,12/05/2023,50354468,"5,684.08",Carlene House,SOCIAL SERVICES RESIDENTIAL,Peoples Services,Residential Care - Ext Provider,A56114
London Borough of Sutton,12/05/2023,50354473,"5,684.08",Carlene House,SOCIAL SERVICES RESIDENTIAL,Peoples Services,Residential Care - Ext Provider,A56114
London Borough of Sutton,12/05/2023,50354490,"5,684.08",Carlene House,SOCIAL SERVICES RESIDENTIAL,Peoples Services,Residential Care - Ext Provider,A56114
London Borough of Sutton,12/05/2023,50354531,"5,684.08",Carlene House,SOCIAL SERVICES RESIDENTIAL,Peoples Services,Residential Care - Ext Provider,A56114
London Borough of Sutton,02/02/2021,50355658,"3,585.56",Carlene House,SOCIAL SERVICES RESIDENTIAL,Peoples Services,Supported Living,A56088
London Borough of Sutton,01/03/2021,50355659,"3,585.56",Carlene House,SOCIAL SERVICES RESIDENTIAL,Peoples Services,Supported Living,A56088
London Borough of Sutton,27/04/2023,50355660,"1,112.26",Carlene House,SOCIAL SERVICES RESIDENTIAL,Peoples Services,Supported Living,A56088
London Borough of Sutton,27/04/2023,50355660,"1,500.43",Carlene House,SOCIAL SERVICES RESIDENTIAL,Peoples Services,Supported Living,A56088
London Borough of Sutton,27/04/2023,50355660,813.81,Carlene House,SOCIAL SERVICES RESIDENTIAL,Peoples Services,Supported Living,A56088
London Borough of Sutton,27/04/2023,50355662,879.00,Carlene House,SOCIAL SERVICES RESIDENTIAL,Peoples Services,Supported Living,A56088
London Borough of Sutton,27/04/2023,50355662,"1,150.12",Carlene House,SOCIAL SERVICES RESIDENTIAL,Peoples Services,Supported Living,A56088
London Borough of Sutton,27/04/2023,50355662,712.08,Carlene House,SOCIAL SERVICES RESIDENTIAL,Peoples Services,Supported Living,A56088
London Borough of Sutton,04/04/2023,50355663,984.48,Carlene House,SOCIAL SERVICES RESIDENTIAL,Peoples Services,Supported Living,A56088
London Borough of Sutton,04/04/2023,50355663,"1,312.88",Carlene House,SOCIAL SERVICES RESIDENTIAL,Peoples Services,Supported Living,A56088
London Borough of Sutton,04/04/2023,50355663,712.08,Carlene House,SOCIAL SERVICES RESIDENTIAL,Peoples Services,Supported Living,A56088
London Borough of Sutton,27/04/2023,50355665,"1,110.66",Carlene House,SOCIAL SERVICES RESIDENTIAL,Peoples Services,Supported Living,A56088
London Borough of Sutton,27/04/2023,50355665,"1,500.43",Carlene House,SOCIAL SERVICES RESIDENTIAL,Peoples Services,Supported Living,A56088
London Borough of Sutton,27/04/2023,50355665,813.81,Carlene House,SOCIAL SERVICES RESIDENTIAL,Peoples Services,Supported Living,A56088
London Borough of Sutton,27/04/2023,50355666,855.63,Carlene House,SOCIAL SERVICES RESIDENTIAL,Peoples Services,Supported Living,A56088
London Borough of Sutton,27/04/2023,50355666,"1,172.21",Carlene House,SOCIAL SERVICES RESIDENTIAL,Peoples Services,Supported Living,A56088
London Borough of Sutton,27/04/2023,50355666,712.08,Carlene House,SOCIAL SERVICES RESIDENTIAL,Peoples Services,Supported Living,A56088
London Borough of Sutton,27/04/2023,50355667,"1,110.66",Carlene House,SOCIAL SERVICES RESIDENTIAL,Peoples Services,Supported Living,A56088
London Borough of Sutton,27/04/2023,50355667,"1,500.43",Carlene House,SOCIAL SERVICES RESIDENTIAL,Peoples Services,Supported Living,A56088
London Borough of Sutton,27/04/2023,50355667,813.81,Carlene House,SOCIAL SERVICES RESIDENTIAL,Peoples Services,Supported Living,A56088
London Borough of Sutton,27/04/2023,50355668,"1,085.20",Carlene House,SOCIAL SERVICES RESIDENTIAL,Peoples Services,Supported Living,A56088
London Borough of Sutton,27/04/2023,50355668,"1,312.88",Carlene House,SOCIAL SERVICES RESIDENTIAL,Peoples Services,Supported Living,A56088
London Borough of Sutton,27/04/2023,50355668,712.08,Carlene House,SOCIAL SERVICES RESIDENTIAL,Peoples Services,Supported Living,A56088
London Borough of Sutton,27/04/2023,50355669,716.24,Carlene House,SOCIAL SERVICES RESIDENTIAL,Peoples Services,Supported Living,A56088
London Borough of Sutton,27/04/2023,50355669,"1,312.88",Carlene House,SOCIAL SERVICES RESIDENTIAL,Peoples Services,Supported Living,A56088
London Borough of Sutton,27/04/2023,50355669,712.08,Carlene House,SOCIAL SERVICES RESIDENTIAL,Peoples Services,Supported Living,A56088
London Borough of Sutton,27/04/2023,50355670,808.68,Carlene House,SOCIAL SERVICES RESIDENTIAL,Peoples Services,Supported Living,A56088
London Borough of Sutton,27/04/2023,50355670,"1,037.15",Carlene House,SOCIAL SERVICES RESIDENTIAL,Peoples Services,Supported Living,A56088
London Borough of Sutton,27/04/2023,50355670,508.62,Carlene House,SOCIAL SERVICES RESIDENTIAL,Peoples Services,Supported Living,A56088
London Borough of Sutton,09/12/2021,50356739,"4,276.55",Carlene House,SOCIAL SERVICES RESIDENTIAL,Peoples Services,Supported Living,A56088
London Borough of Sutton,09/04/2023,50358475,"1,248.20",Carlene House,SOCIAL SERVICES RESIDENTIAL,Peoples Services,Supported Living,A56088
London Borough of Sutton,09/04/2023,50358475,"1,312.88",Carlene House,SOCIAL SERVICES RESIDENTIAL,Peoples Services,Supported Living,A56088
London Borough of Sutton,09/04/2023,50358475,712.08,Carlene House,SOCIAL SERVICES RESIDENTIAL,Peoples Services,Supported Living,A56088
London Borough of Sutton,02/03/2023,50358476,"1,247.20",Carlene House,SOCIAL SERVICES RESIDENTIAL,Peoples Services,Supported Living,A56088
London Borough of Sutton,02/03/2023,50358476,"1,312.88",Carlene House,SOCIAL SERVICES RESIDENTIAL,Peoples Services,Supported Living,A56088
London Borough of Sutton,02/03/2023,50358476,712.08,Carlene House,SOCIAL SERVICES RESIDENTIAL,Peoples Services,Supported Living,A56088
London Borough of Sutton,05/01/2023,50358477,"1,248.20",Carlene House,SOCIAL SERVICES RESIDENTIAL,Peoples Services,Supported Living,A56088
London Borough of Sutton,05/01/2023,50358477,"1,312.88",Carlene House,SOCIAL SERVICES RESIDENTIAL,Peoples Services,Supported Living,A56088
London Borough of Sutton,05/01/2023,50358477,712.08,Carlene House,SOCIAL SERVICES RESIDENTIAL,Peoples Services,Supported Living,A56088
London Borough of Sutton,09/02/2023,50358478,"1,419.58",Carlene House,SOCIAL SERVICES RESIDENTIAL,Peoples Services,Supported Living,A56088
London Borough of Sutton,09/02/2023,50358478,"1,781.77",Carlene House,SOCIAL SERVICES RESIDENTIAL,Peoples Services,Supported Living,A56088
London Borough of Sutton,09/02/2023,50358478,890.10,Carlene House,SOCIAL SERVICES RESIDENTIAL,Peoples Services,Supported Living,A56088
London Borough of Sutton,27/04/2023,50358479,"1,214.06",Carlene House,SOCIAL SERVICES RESIDENTIAL,Peoples Services,Supported Living,A56088
London Borough of Sutton,27/04/2023,50358479,"1,500.43",Carlene House,SOCIAL SERVICES RESIDENTIAL,Peoples Services,Supported Living,A56088
London Borough of Sutton,27/04/2023,50358479,813.81,Carlene House,SOCIAL SERVICES RESIDENTIAL,Peoples Services,Supported Living,A56088
London Borough of Sutton,27/04/2023,50358480,"1,177.85",Carlene House,SOCIAL SERVICES RESIDENTIAL,Peoples Services,Supported Living,A56088
London Borough of Sutton,27/04/2023,50358480,"1,312.88",Carlene House,SOCIAL SERVICES RESIDENTIAL,Peoples Services,Supported Living,A56088
London Borough of Sutton,27/04/2023,50358480,788.37,Carlene House,SOCIAL SERVICES RESIDENTIAL,Peoples Services,Supported Living,A56088
London Borough of Sutton,27/04/2023,50358481,992.27,Carlene House,SOCIAL SERVICES RESIDENTIAL,Peoples Services,Supported Living,A56088
London Borough of Sutton,27/04/2023,50358481,984.66,Carlene House,SOCIAL SERVICES RESIDENTIAL,Peoples Services,Supported Living,A56088
London Borough of Sutton,27/04/2023,50358481,635.79,Carlene House,SOCIAL SERVICES RESIDENTIAL,Peoples Services,Supported Living,A56088
London Borough of Sutton,02/05/2023,50358482,"1,248.20",Carlene House,SOCIAL SERVICES RESIDENTIAL,Peoples Services,Supported Living,A56088
London Borough of Sutton,02/05/2023,50358482,"1,312.88",Carlene House,SOCIAL SERVICES RESIDENTIAL,Peoples Services,Supported Living,A56088
London Borough of Sutton,02/05/2023,50358482,712.08,Carlene House,SOCIAL SERVICES RESIDENTIAL,Peoples Services,Supported Living,A56088
London Borough of Sutton,25/05/2022,50358483,"1,179.32",Carlene House,SOCIAL SERVICES RESIDENTIAL,Peoples Services,Supported Living,A56088
London Borough of Sutton,25/05/2022,50358483,"1,312.88",Carlene House,SOCIAL SERVICES RESIDENTIAL,Peoples Services,Supported Living,A56088
London Borough of Sutton,25/05/2022,50358483,712.08,Carlene House,SOCIAL SERVICES RESIDENTIAL,Peoples Services,Supported Living,A56088
London Borough of Sutton,27/04/2023,50358485,"1,214.06",Carlene House,SOCIAL SERVICES RESIDENTIAL,Peoples Services,Supported Living,A56088
London Borough of Sutton,27/04/2023,50358485,"1,500.43",Carlene House,SOCIAL SERVICES RESIDENTIAL,Peoples Services,Supported Living,A56088
London Borough of Sutton,27/04/2023,50358485,813.81,Carlene House,SOCIAL SERVICES RESIDENTIAL,Peoples Services,Supported Living,A56088
London Borough of Sutton,27/04/2023,50358486,"1,205.60",Carlene House,SOCIAL SERVICES RESIDENTIAL,Peoples Services,Supported Living,A56088
London Borough of Sutton,27/04/2023,50358486,"1,641.10",Carlene House,SOCIAL SERVICES RESIDENTIAL,Peoples Services,Supported Living,A56088
London Borough of Sutton,27/04/2023,50358486,890.10,Carlene House,SOCIAL SERVICES RESIDENTIAL,Peoples Services,Supported Living,A56088
London Borough of Sutton,27/04/2023,50358487,938.35,Carlene House,SOCIAL SERVICES RESIDENTIAL,Peoples Services,Supported Living,A56088
London Borough of Sutton,27/04/2023,50358487,"1,172.21",Carlene House,SOCIAL SERVICES RESIDENTIAL,Peoples Services,Supported Living,A56088
London Borough of Sutton,27/04/2023,50358487,712.08,Carlene House,SOCIAL SERVICES RESIDENTIAL,Peoples Services,Supported Living,A56088
London Borough of Sutton,27/04/2023,50358488,938.35,Carlene House,SOCIAL SERVICES RESIDENTIAL,Peoples Services,Supported Living,A56088
London Borough of Sutton,27/04/2023,50358488,"1,172.21",Carlene House,SOCIAL SERVICES RESIDENTIAL,Peoples Services,Supported Living,A56088
London Borough of Sutton,27/04/2023,50358488,712.08,Carlene House,SOCIAL SERVICES RESIDENTIAL,Peoples Services,Supported Living,A56088
London Borough of Sutton,11/05/2023,50350691,504.90,REDACTED - PERSONAL DATA,GRANTS & EX GRATIA PAYMENTS,Peoples Services,Payment - Nursery Funding,A51056
London Borough of Sutton,11/05/2023,50350688,"1,262.25",REDACTED - PERSONAL DATA,GRANTS & EX GRATIA PAYMENTS,Peoples Services,Payment - Nursery Funding,A51056
London Borough of Sutton,11/05/2023,50350635,"1,767.15",REDACTED - PERSONAL DATA,GRANTS & EX GRATIA PAYMENTS,Peoples Services,Payment - Nursery Funding,A51056
London Borough of Sutton,04/04/2023,20047390,"2,350.00",REDACTED - PERSONAL DATA,TEMP STAFF & CONSULTANCY,Peoples Services,Consultancy Services,A56007
London Borough of Sutton,11/05/2023,50350529,"10,530.00",Carshalton Boys Sports College (Academy),GRANTS & EX GRATIA PAYMENTS,Resources,"Grants, Contributions & Donations",A47005
London Borough of Sutton,09/05/2023,50352089,"-2,045.60",Carshalton Boys Sports College (Academy),GRANTS & EX GRATIA PAYMENTS,Peoples Services,Top-up Funding,A51016
London Borough of Sutton,30/05/2023,50359530,"9,633.20",Carshalton Boys Sports College (Academy),GRANTS & EX GRATIA PAYMENTS,Peoples Services,Pupil Growth,A51014
London Borough of Sutton,15/05/2023,50355492,"26,888.57",Catch 22 Charity Limited,CHILDREN'S SERVICES - RESIDENTIAL,Peoples Services,Residential Care-Children,A56115
London Borough of Sutton,15/05/2023,50355493,"26,888.57",Catch 22 Charity Limited,CHILDREN'S SERVICES - RESIDENTIAL,Peoples Services,Residential Care-Children,A56115
London Borough of Sutton,15/05/2023,50355502,"26,888.57",Catch 22 Charity Limited,CHILDREN'S SERVICES - RESIDENTIAL,Peoples Services,Residential Care-Children,A56115
London Borough of Sutton,11/05/2023,50350689,522.60,REDACTED - PERSONAL DATA,GRANTS & EX GRATIA PAYMENTS,Peoples Services,Payment - Nursery Funding,A51056
London Borough of Sutton,30/05/2023,50355951,567.74,REDACTED - PERSONAL DATA,CHILDREN'S SERVICES - FOSTERING & ADOPTION SERVICES,Peoples Services,Holiday Allowances,A56013
London Borough of Sutton,25/04/2023,20049419,909.29,Charles Taylor Services Ltd,FINANCIAL / INSURANCE INSTNS,Resources,General Insurance (Excl Premises & Transport),A44260
London Borough of Sutton,26/05/2023,50358665,596.95,REDACTED - PERSONAL DATA,CHILDREN'S SERVICES - SEN SERVICES,Peoples Services,Miscellaneous Expenses,A49000
London Borough of Sutton,01/05/2023,50349378,900.00,Cheam Baptist Church Pre-School,GRANTS & EX GRATIA PAYMENTS,Peoples Services,SEND Inclusion funding,A60038
London Borough of Sutton,01/05/2023,50349379,"3,180.00",Cheam Baptist Church Pre-School,GRANTS & EX GRATIA PAYMENTS,Peoples Services,SEND Inclusion funding,A60038
London Borough of Sutton,11/05/2023,50350644,"7,767.05",Cheam Baptist Church Pre-School,GRANTS & EX GRATIA PAYMENTS,Peoples Services,Payment - Nursery Funding,A51056
London Borough of Sutton,11/05/2023,50350767,567.84,Cheam Baptist Church Pre-School,GRANTS & EX GRATIA PAYMENTS,Peoples Services,Payment - Nursery Funding,A51056
London Borough of Sutton,27/04/2023,20048428,"3,467.60",Cheam Common Infants School -ACADEMY,GRANTS & EX GRATIA PAYMENTS,Resources,Other Supplies & Services,A44291
London Borough of Sutton,11/05/2023,50350495,"24,343.20",Cheam Common Infants School -ACADEMY,GRANTS & EX GRATIA PAYMENTS,Peoples Services,Place Funding,A56110
London Borough of Sutton,11/05/2023,50350531,900.00,Cheam Common Infants School -ACADEMY,GRANTS & EX GRATIA PAYMENTS,Resources,"Grants, Contributions & Donations",A47005
London Borough of Sutton,11/05/2023,50350532,"1,650.00",Cheam Common Junior Academy,GRANTS & EX GRATIA PAYMENTS,Resources,"Grants, Contributions & Donations",A47005
London Borough of Sutton,09/05/2023,50352091,"2,051.30",Cheam Common Junior Academy,GRANTS & EX GRATIA PAYMENTS,Peoples Services,Top-up Funding,A51016
London Borough of Sutton,30/05/2023,50359525,"3,013.12",Cheam Common Junior Academy,GRANTS & EX GRATIA PAYMENTS,Peoples Services,Payment - Cluster Lead SENCO,A51035
London Borough of Sutton,27/04/2023,20048411,"1,220.00",Cheam Family Practice,TEMP STAFF & CONSULTANCY,Health and Wellbeing,Provider Contract Payments,A44290
London Borough of Sutton,11/05/2023,50350534,"8,010.00",Cheam High School (Academy),GRANTS & EX GRATIA PAYMENTS,Resources,"Grants, Contributions & Donations",A47005
London Borough of Sutton,09/05/2023,50352093,"-11,850.96",Cheam High School (Academy),GRANTS & EX GRATIA PAYMENTS,Peoples Services,Top-up Funding,A51016
London Borough of Sutton,09/05/2023,50352093,"10,475.15",Cheam High School (Academy),GRANTS & EX GRATIA PAYMENTS,Peoples Services,Top-up Funding,A51016
London Borough of Sutton,09/05/2023,50352102,"-3,062.70",Cheam High School (Academy),GRANTS & EX GRATIA PAYMENTS,Peoples Services,Top-up Funding,A51016
London Borough of Sutton,10/05/2023,50354564,"2,810.45",Cheam High School (Academy),GRANTS & EX GRATIA PAYMENTS,Peoples Services,Top-up Funding,A51016
London Borough of Sutton,30/05/2023,50359524,"5,286.86",Cheam High School (Academy),GRANTS & EX GRATIA PAYMENTS,Peoples Services,Payment - Cluster Lead SENCO,A51035
London Borough of Sutton,30/05/2023,50359532,"6,422.40",Cheam High School (Academy),GRANTS & EX GRATIA PAYMENTS,Peoples Services,Pupil Growth,A51014
London Borough of Sutton,11/05/2023,50350497,"13,174.20",Cheam Park Farm Primary School ,GRANTS & EX GRATIA PAYMENTS,Peoples Services,Place Funding,A56110
London Borough of Sutton,11/05/2023,50350535,"1,560.00",Cheam Park Farm Primary School ,GRANTS & EX GRATIA PAYMENTS,Resources,"Grants, Contributions & Donations",A47005
London Borough of Sutton,12/05/2023,50354157,"4,342.36",Chegworth Nursing Home Bayswift Ltd,SOCIAL SERVICES RESIDENTIAL,Peoples Services,Nursing Care - Ext Provider,A56025
London Borough of Sutton,12/05/2023,50354157,-996.93,Chegworth Nursing Home Bayswift Ltd,SOCIAL SERVICES RESIDENTIAL,Peoples Services,Nursing Care - 3rd party top up payment,A56023
London Borough of Sutton,12/05/2023,50354165,-836.76,Chegworth Nursing Home Bayswift Ltd,SOCIAL SERVICES RESIDENTIAL,Peoples Services,Nursing Care - 3rd party top up payment,A56023
London Borough of Sutton,12/05/2023,50354165,"4,321.24",Chegworth Nursing Home Bayswift Ltd,SOCIAL SERVICES RESIDENTIAL,Peoples Services,Nursing Care Short Term,A56026
London Borough of Sutton,12/05/2023,50354166,"4,208.19",Chegworth Nursing Home Bayswift Ltd,SOCIAL SERVICES RESIDENTIAL,Peoples Services,Nursing Care - Ext Provider,A56025
London Borough of Sutton,12/05/2023,50354166,-873.00,Chegworth Nursing Home Bayswift Ltd,SOCIAL SERVICES RESIDENTIAL,Peoples Services,Nursing Care - 3rd party top up payment,A56023
London Borough of Sutton,12/05/2023,50354198,"-2,198.99",Chegworth Nursing Home Bayswift Ltd,SOCIAL SERVICES RESIDENTIAL,Peoples Services,Nursing Care - Ext Provider,A56025
London Borough of Sutton,12/05/2023,50354198,455.60,Chegworth Nursing Home Bayswift Ltd,SOCIAL SERVICES RESIDENTIAL,Peoples Services,Nursing Care - 3rd party top up payment,A56023
London Borough of Sutton,12/05/2023,50354212,-836.76,Chegworth Nursing Home Bayswift Ltd,SOCIAL SERVICES RESIDENTIAL,Peoples Services,Nursing Care - 3rd party top up payment,A56023
London Borough of Sutton,12/05/2023,50354212,"3,821.24",Chegworth Nursing Home Bayswift Ltd,SOCIAL SERVICES RESIDENTIAL,Peoples Services,Nursing Care Short Term,A56026
London Borough of Sutton,12/05/2023,50354291,-750.40,Chegworth Nursing Home Bayswift Ltd,SOCIAL SERVICES RESIDENTIAL,Peoples Services,Nursing Care - 3rd party top up payment,A56023
London Borough of Sutton,12/05/2023,50354291,"3,734.88",Chegworth Nursing Home Bayswift Ltd,SOCIAL SERVICES RESIDENTIAL,Peoples Services,Nursing Care Short Term,A56026
London Borough of Sutton,12/05/2023,50354297,"-1,381.03",Chegworth Nursing Home Bayswift Ltd,SOCIAL SERVICES RESIDENTIAL,Peoples Services,Nursing Care - 3rd party top up payment,A56023
London Borough of Sutton,12/05/2023,50354297,"4,310.95",Chegworth Nursing Home Bayswift Ltd,SOCIAL SERVICES RESIDENTIAL,Peoples Services,Nursing Care - Ext Provider,A56025
London Borough of Sutton,12/05/2023,50354297,446.66,Chegworth Nursing Home Bayswift Ltd,SOCIAL SERVICES RESIDENTIAL,Peoples Services,Nursing Care - 3rd party top up payment,A56023
London Borough of Sutton,12/05/2023,50354300,"4,208.19",Chegworth Nursing Home Bayswift Ltd,SOCIAL SERVICES RESIDENTIAL,Peoples Services,Nursing Care - Ext Provider,A56025
London Borough of Sutton,12/05/2023,50354300,-902.88,Chegworth Nursing Home Bayswift Ltd,SOCIAL SERVICES RESIDENTIAL,Peoples Services,Nursing Care - 3rd party top up payment,A56023
London Borough of Sutton,12/05/2023,50354302,"4,150.40",Chegworth Nursing Home Bayswift Ltd,SOCIAL SERVICES RESIDENTIAL,Peoples Services,Nursing Care - Ext Provider,A56025
London Borough of Sutton,12/05/2023,50354324,-878.84,Chegworth Nursing Home Bayswift Ltd,SOCIAL SERVICES RESIDENTIAL,Peoples Services,Nursing Care - 3rd party top up payment,A56023
London Borough of Sutton,12/05/2023,50354324,"4,096.12",Chegworth Nursing Home Bayswift Ltd,SOCIAL SERVICES RESIDENTIAL,Peoples Services,Nursing Care Short Term,A56026
London Borough of Sutton,12/05/2023,50354326,"4,292.07",Chegworth Nursing Home Bayswift Ltd,SOCIAL SERVICES RESIDENTIAL,Peoples Services,Nursing Care - Ext Provider,A56025
London Borough of Sutton,12/05/2023,50354326,-934.37,Chegworth Nursing Home Bayswift Ltd,SOCIAL SERVICES RESIDENTIAL,Peoples Services,Nursing Care - 3rd party top up payment,A56023
London Borough of Sutton,12/05/2023,50354327,"3,821.24",Chegworth Nursing Home Bayswift Ltd,SOCIAL SERVICES RESIDENTIAL,Peoples Services,Nursing Care Short Term,A56026
London Borough of Sutton,12/05/2023,50354327,-836.76,Chegworth Nursing Home Bayswift Ltd,SOCIAL SERVICES RESIDENTIAL,Peoples Services,Nursing Care - 3rd party top up payment,A56023
London Borough of Sutton,12/05/2023,50354337,"6,436.76",Chegworth Nursing Home Bayswift Ltd,SOCIAL SERVICES RESIDENTIAL,Peoples Services,Nursing Care - Ext Provider,A56025
London Borough of Sutton,12/05/2023,50354337,"-1,381.03",Chegworth Nursing Home Bayswift Ltd,SOCIAL SERVICES RESIDENTIAL,Peoples Services,Nursing Care - 3rd party top up payment,A56023
London Borough of Sutton,12/05/2023,50354367,"-1,381.03",Chegworth Nursing Home Bayswift Ltd,SOCIAL SERVICES RESIDENTIAL,Peoples Services,Nursing Care - 3rd party top up payment,A56023
London Borough of Sutton,12/05/2023,50354367,"4,197.29",Chegworth Nursing Home Bayswift Ltd,SOCIAL SERVICES RESIDENTIAL,Peoples Services,Nursing Care - Ext Provider,A56025
London Borough of Sutton,12/05/2023,50354367,384.10,Chegworth Nursing Home Bayswift Ltd,SOCIAL SERVICES RESIDENTIAL,Peoples Services,Nursing Care - 3rd party top up payment,A56023
London Borough of Sutton,12/05/2023,50354404,-662.24,Chegworth Nursing Home Bayswift Ltd,SOCIAL SERVICES RESIDENTIAL,Peoples Services,Nursing Care - 3rd party top up payment,A56023
London Borough of Sutton,12/05/2023,50354404,"4,955.56",Chegworth Nursing Home Bayswift Ltd,SOCIAL SERVICES RESIDENTIAL,Peoples Services,Nursing Care Short Term,A56026
London Borough of Sutton,12/05/2023,50354442,-750.40,Chegworth Nursing Home Bayswift Ltd,SOCIAL SERVICES RESIDENTIAL,Peoples Services,Nursing Care - 3rd party top up payment,A56023
London Borough of Sutton,12/05/2023,50354442,"3,734.88",Chegworth Nursing Home Bayswift Ltd,SOCIAL SERVICES RESIDENTIAL,Peoples Services,Nursing Care Short Term,A56026
London Borough of Sutton,12/05/2023,50354515,"4,149.92",Chegworth Nursing Home Bayswift Ltd,SOCIAL SERVICES RESIDENTIAL,Peoples Services,Nursing Care - Ext Provider,A56025
London Borough of Sutton,12/05/2023,50354515,-750.40,Chegworth Nursing Home Bayswift Ltd,SOCIAL SERVICES RESIDENTIAL,Peoples Services,Nursing Care - 3rd party top up payment,A56023
London Borough of Sutton,12/05/2023,50354545,"4,342.36",Chegworth Nursing Home Bayswift Ltd,SOCIAL SERVICES RESIDENTIAL,Peoples Services,Nursing Care - Ext Provider,A56025
London Borough of Sutton,12/05/2023,50354545,"-1,019.52",Chegworth Nursing Home Bayswift Ltd,SOCIAL SERVICES RESIDENTIAL,Peoples Services,Nursing Care - 3rd party top up payment,A56023
London Borough of Sutton,12/05/2023,50354549,"2,905.28",Chegworth Nursing Home Bayswift Ltd,SOCIAL SERVICES RESIDENTIAL,Peoples Services,Nursing Care Short Term,A56026
London Borough of Sutton,12/05/2023,50354034,-460.04,Cherry Lodge,SOCIAL SERVICES RESIDENTIAL,Peoples Services,Residential Care - Client Cont ( Net Paymt ),A56113
London Borough of Sutton,12/05/2023,50354034,"2,895.32",Cherry Lodge,SOCIAL SERVICES RESIDENTIAL,Peoples Services,Residential Care - Ext Provider,A56114
London Borough of Sutton,12/05/2023,50354046,"3,486.32",Cherry Lodge,SOCIAL SERVICES RESIDENTIAL,Peoples Services,Residential Care - Ext Provider,A56114
London Borough of Sutton,12/05/2023,50354151,446.66,CHHG Ltd,SOCIAL SERVICES RESIDENTIAL,Peoples Services,Nursing Care - 3rd party top up payment,A56023
London Borough of Sutton,12/05/2023,50354151,"4,192.37",CHHG Ltd,SOCIAL SERVICES RESIDENTIAL,Peoples Services,Nursing Care - Ext Provider,A56025
London Borough of Sutton,12/05/2023,50354151,"-1,381.03",CHHG Ltd,SOCIAL SERVICES RESIDENTIAL,Peoples Services,Nursing Care - 3rd party top up payment,A56023
London Borough of Sutton,10/04/2023,50351200,"13,647.60",Children's Trust,CHILDREN'S SERVICES - DAY CARE,Peoples Services,Residential Care-Children,A56115
London Borough of Sutton,10/05/2023,50354576,"6,795.82",Children's Trust,CHILDREN'S SERVICES - DAY CARE,Peoples Services,Independent School Fees,A56002
London Borough of Sutton,10/05/2023,50354577,"6,869.60",Children's Trust,CHILDREN'S SERVICES - DAY CARE,Peoples Services,Independent School Fees,A56002
London Borough of Sutton,10/05/2023,50354578,"6,900.60",Children's Trust,CHILDREN'S SERVICES - DAY CARE,Peoples Services,Independent School Fees,A56002
London Borough of Sutton,11/05/2023,50350819,"4,039.20",Chiltern Day Nursery,GRANTS & EX GRATIA PAYMENTS,Peoples Services,Payment - Nursery Funding,A51056
London Borough of Sutton,30/04/2023,50352061,"11,859.00",Chipstead Valley Primary School,GRANTS & EX GRATIA PAYMENTS,Peoples Services,Top-up Funding,A51016
London Borough of Sutton,30/04/2023,50352065,"8,939.15",Chipstead Valley Primary School,GRANTS & EX GRATIA PAYMENTS,Peoples Services,Top-up Funding,A51016
London Borough of Sutton,12/05/2023,50354183,"8,863.92",Choice Care Group (Surrey) Ltd,SOCIAL SERVICES RESIDENTIAL,Peoples Services,Residential Care - Ext Provider,A56114
London Borough of Sutton,12/05/2023,50354229,"8,682.92",Choice Care Group (Surrey) Ltd,SOCIAL SERVICES RESIDENTIAL,Peoples Services,Residential Care - Ext Provider,A56114
London Borough of Sutton,12/05/2023,50354249,"7,512.24",Choice Care Group (Surrey) Ltd,SOCIAL SERVICES RESIDENTIAL,Peoples Services,Residential Care - Ext Provider,A56114
London Borough of Sutton,12/05/2023,50354372,"7,809.32",Choice Care Group (Surrey) Ltd,SOCIAL SERVICES RESIDENTIAL,Peoples Services,Residential Care - Ext Provider,A56114
London Borough of Sutton,27/02/2023,20047592,"1,947.04",Choice Support,GRANTS & EX GRATIA PAYMENTS,Peoples Services,Provider Contract Payments,A44290
London Borough of Sutton,27/02/2023,20047594,"1,818.00",Choice Support,GRANTS & EX GRATIA PAYMENTS,Peoples Services,Provider Contract Payments,A44290
London Borough of Sutton,27/02/2023,20047595,"2,055.00",Choice Support,GRANTS & EX GRATIA PAYMENTS,Peoples Services,Provider Contract Payments,A44290
London Borough of Sutton,27/04/2023,20048313,"1,602.36",Choice Support,GRANTS & EX GRATIA PAYMENTS,Peoples Services,Provider Contract Payments,A44290
London Borough of Sutton,27/04/2023,20048314,"1,602.36",Choice Support,GRANTS & EX GRATIA PAYMENTS,Peoples Services,Provider Contract Payments,A44290
London Borough of Sutton,24/04/2023,20048315,"1,736.36",Choice Support,GRANTS & EX GRATIA PAYMENTS,Peoples Services,Provider Contract Payments,A44290
London Borough of Sutton,24/04/2023,20048316,"2,055.00",Choice Support,GRANTS & EX GRATIA PAYMENTS,Peoples Services,Provider Contract Payments,A44290
London Borough of Sutton,27/04/2023,20048317,"1,602.36",Choice Support,GRANTS & EX GRATIA PAYMENTS,Peoples Services,Provider Contract Payments,A44290
London Borough of Sutton,24/04/2023,20048318,"1,947.04",Choice Support,GRANTS & EX GRATIA PAYMENTS,Peoples Services,Provider Contract Payments,A44290
London Borough of Sutton,24/04/2023,20048319,"1,818.00",Choice Support,GRANTS & EX GRATIA PAYMENTS,Peoples Services,Provider Contract Payments,A44290
London Borough of Sutton,02/05/2023,50350149,"5,677.07",Choice Support,GRANTS & EX GRATIA PAYMENTS,Peoples Services,Supported Living,A56088
London Borough of Sutton,02/05/2023,50350149,858.73,Choice Support,GRANTS & EX GRATIA PAYMENTS,Peoples Services,Supported Living,A56088
London Borough of Sutton,02/05/2023,50350152,"5,655.47",Choice Support,GRANTS & EX GRATIA PAYMENTS,Peoples Services,Supported Living,A56088
London Borough of Sutton,02/05/2023,50350152,858.73,Choice Support,GRANTS & EX GRATIA PAYMENTS,Peoples Services,Supported Living,A56088
London Borough of Sutton,02/05/2023,50350153,"3,463.50",Choice Support,GRANTS & EX GRATIA PAYMENTS,Peoples Services,Supported Living,A56088
London Borough of Sutton,02/05/2023,50350153,"3,054.52",Choice Support,GRANTS & EX GRATIA PAYMENTS,Peoples Services,Supported Living,A56088
London Borough of Sutton,02/05/2023,50350153,236.61,Choice Support,GRANTS & EX GRATIA PAYMENTS,Peoples Services,Supported Living,A56088
London Borough of Sutton,02/05/2023,50350153,613.37,Choice Support,GRANTS & EX GRATIA PAYMENTS,Peoples Services,Supported Living,A56088
London Borough of Sutton,02/05/2023,50350154,858.73,Choice Support,GRANTS & EX GRATIA PAYMENTS,Peoples Services,Supported Living,A56088
London Borough of Sutton,02/05/2023,50350154,"4,853.57",Choice Support,GRANTS & EX GRATIA PAYMENTS,Peoples Services,Supported Living,A56088
London Borough of Sutton,02/05/2023,50350155,"6,145.42",Choice Support,GRANTS & EX GRATIA PAYMENTS,Peoples Services,Supported Living,A56088
London Borough of Sutton,02/05/2023,50350155,236.61,Choice Support,GRANTS & EX GRATIA PAYMENTS,Peoples Services,Supported Living,A56088
London Borough of Sutton,02/05/2023,50350155,613.37,Choice Support,GRANTS & EX GRATIA PAYMENTS,Peoples Services,Supported Living,A56088
London Borough of Sutton,02/05/2023,50350156,"2,722.07",Choice Support,GRANTS & EX GRATIA PAYMENTS,Peoples Services,Supported Living,A56088
London Borough of Sutton,02/05/2023,50350156,"1,589.45",Choice Support,GRANTS & EX GRATIA PAYMENTS,Peoples Services,Supported Living,A56088
London Borough of Sutton,02/05/2023,50350156,236.61,Choice Support,GRANTS & EX GRATIA PAYMENTS,Peoples Services,Supported Living,A56088
London Borough of Sutton,02/05/2023,50350156,613.37,Choice Support,GRANTS & EX GRATIA PAYMENTS,Peoples Services,Supported Living,A56088
London Borough of Sutton,02/05/2023,50350157,"2,259.90",Choice Support,GRANTS & EX GRATIA PAYMENTS,Peoples Services,Supported Living,A56088
London Borough of Sutton,02/05/2023,50350157,"1,480.12",Choice Support,GRANTS & EX GRATIA PAYMENTS,Peoples Services,Supported Living,A56088
London Borough of Sutton,02/05/2023,50350157,236.61,Choice Support,GRANTS & EX GRATIA PAYMENTS,Peoples Services,Supported Living,A56088
London Borough of Sutton,02/05/2023,50350157,613.37,Choice Support,GRANTS & EX GRATIA PAYMENTS,Peoples Services,Supported Living,A56088
London Borough of Sutton,02/05/2023,50350158,"1,640.27",Choice Support,GRANTS & EX GRATIA PAYMENTS,Peoples Services,Supported Living,A56088
London Borough of Sutton,02/05/2023,50350158,"1,735.55",Choice Support,GRANTS & EX GRATIA PAYMENTS,Peoples Services,Supported Living,A56088
London Borough of Sutton,02/05/2023,50350158,236.61,Choice Support,GRANTS & EX GRATIA PAYMENTS,Peoples Services,Supported Living,A56088
London Borough of Sutton,02/05/2023,50350158,613.37,Choice Support,GRANTS & EX GRATIA PAYMENTS,Peoples Services,Supported Living,A56088
London Borough of Sutton,02/05/2023,50350159,"6,698.07",Choice Support,GRANTS & EX GRATIA PAYMENTS,Peoples Services,Supported Living,A56088
London Borough of Sutton,02/05/2023,50350159,858.73,Choice Support,GRANTS & EX GRATIA PAYMENTS,Peoples Services,Supported Living,A56088
London Borough of Sutton,12/05/2023,50354143,"5,716.12",Choice Support,GRANTS & EX GRATIA PAYMENTS,Peoples Services,Residential Care - Ext Provider,A56114
London Borough of Sutton,19/05/2023,50355519,"2,438.99",Choice Support,GRANTS & EX GRATIA PAYMENTS,Peoples Services,Supported Living,A56088
London Borough of Sutton,19/05/2023,50355519,494.18,Choice Support,GRANTS & EX GRATIA PAYMENTS,Peoples Services,Supported Living,A56088
London Borough of Sutton,19/05/2023,50355519,"1,714.57",Choice Support,GRANTS & EX GRATIA PAYMENTS,Peoples Services,Supported Living,A56088
London Borough of Sutton,19/05/2023,50355519,672.74,Choice Support,GRANTS & EX GRATIA PAYMENTS,Peoples Services,Supported Living,A56088
London Borough of Sutton,19/05/2023,50355523,"1,219.58",Choice Support,GRANTS & EX GRATIA PAYMENTS,Peoples Services,Supported Living,A56088
London Borough of Sutton,19/05/2023,50355523,"5,506.53",Choice Support,GRANTS & EX GRATIA PAYMENTS,Peoples Services,Supported Living,A56088
London Borough of Sutton,19/05/2023,50355523,"1,127.78",Choice Support,GRANTS & EX GRATIA PAYMENTS,Peoples Services,Supported Living,A56088
London Borough of Sutton,19/05/2023,50355524,"3,567.48",Choice Support,GRANTS & EX GRATIA PAYMENTS,Peoples Services,Supported Living,A56088
London Borough of Sutton,19/05/2023,50355526,"1,219.58",Choice Support,GRANTS & EX GRATIA PAYMENTS,Peoples Services,Supported Living,A56088
London Borough of Sutton,19/05/2023,50355526,"3,215.23",Choice Support,GRANTS & EX GRATIA PAYMENTS,Peoples Services,Supported Living,A56088
London Borough of Sutton,19/05/2023,50355526,"1,127.78",Choice Support,GRANTS & EX GRATIA PAYMENTS,Peoples Services,Supported Living,A56088
London Borough of Sutton,19/05/2023,50355527,"1,219.58",Choice Support,GRANTS & EX GRATIA PAYMENTS,Peoples Services,Supported Living,A56088
London Borough of Sutton,19/05/2023,50355527,"2,808.69",Choice Support,GRANTS & EX GRATIA PAYMENTS,Peoples Services,Supported Living,A56088
London Borough of Sutton,19/05/2023,50355527,"1,127.78",Choice Support,GRANTS & EX GRATIA PAYMENTS,Peoples Services,Supported Living,A56088
London Borough of Sutton,19/05/2023,50355528,"4,286.95",Choice Support,GRANTS & EX GRATIA PAYMENTS,Peoples Services,Supported Living,A56088
London Borough of Sutton,19/05/2023,50355528,902.23,Choice Support,GRANTS & EX GRATIA PAYMENTS,Peoples Services,Supported Living,A56088
London Borough of Sutton,19/05/2023,50355533,545.60,Choice Support,GRANTS & EX GRATIA PAYMENTS,Peoples Services,Supported Living,A56088
London Borough of Sutton,19/05/2023,50355533,529.17,Choice Support,GRANTS & EX GRATIA PAYMENTS,Peoples Services,Supported Living,A56088
London Borough of Sutton,19/05/2023,50355533,"2,104.46",Choice Support,GRANTS & EX GRATIA PAYMENTS,Peoples Services,Supported Living,A56088
London Borough of Sutton,19/05/2023,50355540,868.49,Choice Support,GRANTS & EX GRATIA PAYMENTS,Peoples Services,Supported Living,A56088
London Borough of Sutton,19/05/2023,50355540,"3,584.80",Choice Support,GRANTS & EX GRATIA PAYMENTS,Peoples Services,Supported Living,A56088
London Borough of Sutton,19/05/2023,50355540,902.23,Choice Support,GRANTS & EX GRATIA PAYMENTS,Peoples Services,Supported Living,A56088
London Borough of Sutton,19/05/2023,50355542,"1,219.58",Choice Support,GRANTS & EX GRATIA PAYMENTS,Peoples Services,Supported Living,A56088
London Borough of Sutton,19/05/2023,50355542,"5,395.64",Choice Support,GRANTS & EX GRATIA PAYMENTS,Peoples Services,Supported Living,A56088
London Borough of Sutton,19/05/2023,50355542,"1,127.78",Choice Support,GRANTS & EX GRATIA PAYMENTS,Peoples Services,Supported Living,A56088
London Borough of Sutton,19/05/2023,50355551,"5,543.46",Choice Support,GRANTS & EX GRATIA PAYMENTS,Peoples Services,Supported Living,A56088
London Borough of Sutton,19/05/2023,50355551,902.23,Choice Support,GRANTS & EX GRATIA PAYMENTS,Peoples Services,Supported Living,A56088
London Borough of Sutton,19/05/2023,50355552,311.77,Choice Support,GRANTS & EX GRATIA PAYMENTS,Peoples Services,Supported Living,A56088
London Borough of Sutton,19/05/2023,50355552,529.17,Choice Support,GRANTS & EX GRATIA PAYMENTS,Peoples Services,Supported Living,A56088
London Borough of Sutton,19/05/2023,50355552,"2,104.46",Choice Support,GRANTS & EX GRATIA PAYMENTS,Peoples Services,Supported Living,A56088
London Borough of Sutton,19/05/2023,50355559,"1,219.58",Choice Support,GRANTS & EX GRATIA PAYMENTS,Peoples Services,Supported Living,A56088
London Borough of Sutton,19/05/2023,50355559,"3,252.17",Choice Support,GRANTS & EX GRATIA PAYMENTS,Peoples Services,Supported Living,A56088
London Borough of Sutton,19/05/2023,50355559,"1,127.78",Choice Support,GRANTS & EX GRATIA PAYMENTS,Peoples Services,Supported Living,A56088
London Borough of Sutton,19/05/2023,50355562,"33,792.00",Choice Support,GRANTS & EX GRATIA PAYMENTS,Peoples Services,Supported Living,A56088
London Borough of Sutton,19/05/2023,50355562,"7,638.86",Choice Support,GRANTS & EX GRATIA PAYMENTS,Peoples Services,Supported Living,A56088
London Borough of Sutton,19/05/2023,50355563,"1,219.58",Choice Support,GRANTS & EX GRATIA PAYMENTS,Peoples Services,Supported Living,A56088
London Borough of Sutton,19/05/2023,50355563,"3,326.08",Choice Support,GRANTS & EX GRATIA PAYMENTS,Peoples Services,Supported Living,A56088
London Borough of Sutton,19/05/2023,50355563,"1,127.78",Choice Support,GRANTS & EX GRATIA PAYMENTS,Peoples Services,Supported Living,A56088
London Borough of Sutton,19/05/2023,50355564,"1,820.14",Choice Support,GRANTS & EX GRATIA PAYMENTS,Peoples Services,Supported Living,A56088
London Borough of Sutton,19/05/2023,50355564,494.18,Choice Support,GRANTS & EX GRATIA PAYMENTS,Peoples Services,Supported Living,A56088
London Borough of Sutton,19/05/2023,50355564,"2,475.39",Choice Support,GRANTS & EX GRATIA PAYMENTS,Peoples Services,Supported Living,A56088
London Borough of Sutton,19/05/2023,50355564,122.32,Choice Support,GRANTS & EX GRATIA PAYMENTS,Peoples Services,Supported Living,A56088
London Borough of Sutton,19/05/2023,50355565,868.49,Choice Support,GRANTS & EX GRATIA PAYMENTS,Peoples Services,Supported Living,A56088
London Borough of Sutton,19/05/2023,50355565,"3,843.47",Choice Support,GRANTS & EX GRATIA PAYMENTS,Peoples Services,Supported Living,A56088
London Borough of Sutton,19/05/2023,50355565,902.23,Choice Support,GRANTS & EX GRATIA PAYMENTS,Peoples Services,Supported Living,A56088
London Borough of Sutton,19/05/2023,50355566,868.49,Choice Support,GRANTS & EX GRATIA PAYMENTS,Peoples Services,Supported Living,A56088
London Borough of Sutton,19/05/2023,50355566,"3,326.08",Choice Support,GRANTS & EX GRATIA PAYMENTS,Peoples Services,Supported Living,A56088
London Borough of Sutton,19/05/2023,50355566,902.23,Choice Support,GRANTS & EX GRATIA PAYMENTS,Peoples Services,Supported Living,A56088
London Borough of Sutton,19/05/2023,50355568,"2,402.59",Choice Support,GRANTS & EX GRATIA PAYMENTS,Peoples Services,Supported Living,A56088
London Borough of Sutton,19/05/2023,50355568,502.91,Choice Support,GRANTS & EX GRATIA PAYMENTS,Peoples Services,Supported Living,A56088
London Borough of Sutton,19/05/2023,50355568,"1,687.64",Choice Support,GRANTS & EX GRATIA PAYMENTS,Peoples Services,Supported Living,A56088
London Borough of Sutton,19/05/2023,50355568,672.74,Choice Support,GRANTS & EX GRATIA PAYMENTS,Peoples Services,Supported Living,A56088
London Borough of Sutton,19/05/2023,50355569,494.18,Choice Support,GRANTS & EX GRATIA PAYMENTS,Peoples Services,Supported Living,A56088
London Borough of Sutton,19/05/2023,50355569,"4,004.31",Choice Support,GRANTS & EX GRATIA PAYMENTS,Peoples Services,Supported Living,A56088
London Borough of Sutton,19/05/2023,50355569,122.32,Choice Support,GRANTS & EX GRATIA PAYMENTS,Peoples Services,Supported Living,A56088
London Borough of Sutton,19/05/2023,50355571,"21,270.86",Choice Support,GRANTS & EX GRATIA PAYMENTS,Peoples Services,Supported Living,A56088
London Borough of Sutton,19/05/2023,50355571,"7,638.86",Choice Support,GRANTS & EX GRATIA PAYMENTS,Peoples Services,Supported Living,A56088
London Borough of Sutton,19/05/2023,50355579,868.49,Choice Support,GRANTS & EX GRATIA PAYMENTS,Peoples Services,Supported Living,A56088
London Borough of Sutton,19/05/2023,50355579,"2,550.02",Choice Support,GRANTS & EX GRATIA PAYMENTS,Peoples Services,Supported Living,A56088
London Borough of Sutton,19/05/2023,50355579,902.23,Choice Support,GRANTS & EX GRATIA PAYMENTS,Peoples Services,Supported Living,A56088
London Borough of Sutton,19/05/2023,50355582,"2,256.98",Choice Support,GRANTS & EX GRATIA PAYMENTS,Peoples Services,Supported Living,A56088
London Borough of Sutton,19/05/2023,50355582,494.18,Choice Support,GRANTS & EX GRATIA PAYMENTS,Peoples Services,Supported Living,A56088
London Borough of Sutton,19/05/2023,50355582,"1,456.11",Choice Support,GRANTS & EX GRATIA PAYMENTS,Peoples Services,Supported Living,A56088
London Borough of Sutton,19/05/2023,50355582,122.32,Choice Support,GRANTS & EX GRATIA PAYMENTS,Peoples Services,Supported Living,A56088
London Borough of Sutton,19/05/2023,50355583,"2,147.77",Choice Support,GRANTS & EX GRATIA PAYMENTS,Peoples Services,Supported Living,A56088
London Borough of Sutton,19/05/2023,50355583,494.18,Choice Support,GRANTS & EX GRATIA PAYMENTS,Peoples Services,Supported Living,A56088
London Borough of Sutton,19/05/2023,50355583,"1,659.96",Choice Support,GRANTS & EX GRATIA PAYMENTS,Peoples Services,Supported Living,A56088
London Borough of Sutton,19/05/2023,50355583,672.74,Choice Support,GRANTS & EX GRATIA PAYMENTS,Peoples Services,Supported Living,A56088
London Borough of Sutton,19/05/2023,50355584,"3,831.78",Choice Support,GRANTS & EX GRATIA PAYMENTS,Peoples Services,Supported Living,A56088
London Borough of Sutton,19/05/2023,50355584,494.18,Choice Support,GRANTS & EX GRATIA PAYMENTS,Peoples Services,Supported Living,A56088
London Borough of Sutton,19/05/2023,50355584,"1,448.85",Choice Support,GRANTS & EX GRATIA PAYMENTS,Peoples Services,Supported Living,A56088
London Borough of Sutton,19/05/2023,50355584,672.74,Choice Support,GRANTS & EX GRATIA PAYMENTS,Peoples Services,Supported Living,A56088
London Borough of Sutton,19/05/2023,50355587,"4,910.40",Choice Support,GRANTS & EX GRATIA PAYMENTS,Peoples Services,Supported Living,A56088
London Borough of Sutton,19/05/2023,50355587,529.17,Choice Support,GRANTS & EX GRATIA PAYMENTS,Peoples Services,Supported Living,A56088
London Borough of Sutton,19/05/2023,50355587,"2,104.46",Choice Support,GRANTS & EX GRATIA PAYMENTS,Peoples Services,Supported Living,A56088
London Borough of Sutton,19/05/2023,50355590,"1,219.58",Choice Support,GRANTS & EX GRATIA PAYMENTS,Peoples Services,Supported Living,A56088
London Borough of Sutton,19/05/2023,50355590,"3,215.23",Choice Support,GRANTS & EX GRATIA PAYMENTS,Peoples Services,Supported Living,A56088
London Borough of Sutton,19/05/2023,50355590,"1,127.78",Choice Support,GRANTS & EX GRATIA PAYMENTS,Peoples Services,Supported Living,A56088
London Borough of Sutton,19/05/2023,50355591,868.49,Choice Support,GRANTS & EX GRATIA PAYMENTS,Peoples Services,Supported Living,A56088
London Borough of Sutton,19/05/2023,50355591,"4,286.95",Choice Support,GRANTS & EX GRATIA PAYMENTS,Peoples Services,Supported Living,A56088
London Borough of Sutton,19/05/2023,50355591,902.23,Choice Support,GRANTS & EX GRATIA PAYMENTS,Peoples Services,Supported Living,A56088
London Borough of Sutton,19/05/2023,50355601,"2,372.03",Choice Support,GRANTS & EX GRATIA PAYMENTS,Peoples Services,Supported Living,A56088
London Borough of Sutton,19/05/2023,50355601,494.18,Choice Support,GRANTS & EX GRATIA PAYMENTS,Peoples Services,Supported Living,A56088
London Borough of Sutton,19/05/2023,50355601,"1,678.16",Choice Support,GRANTS & EX GRATIA PAYMENTS,Peoples Services,Supported Living,A56088
London Borough of Sutton,19/05/2023,50355601,672.74,Choice Support,GRANTS & EX GRATIA PAYMENTS,Peoples Services,Supported Living,A56088
London Borough of Sutton,19/05/2023,50355610,"1,219.58",Choice Support,GRANTS & EX GRATIA PAYMENTS,Peoples Services,Supported Living,A56088
London Borough of Sutton,19/05/2023,50355610,"3,399.99",Choice Support,GRANTS & EX GRATIA PAYMENTS,Peoples Services,Supported Living,A56088
London Borough of Sutton,19/05/2023,50355610,"1,127.78",Choice Support,GRANTS & EX GRATIA PAYMENTS,Peoples Services,Supported Living,A56088
London Borough of Sutton,19/05/2023,50355611,"4,441.15",Choice Support,GRANTS & EX GRATIA PAYMENTS,Peoples Services,Supported Living,A56088
London Borough of Sutton,01/05/2023,50349381,"2,220.00",Christchurch Fledgelings Pre-School,GRANTS & EX GRATIA PAYMENTS,Peoples Services,SEND Inclusion funding,A60038
London Borough of Sutton,11/05/2023,50350646,"14,472.00",Christchurch Fledgelings Pre-School,GRANTS & EX GRATIA PAYMENTS,Peoples Services,Payment - Nursery Funding,A51056
London Borough of Sutton,11/05/2023,50350768,"1,216.80",Christchurch Fledgelings Pre-School,GRANTS & EX GRATIA PAYMENTS,Peoples Services,Payment - Nursery Funding,A51056
London Borough of Sutton,30/05/2023,50355975,567.74,REDACTED - PERSONAL DATA,CHILDREN'S SERVICES - FOSTERING & ADOPTION SERVICES,Peoples Services,Holiday Allowances,A56013
London Borough of Sutton,08/04/2023,20049221,"1,096.98",REDACTED - PERSONAL DATA,GRANTS & EX GRATIA PAYMENTS,Environment Housing and Neighbourhoods,Temporary Protection - Homeless Persons,A62028
London Borough of Sutton,03/05/2023,20048611,"49,327.50",CIPFA Business Limited,CONFERENCES,Resources,Subscriptions,A47010
London Borough of Sutton,11/05/2023,50350491,"14,440.95",Barrow Hedges Primary School Academy,GRANTS & EX GRATIA PAYMENTS,Peoples Services,Place Funding,A56110
London Borough of Sutton,11/05/2023,50350524,"1,980.00",Barrow Hedges Primary School Academy,GRANTS & EX GRATIA PAYMENTS,Resources,"Grants, Contributions & Donations",A47005
London Borough of Sutton,09/05/2023,50352085,"13,348.83",Barrow Hedges Primary School Academy,GRANTS & EX GRATIA PAYMENTS,Peoples Services,Top-up Funding,A51016
London Borough of Sutton,01/05/2023,20048571,"27,014.00",Cityglen Ltd,ACCOMMODATION BED & BREAKFAST,Environment Housing and Neighbourhoods,Bed & Breakfast,A56000
London Borough of Sutton,30/04/2023,20048863,"49,515.00",Civica UK Ltd,BUSINESS & COMPUTER SYSTEMS,Resources,IT Software Purchase,A45040
London Borough of Sutton,30/04/2023,20049317,"1,187.34",Civica UK Ltd,BUSINESS & COMPUTER SYSTEMS,Resources,FM - Planned Maintenance Contract - Mitie,A56097
London Borough of Sutton,31/03/2023,20049318,"3,740.00",Civica UK Ltd,BUSINESS & COMPUTER SYSTEMS,Resources,FM - Planned Maintenance Contract - Mitie,A56097
London Borough of Sutton,03/05/2023,20048802,"5,680.00",CJA Property Consulting Limited,OFFICE SERVICES,Resources,Professional Fees,A44066
London Borough of Sutton,12/05/2023,50354169,"6,487.64",Claremont Care Svs Ltd,SOCIAL SERVICES RESIDENTIAL,Peoples Services,Nursing Care - Ext Provider,A56025
London Borough of Sutton,12/05/2023,50354169,-750.40,Claremont Care Svs Ltd,SOCIAL SERVICES RESIDENTIAL,Peoples Services,Nursing Care - 3rd party top up payment,A56023
London Borough of Sutton,12/05/2023,50354195,"-11,424.00",Claremont Care Svs Ltd,SOCIAL SERVICES RESIDENTIAL,Peoples Services,Nursing Care - 3rd party top up payment,A56023
London Borough of Sutton,12/05/2023,50354195,"14,613.88",Claremont Care Svs Ltd,SOCIAL SERVICES RESIDENTIAL,Peoples Services,Nursing Care - Ext Provider,A56025
London Borough of Sutton,12/05/2023,50354205,-408.03,Claremont Care Svs Ltd,SOCIAL SERVICES RESIDENTIAL,Peoples Services,Nursing Care - 3rd party top up payment,A56023
London Borough of Sutton,12/05/2023,50354205,"3,639.46",Claremont Care Svs Ltd,SOCIAL SERVICES RESIDENTIAL,Peoples Services,Nursing Care Short Term,A56026
London Borough of Sutton,12/05/2023,50354208,"6,513.96",Claremont Care Svs Ltd,SOCIAL SERVICES RESIDENTIAL,Peoples Services,Nursing Care - Ext Provider,A56025
London Borough of Sutton,12/05/2023,50354208,-836.76,Claremont Care Svs Ltd,SOCIAL SERVICES RESIDENTIAL,Peoples Services,Nursing Care - 3rd party top up payment,A56023
London Borough of Sutton,12/05/2023,50354228,"5,367.84",Claremont Care Svs Ltd,SOCIAL SERVICES RESIDENTIAL,Peoples Services,Nursing Care - Ext Provider,A56025
London Borough of Sutton,12/05/2023,50354228,-735.68,Claremont Care Svs Ltd,SOCIAL SERVICES RESIDENTIAL,Peoples Services,Nursing Care - 3rd party top up payment,A56023
London Borough of Sutton,12/05/2023,50354331,"6,436.76",Claremont Care Svs Ltd,SOCIAL SERVICES RESIDENTIAL,Peoples Services,Nursing Care - Ext Provider,A56025
London Borough of Sutton,12/05/2023,50354331,"-1,381.03",Claremont Care Svs Ltd,SOCIAL SERVICES RESIDENTIAL,Peoples Services,Nursing Care - 3rd party top up payment,A56023
London Borough of Sutton,12/05/2023,50354453,"6,236.76",Claremont Care Svs Ltd,SOCIAL SERVICES RESIDENTIAL,Peoples Services,Nursing Care - Ext Provider,A56025
London Borough of Sutton,12/05/2023,50354453,-836.76,Claremont Care Svs Ltd,SOCIAL SERVICES RESIDENTIAL,Peoples Services,Nursing Care - 3rd party top up payment,A56023
London Borough of Sutton,12/05/2023,50354469,"6,236.76",Claremont Care Svs Ltd,SOCIAL SERVICES RESIDENTIAL,Peoples Services,Nursing Care Short Term,A56026
London Borough of Sutton,12/05/2023,50354469,-836.76,Claremont Care Svs Ltd,SOCIAL SERVICES RESIDENTIAL,Peoples Services,Nursing Care - 3rd party top up payment,A56023
London Borough of Sutton,12/05/2023,50354492,"4,525.36",Claremont Care Svs Ltd,SOCIAL SERVICES RESIDENTIAL,Peoples Services,Nursing Care - Ext Provider,A56025
London Borough of Sutton,12/05/2023,50354492,-750.40,Claremont Care Svs Ltd,SOCIAL SERVICES RESIDENTIAL,Peoples Services,Nursing Care - 3rd party top up payment,A56023
London Borough of Sutton,12/05/2023,50354537,"-2,198.99",Claremont Care Svs Ltd,SOCIAL SERVICES RESIDENTIAL,Peoples Services,Nursing Care - Ext Provider,A56025
London Borough of Sutton,12/05/2023,50354537,455.60,Claremont Care Svs Ltd,SOCIAL SERVICES RESIDENTIAL,Peoples Services,Nursing Care - 3rd party top up payment,A56023
London Borough of Sutton,12/05/2023,50354051,-735.68,Bondcare (London) Ltd,SOCIAL SERVICES RESIDENTIAL,Peoples Services,Nursing Care - 3rd party top up payment,A56023
London Borough of Sutton,12/05/2023,50354051,"3,720.16",Bondcare (London) Ltd,SOCIAL SERVICES RESIDENTIAL,Peoples Services,Nursing Care - Ext Provider,A56025
London Borough of Sutton,26/04/2023,50349970,759.45,Classroom Teachers Ltd,ACADEMIC INSTNS - OTHER,Peoples Services,Independent School Fees,A56002
London Borough of Sutton,10/05/2023,50354568,"1,367.01",Classroom Teachers Ltd,ACADEMIC INSTNS - OTHER,Peoples Services,Independent School Fees,A56002
London Borough of Sutton,17/05/2023,50356766,759.45,Classroom Teachers Ltd,ACADEMIC INSTNS - OTHER,Peoples Services,Independent School Fees,A56002
London Borough of Sutton,09/05/2023,50352432,746.64,Clear Thinking Care Limited,SOCIAL SERVICES RESIDENTIAL,Peoples Services,Supported Living,A56088
London Borough of Sutton,09/05/2023,50353451,"1,343.95",Clear Thinking Care Limited,SOCIAL SERVICES RESIDENTIAL,Peoples Services,Supported Living,A56088
London Borough of Sutton,10/05/2023,50353452,"2,495.77",Clear Thinking Care Limited,SOCIAL SERVICES RESIDENTIAL,Peoples Services,Supported Living,A56088
London Borough of Sutton,18/05/2023,50358484,"2,495.77",Clear Thinking Care Limited,SOCIAL SERVICES RESIDENTIAL,Peoples Services,Supported Living,A56088
London Borough of Sutton,19/05/2023,50355597,"1,097.00",CLIA CARE LTD,SOCIAL SERVICES RESIDENTIAL,Peoples Services,Supported Living,A56088
London Borough of Sutton,19/05/2023,50355597,731.60,CLIA CARE LTD,SOCIAL SERVICES RESIDENTIAL,Peoples Services,Supported Living,A56088
London Borough of Sutton,19/05/2023,50355597,"3,886.47",CLIA CARE LTD,SOCIAL SERVICES RESIDENTIAL,Peoples Services,Supported Living,A56088
London Borough of Sutton,19/05/2023,50355597,"2,859.75",CLIA CARE LTD,SOCIAL SERVICES RESIDENTIAL,Peoples Services,One to One Care,A56108
London Borough of Sutton,19/05/2023,50355597,"-4,287.43",CLIA CARE LTD,SOCIAL SERVICES RESIDENTIAL,Peoples Services,Nursing Care - 3rd party top up payment,A56023
London Borough of Sutton,23/04/2023,50351828,597.00,Clovecare Ltd,SOCIAL SERVICES RESIDENTIAL,Peoples Services,Home Care Services,A56019
London Borough of Sutton,23/04/2023,50351911,597.00,Clovecare Ltd,SOCIAL SERVICES RESIDENTIAL,Peoples Services,Home Care Services,A56019
London Borough of Sutton,07/05/2023,50352684,613.29,Clovecare Ltd,SOCIAL SERVICES RESIDENTIAL,Peoples Services,Home Care Services,A56019
London Borough of Sutton,21/05/2023,50356590,763.25,Clovecare Ltd,SOCIAL SERVICES RESIDENTIAL,Peoples Services,Home Care Services,A56019
London Borough of Sutton,21/05/2023,50356590,199.00,Clovecare Ltd,SOCIAL SERVICES RESIDENTIAL,Peoples Services,Home Care Services,A56019
London Borough of Sutton,12/05/2023,50354070,"4,234.16",Coast Care Homes Ltd,SOCIAL SERVICES RESIDENTIAL,Peoples Services,Residential Care - Ext Provider,A56114
London Borough of Sutton,12/05/2023,50354076,"12,960.16",Cognithan Ltd,SOCIAL SERVICES RESIDENTIAL,Peoples Services,Residential Care - Ext Provider,A56114
London Borough of Sutton,31/03/2023,20046855,"133,895.33",Cognus Ltd,LEGAL & PROFESSIONAL SERVICES,Peoples Services,Special Educational Needs,A51015
London Borough of Sutton,31/03/2023,20046857,"150,275.00",Cognus Ltd,LEGAL & PROFESSIONAL SERVICES,Peoples Services,Consultancy Services,A56007
London Borough of Sutton,31/03/2023,20046858,"133,895.33",Cognus Ltd,LEGAL & PROFESSIONAL SERVICES,Peoples Services,Special Educational Needs,A51015
London Borough of Sutton,28/04/2023,20048414,"148,062.50",Cognus Ltd,LEGAL & PROFESSIONAL SERVICES,Peoples Services,Special Educational Needs,A51015
London Borough of Sutton,28/04/2023,20048415,"148,062.50",Cognus Ltd,LEGAL & PROFESSIONAL SERVICES,Peoples Services,Special Educational Needs,A51015
London Borough of Sutton,28/04/2023,20048417,"151,477.17",Cognus Ltd,LEGAL & PROFESSIONAL SERVICES,Peoples Services,Special Educational Needs,A51015
London Borough of Sutton,28/04/2023,20048418,"231,686.53",Cognus Ltd,LEGAL & PROFESSIONAL SERVICES,Peoples Services,Consultancy Services,A56007
London Borough of Sutton,28/04/2023,20048419,"15,769.42",Cognus Ltd,LEGAL & PROFESSIONAL SERVICES,Peoples Services,Special Educational Needs,A51015
London Borough of Sutton,28/04/2023,20048420,"42,533.33",Cognus Ltd,LEGAL & PROFESSIONAL SERVICES,Peoples Services,Special Educational Needs,A51015
London Borough of Sutton,02/05/2023,20048442,"231,686.53",Cognus Ltd,LEGAL & PROFESSIONAL SERVICES,Peoples Services,Consultancy Services,A56007
London Borough of Sutton,02/05/2023,20048443,"15,769.42",Cognus Ltd,LEGAL & PROFESSIONAL SERVICES,Peoples Services,Special Educational Needs,A51015
London Borough of Sutton,28/04/2023,20049815,"15,769.42",Cognus Ltd,LEGAL & PROFESSIONAL SERVICES,Peoples Services,Special Educational Needs,A51015
London Borough of Sutton,12/05/2023,50354063,"11,981.04",Coleg Elidyr Camphill Communities,CHILDREN'S SERVICES - RESIDENTIAL,Peoples Services,Interim Placements - Ext Provider,A56102
London Borough of Sutton,11/05/2023,50350648,"9,120.60",Collingwood School Ltd,GRANTS & EX GRATIA PAYMENTS,Peoples Services,Payment - Nursery Funding,A51056
London Borough of Sutton,07/04/2023,20047371,485.10,Commercial Clays,OPERATIONAL EQUIPMENT/MATERIAL,Health and Wellbeing,Equipment And Materials Purchase,A40000
London Borough of Sutton,07/04/2023,20047371,8.00,Commercial Clays,OPERATIONAL EQUIPMENT/MATERIAL,Health and Wellbeing,Equipment And Materials Purchase,A40000
London Borough of Sutton,07/04/2023,20047371,57.36,Commercial Clays,OPERATIONAL EQUIPMENT/MATERIAL,Health and Wellbeing,Equipment And Materials Purchase,A40000
London Borough of Sutton,31/03/2023,20048783,"2,525.00",Community Action Sutton,GRANTS & EX GRATIA PAYMENTS,Health and Wellbeing,Professional Fees,A44066
London Borough of Sutton,19/05/2023,50358961,"3,521.70",Compass Fostering London Ltd,CHILDREN'S SERVICES - FOSTERING & ADOPTION SERVICES,Peoples Services,Foster Parents Support,A44110
London Borough of Sutton,19/05/2023,50358964,"3,632.10",Compass Fostering London Ltd,CHILDREN'S SERVICES - FOSTERING & ADOPTION SERVICES,Peoples Services,Foster Parents Support,A44110
London Borough of Sutton,19/05/2023,50358965,"3,956.40",Compass Fostering London Ltd,CHILDREN'S SERVICES - FOSTERING & ADOPTION SERVICES,Peoples Services,Foster Parents Support,A44110
London Borough of Sutton,17/04/2023,50351134,"4,499.70",Compass Fostering South Ltd,CHILDREN'S SERVICES - FOSTERING & ADOPTION SERVICES,Peoples Services,Foster Parents Support,A44110
London Borough of Sutton,04/04/2023,50351107,"3,750.00",Connect Fostering Services Ltd,CHILDREN'S SERVICES - FOSTERING & ADOPTION SERVICES,Peoples Services,Foster Parents Support,A44110
London Borough of Sutton,04/04/2023,50351124,"4,028.57",Connect Fostering Services Ltd,CHILDREN'S SERVICES - FOSTERING & ADOPTION SERVICES,Peoples Services,Foster Parents Support,A44110
London Borough of Sutton,01/05/2023,50349396,"2,100.00",Little PioneersSsutton,GRANTS & EX GRATIA PAYMENTS,Peoples Services,SEND Inclusion funding,A60038
London Borough of Sutton,11/05/2023,50350584,"2,000.00",Little PioneersSsutton,GRANTS & EX GRATIA PAYMENTS,Peoples Services,Predictable Needs funding,A56125
London Borough of Sutton,11/05/2023,50350696,"8,886.24",Little PioneersSsutton,GRANTS & EX GRATIA PAYMENTS,Peoples Services,Payment - Nursery Funding,A51056
London Borough of Sutton,11/05/2023,50350787,"1,115.40",Little PioneersSsutton,GRANTS & EX GRATIA PAYMENTS,Peoples Services,Payment - Nursery Funding,A51056
London Borough of Sutton,17/04/2023,20048564,"1,821.34",Corona Energy,CONSULTING ARCHITECTS ENGINEER,Resources,Gas,A21003
London Borough of Sutton,11/05/2023,20049554,"1,406.76",Corona Energy,CONSULTING ARCHITECTS ENGINEER,Resources,Gas,A21003
London Borough of Sutton,11/05/2023,50350419,919.50,Cosy Cottage Daycare Ltd,GRANTS & EX GRATIA PAYMENTS,Peoples Services,Payment - Nursery Funding,A51056
London Borough of Sutton,11/05/2023,50350816,912.60,Cosy Cottage Daycare Ltd,GRANTS & EX GRATIA PAYMENTS,Peoples Services,Payment - Nursery Funding,A51056
London Borough of Sutton,11/05/2023,50350822,"1,447.20",Cosy Cottage Daycare Ltd,GRANTS & EX GRATIA PAYMENTS,Peoples Services,Payment - Nursery Funding,A51056
London Borough of Sutton,12/05/2023,50354027,"4,400.00",Country Court Care Homes 2 Ltd,SOCIAL SERVICES RESIDENTIAL,Peoples Services,Nursing Care - Ext Provider,A56025
London Borough of Sutton,12/05/2023,50354027,"-1,226.92",Country Court Care Homes 2 Ltd,SOCIAL SERVICES RESIDENTIAL,Peoples Services,Nursing Care - 3rd party top up payment,A56023
London Borough of Sutton,15/04/2023,20047530,"2,800.00",Crafty Critters Club Ltd,TEMP STAFF & CONSULTANCY,Resources,Other Supplies & Services,A44291
London Borough of Sutton,30/05/2023,50355952,567.74,Craig Hill and Paul Clark,FOSTER PARENTS,Peoples Services,Holiday Allowances,A56013
London Borough of Sutton,01/05/2023,20048612,"154,067.08",Cranstoun,SOCIAL SERVICES - OTHER,Health and Wellbeing,Provider Contract Payments,A44290
London Borough of Sutton,12/05/2023,50354033,"7,584.16",Cream 1 Ltd,SOCIAL SERVICES RESIDENTIAL,Peoples Services,Residential Care - Ext Provider,A56114
London Borough of Sutton,12/05/2023,50354033,"5,560.52",Cream 1 Ltd,SOCIAL SERVICES RESIDENTIAL,Peoples Services,One to One Care,A56108
London Borough of Sutton,05/04/2023,50351137,"6,732.86",Credo Care Limited,CHILDREN'S SERVICE - OTHER,Peoples Services,Foster Parents Support,A44110
London Borough of Sutton,20/02/2023,50360294,"21,984.69",Cressey Oasis Education Ltd,CHILDREN'S SERVICES - RESIDENTIAL,Peoples Services,Independent School Fees,A56002
London Borough of Sutton,12/05/2023,50354182,"4,310.95",CRNH Ltd,SOCIAL SERVICES RESIDENTIAL,Peoples Services,Nursing Care - Ext Provider,A56025
London Borough of Sutton,12/05/2023,50354182,-960.64,CRNH Ltd,SOCIAL SERVICES RESIDENTIAL,Peoples Services,Nursing Care - 3rd party top up payment,A56023
London Borough of Sutton,12/05/2023,50354262,-836.76,CRNH Ltd,SOCIAL SERVICES RESIDENTIAL,Peoples Services,Nursing Care - 3rd party top up payment,A56023
London Borough of Sutton,12/05/2023,50354262,"6,400.00",CRNH Ltd,SOCIAL SERVICES RESIDENTIAL,Peoples Services,Nursing Care Short Term,A56026
London Borough of Sutton,12/05/2023,50354280,"4,310.95",CRNH Ltd,SOCIAL SERVICES RESIDENTIAL,Peoples Services,Nursing Care - Ext Provider,A56025
London Borough of Sutton,12/05/2023,50354280,-934.37,CRNH Ltd,SOCIAL SERVICES RESIDENTIAL,Peoples Services,Nursing Care - 3rd party top up payment,A56023
London Borough of Sutton,12/05/2023,50354334,"6,028.52",CRNH Ltd,SOCIAL SERVICES RESIDENTIAL,Peoples Services,Nursing Care - Ext Provider,A56025
London Borough of Sutton,12/05/2023,50354334,-836.76,CRNH Ltd,SOCIAL SERVICES RESIDENTIAL,Peoples Services,Nursing Care - 3rd party top up payment,A56023
London Borough of Sutton,12/05/2023,50354342,-836.76,CRNH Ltd,SOCIAL SERVICES RESIDENTIAL,Peoples Services,Nursing Care - 3rd party top up payment,A56023
London Borough of Sutton,12/05/2023,50354342,"5,400.00",CRNH Ltd,SOCIAL SERVICES RESIDENTIAL,Peoples Services,Nursing Care Short Term,A56026
London Borough of Sutton,12/05/2023,50354480,"5,400.00",CRNH Ltd,SOCIAL SERVICES RESIDENTIAL,Peoples Services,Nursing Care - Ext Provider,A56025
London Borough of Sutton,12/05/2023,50354480,"4,215.39",CRNH Ltd,SOCIAL SERVICES RESIDENTIAL,Peoples Services,Nursing Care - 3rd party top up payment,A56023
London Borough of Sutton,12/05/2023,50354487,"-2,198.99",CRNH Ltd,SOCIAL SERVICES RESIDENTIAL,Peoples Services,Nursing Care - Ext Provider,A56025
London Borough of Sutton,12/05/2023,50354487,455.60,CRNH Ltd,SOCIAL SERVICES RESIDENTIAL,Peoples Services,Nursing Care - 3rd party top up payment,A56023
London Borough of Sutton,12/05/2023,50354526,"4,373.93",CRNH Ltd,SOCIAL SERVICES RESIDENTIAL,Peoples Services,Nursing Care - Ext Provider,A56025
London Borough of Sutton,12/05/2023,50354526,-996.93,CRNH Ltd,SOCIAL SERVICES RESIDENTIAL,Peoples Services,Nursing Care - 3rd party top up payment,A56023
London Borough of Sutton,12/05/2023,50354528,"4,343.00",CRNH Ltd,SOCIAL SERVICES RESIDENTIAL,Peoples Services,Nursing Care - Ext Provider,A56025
London Borough of Sutton,12/05/2023,50354528,-978.96,CRNH Ltd,SOCIAL SERVICES RESIDENTIAL,Peoples Services,Nursing Care - 3rd party top up payment,A56023
London Borough of Sutton,12/05/2023,50354529,"6,436.76",CRNH Ltd,SOCIAL SERVICES RESIDENTIAL,Peoples Services,Nursing Care - Ext Provider,A56025
London Borough of Sutton,12/05/2023,50354529,"-1,381.03",CRNH Ltd,SOCIAL SERVICES RESIDENTIAL,Peoples Services,Nursing Care - 3rd party top up payment,A56023
London Borough of Sutton,12/05/2023,50354553,"4,138.91",CRNH Ltd,SOCIAL SERVICES RESIDENTIAL,Peoples Services,Nursing Care - Ext Provider,A56025
London Borough of Sutton,12/05/2023,50354553,-925.43,CRNH Ltd,SOCIAL SERVICES RESIDENTIAL,Peoples Services,Nursing Care - 3rd party top up payment,A56023
London Borough of Sutton,12/05/2023,50354161,"4,310.95",Cross Care Services Ltd,SOCIAL SERVICES RESIDENTIAL,Peoples Services,Nursing Care - Ext Provider,A56025
London Borough of Sutton,12/05/2023,50354161,-934.37,Cross Care Services Ltd,SOCIAL SERVICES RESIDENTIAL,Peoples Services,Nursing Care - 3rd party top up payment,A56023
London Borough of Sutton,12/05/2023,50354170,"-1,381.03",Cross Care Services Ltd,SOCIAL SERVICES RESIDENTIAL,Peoples Services,Nursing Care - 3rd party top up payment,A56023
London Borough of Sutton,12/05/2023,50354170,"4,302.54",Cross Care Services Ltd,SOCIAL SERVICES RESIDENTIAL,Peoples Services,Nursing Care - Ext Provider,A56025
London Borough of Sutton,12/05/2023,50354170,455.60,Cross Care Services Ltd,SOCIAL SERVICES RESIDENTIAL,Peoples Services,Nursing Care - 3rd party top up payment,A56023
London Borough of Sutton,12/05/2023,50354283,"4,360.33",Cross Care Services Ltd,SOCIAL SERVICES RESIDENTIAL,Peoples Services,Nursing Care - Ext Provider,A56025
London Borough of Sutton,12/05/2023,50354345,"15,694.38",Cross Care Services Ltd,SOCIAL SERVICES RESIDENTIAL,Peoples Services,Nursing Care Short Term,A56026
London Borough of Sutton,12/05/2023,50354409,"-2,183.57",Cross Care Services Ltd,SOCIAL SERVICES RESIDENTIAL,Peoples Services,Nursing Care - Ext Provider,A56025
London Borough of Sutton,12/05/2023,50354409,508.03,Cross Care Services Ltd,SOCIAL SERVICES RESIDENTIAL,Peoples Services,Nursing Care - 3rd party top up payment,A56023
London Borough of Sutton,12/05/2023,50354409,"6,436.76",Cross Care Services Ltd,SOCIAL SERVICES RESIDENTIAL,Peoples Services,Nursing Care - Ext Provider,A56025
London Borough of Sutton,12/05/2023,50354409,"-1,381.03",Cross Care Services Ltd,SOCIAL SERVICES RESIDENTIAL,Peoples Services,Nursing Care - 3rd party top up payment,A56023
London Borough of Sutton,12/05/2023,50354431,"6,436.76",Cross Care Services Ltd,SOCIAL SERVICES RESIDENTIAL,Peoples Services,Nursing Care - Ext Provider,A56025
London Borough of Sutton,12/05/2023,50354431,"-1,381.03",Cross Care Services Ltd,SOCIAL SERVICES RESIDENTIAL,Peoples Services,Nursing Care - 3rd party top up payment,A56023
London Borough of Sutton,12/05/2023,50354485,446.66,Cross Care Services Ltd,SOCIAL SERVICES RESIDENTIAL,Peoples Services,Nursing Care - 3rd party top up payment,A56023
London Borough of Sutton,12/05/2023,50354485,"6,436.76",Cross Care Services Ltd,SOCIAL SERVICES RESIDENTIAL,Peoples Services,Nursing Care - Ext Provider,A56025
London Borough of Sutton,12/05/2023,50354485,"-1,381.03",Cross Care Services Ltd,SOCIAL SERVICES RESIDENTIAL,Peoples Services,Nursing Care - 3rd party top up payment,A56023
London Borough of Sutton,12/05/2023,50354485,"-2,125.81",Cross Care Services Ltd,SOCIAL SERVICES RESIDENTIAL,Peoples Services,Nursing Care - Ext Provider,A56025
London Borough of Sutton,12/05/2023,50354495,-836.76,Cross Care Services Ltd,SOCIAL SERVICES RESIDENTIAL,Peoples Services,Nursing Care - 3rd party top up payment,A56023
London Borough of Sutton,12/05/2023,50354495,"4,321.24",Cross Care Services Ltd,SOCIAL SERVICES RESIDENTIAL,Peoples Services,Nursing Care Short Term,A56026
London Borough of Sutton,12/05/2023,50354533,"-2,183.57",Cross Care Services Ltd,SOCIAL SERVICES RESIDENTIAL,Peoples Services,Nursing Care - Ext Provider,A56025
London Borough of Sutton,12/05/2023,50354533,508.03,Cross Care Services Ltd,SOCIAL SERVICES RESIDENTIAL,Peoples Services,Nursing Care - 3rd party top up payment,A56023
London Borough of Sutton,29/03/2023,20047715,"11,736.43",London Borough of Croydon,CENTRAL & LOCAL GOVERNMENT,Peoples Services,Payments to Other Local Authorities,A51005
London Borough of Sutton,30/04/2023,20048661,"1,155.00",Croydon Court Ltd,ACCOMMODATION BED & BREAKFAST,Peoples Services,Temporary Residential Accommodation,A44140
London Borough of Sutton,30/04/2023,20048664,"10,245.00",Croydon Court Ltd,ACCOMMODATION BED & BREAKFAST,Environment Housing and Neighbourhoods,Bed & Breakfast,A56000
London Borough of Sutton,24/04/2023,20048093,"10,000.00",Croydon Savers Credit Union Ltd,GRANTS & EX GRATIA PAYMENTS,Resources,Payments to Other Local Authorities,A51005
London Borough of Sutton,11/05/2023,50350826,912.60,Crystal Lawlee,GRANTS & EX GRATIA PAYMENTS,Peoples Services,Payment - Nursery Funding,A51056
London Borough of Sutton,12/05/2023,50354106,"8,118.44",CSS Ltd,SOCIAL SERVICES RESIDENTIAL,Peoples Services,Residential Care - Ext Provider,A56114
London Borough of Sutton,18/05/2023,50355627,683.76,CSS Ltd,SOCIAL SERVICES RESIDENTIAL,Peoples Services,Day Care Services,A56021
London Borough of Sutton,04/05/2023,20048672,545.30,Cubiquity Limited,OFFICE SERVICES,Resources,Printing,A43010
London Borough of Sutton,11/05/2023,50350446,"179,114.27",Culvers House Primary School,GRANTS & EX GRATIA PAYMENTS,Peoples Services,Payments to Schools,A51013
London Borough of Sutton,11/05/2023,50350498,"10,134.00",Culvers House Primary School,GRANTS & EX GRATIA PAYMENTS,Peoples Services,Place Funding,A56110
London Borough of Sutton,11/05/2023,50350536,"4,560.00",Culvers House Primary School,GRANTS & EX GRATIA PAYMENTS,Resources,"Grants, Contributions & Donations",A47005
London Borough of Sutton,11/05/2023,50350609,"30,800.00",Culvers House Primary School,GRANTS & EX GRATIA PAYMENTS,Peoples Services,Other payments to schools,A51023
London Borough of Sutton,05/05/2023,50352335,"1,000.00",Curado Limited,GRANTS & EX GRATIA PAYMENTS,Peoples Services,Interim Placements - Ext Provider,A56102
London Borough of Sutton,05/05/2023,50352336,"1,000.00",Curado Limited,GRANTS & EX GRATIA PAYMENTS,Peoples Services,Interim Placements - Ext Provider,A56102
London Borough of Sutton,12/05/2023,50354006,"-1,371.43",Curado Limited,GRANTS & EX GRATIA PAYMENTS,Peoples Services,Residential Care - Ext Provider,A56114
London Borough of Sutton,12/05/2023,50354092,"4,800.00",Curado Limited,GRANTS & EX GRATIA PAYMENTS,Peoples Services,Interim Placements - Ext Provider,A56102
London Borough of Sutton,12/05/2023,50354147,"6,400.00",Curado Limited,GRANTS & EX GRATIA PAYMENTS,Peoples Services,Residential Care - Ext Provider,A56114
London Borough of Sutton,19/05/2023,50355538,"1,992.86",Curado Limited,GRANTS & EX GRATIA PAYMENTS,Peoples Services,Supported Living,A56088
London Borough of Sutton,30/05/2023,50355976,567.74,REDACTED - PERSONAL DATA,CHILDREN'S SERVICES - FOSTERING & ADOPTION SERVICES,Peoples Services,Holiday Allowances,A56013
London Borough of Sutton,28/03/2023,20048310,600.00,Dariba Design Limited,CONSULTING ARCHITECTS ENGINEER,Environment Housing and Neighbourhoods,Grants Given For Capital Purposes,C20004
London Borough of Sutton,01/05/2023,20048337,785.73,Angel Lettings,ACCOMMODATION BED & BREAKFAST,Environment Housing and Neighbourhoods,Temporary Protection - Homeless Persons,A62028
London Borough of Sutton,01/05/2023,20048336,989.43,Angel Lettings,ACCOMMODATION BED & BREAKFAST,Environment Housing and Neighbourhoods,Temporary Protection - Homeless Persons,A62028
London Borough of Sutton,01/05/2023,20048460,"1,209.00",REDACTED - PERSONAL DATA,GRANTS & EX GRATIA PAYMENTS,Environment Housing and Neighbourhoods,Temporary Protection - Homeless Persons,A62028
London Borough of Sutton,02/05/2023,20048449,594.00,Pathway Analytics,TEMP STAFF & CONSULTANCY,Health and Wellbeing,Provider Contract Payments,A44290
London Borough of Sutton,30/05/2023,50355971,567.74,REDACTED - PERSONAL DATA,CHILDREN'S SERVICES - FOSTERING & ADOPTION SERVICES,Peoples Services,Holiday Allowances,A56013
London Borough of Sutton,30/04/2023,20048588,"2,010.00",Dellhome Limited,ACCOMMODATION BED & BREAKFAST,Environment Housing and Neighbourhoods,Bed & Breakfast,A56000
London Borough of Sutton,30/04/2023,20048589,"1,350.00",Dellhome Limited,ACCOMMODATION BED & BREAKFAST,Environment Housing and Neighbourhoods,Bed & Breakfast,A56000
London Borough of Sutton,30/04/2023,20048590,"1,800.00",Dellhome Limited,ACCOMMODATION BED & BREAKFAST,Environment Housing and Neighbourhoods,Bed & Breakfast,A56000
London Borough of Sutton,30/04/2023,20048591,540.00,Dellhome Limited,ACCOMMODATION BED & BREAKFAST,Environment Housing and Neighbourhoods,Bed & Breakfast,A56000
London Borough of Sutton,30/04/2023,20048592,"1,605.00",Dellhome Limited,ACCOMMODATION BED & BREAKFAST,Environment Housing and Neighbourhoods,Bed & Breakfast,A56000
London Borough of Sutton,30/04/2023,20048593,"1,350.00",Dellhome Limited,ACCOMMODATION BED & BREAKFAST,Environment Housing and Neighbourhoods,Bed & Breakfast,A56000
London Borough of Sutton,30/04/2023,20048594,"1,350.00",Dellhome Limited,ACCOMMODATION BED & BREAKFAST,Environment Housing and Neighbourhoods,Bed & Breakfast,A56000
London Borough of Sutton,30/04/2023,20048595,"1,260.00",Dellhome Limited,ACCOMMODATION BED & BREAKFAST,Environment Housing and Neighbourhoods,Bed & Breakfast,A56000
London Borough of Sutton,30/04/2023,20048596,"1,350.00",Dellhome Limited,ACCOMMODATION BED & BREAKFAST,Environment Housing and Neighbourhoods,Bed & Breakfast,A56000
London Borough of Sutton,01/05/2023,20048598,"33,585.00",Delta Wise Limited,ACCOMMODATION BED & BREAKFAST,Environment Housing and Neighbourhoods,Bed & Breakfast,A56000
London Borough of Sutton,09/05/2023,20048756,-503.78,Delta Wise Limited,ACCOMMODATION BED & BREAKFAST,Resources,Fees And Charges (VATable),A92310
London Borough of Sutton,23/05/2023,20050150,"1,110.00",Denhan Property Services,ACCOMMODATION BED & BREAKFAST,Environment Housing and Neighbourhoods,Bed & Breakfast,A56000
London Borough of Sutton,20/04/2023,20050151,"1,080.00",Denhan Property Services,ACCOMMODATION BED & BREAKFAST,Environment Housing and Neighbourhoods,Bed & Breakfast,A56000
London Borough of Sutton,23/05/2023,20050152,"1,867.50",Denhan Property Services,ACCOMMODATION BED & BREAKFAST,Environment Housing and Neighbourhoods,Bed & Breakfast,A56000
London Borough of Sutton,23/05/2023,20050153,999.00,Denhan Property Services,ACCOMMODATION BED & BREAKFAST,Environment Housing and Neighbourhoods,Bed & Breakfast,A56000
London Borough of Sutton,23/05/2023,20050155,"1,110.00",Denhan Property Services,ACCOMMODATION BED & BREAKFAST,Environment Housing and Neighbourhoods,Bed & Breakfast,A56000
London Borough of Sutton,16/04/2023,20050156,"1,080.00",Denhan Property Services,ACCOMMODATION BED & BREAKFAST,Environment Housing and Neighbourhoods,Bed & Breakfast,A56000
London Borough of Sutton,23/05/2023,20050157,"1,950.00",Denhan Property Services,ACCOMMODATION BED & BREAKFAST,Environment Housing and Neighbourhoods,Bed & Breakfast,A56000
London Borough of Sutton,23/05/2023,20050158,"1,560.00",Denhan Property Services,ACCOMMODATION BED & BREAKFAST,Environment Housing and Neighbourhoods,Bed & Breakfast,A56000
London Borough of Sutton,20/04/2023,20050159,"2,010.00",Denhan Property Services,ACCOMMODATION BED & BREAKFAST,Environment Housing and Neighbourhoods,Bed & Breakfast,A56000
London Borough of Sutton,12/05/2023,50353999,"3,505.00",Denville Hall 2012,SOCIAL SERVICES RESIDENTIAL,Peoples Services,Residential Care - Ext Provider,A56114
London Borough of Sutton,12/05/2023,50354119,"3,175.04",Devaglade Trading Limited,SOCIAL SERVICES RESIDENTIAL,Peoples Services,Residential Care - Ext Provider,A56114
London Borough of Sutton,11/05/2023,50350439,"262,600.44",Devonshire Primary School,GRANTS & EX GRATIA PAYMENTS,Peoples Services,Payments to Schools,A51013
London Borough of Sutton,11/05/2023,50350499,"10,848.60",Devonshire Primary School,GRANTS & EX GRATIA PAYMENTS,Peoples Services,Place Funding,A56110
London Borough of Sutton,11/05/2023,50350537,"6,060.00",Devonshire Primary School,GRANTS & EX GRATIA PAYMENTS,Resources,"Grants, Contributions & Donations",A47005
London Borough of Sutton,11/05/2023,50350602,"46,019.00",Devonshire Primary School,GRANTS & EX GRATIA PAYMENTS,Peoples Services,Other payments to schools,A51023
London Borough of Sutton,18/08/2022,50352301,"3,700.72",Direct Care And Support Services,ACCOMMODATION - OTHER,Peoples Services,Supported Living,A56088
London Borough of Sutton,18/08/2022,50352301,"1,307.32",Direct Care And Support Services,ACCOMMODATION - OTHER,Peoples Services,Supported Living,A56088
London Borough of Sutton,18/08/2022,50352301,553.76,Direct Care And Support Services,ACCOMMODATION - OTHER,Peoples Services,Supported Living,A56088
London Borough of Sutton,15/09/2022,50352302,"3,700.72",Direct Care And Support Services,ACCOMMODATION - OTHER,Peoples Services,Supported Living,A56088
London Borough of Sutton,15/09/2022,50352302,"1,307.32",Direct Care And Support Services,ACCOMMODATION - OTHER,Peoples Services,Supported Living,A56088
London Borough of Sutton,15/09/2022,50352302,553.76,Direct Care And Support Services,ACCOMMODATION - OTHER,Peoples Services,Supported Living,A56088
London Borough of Sutton,03/10/2022,50352303,"3,700.72",Direct Care And Support Services,ACCOMMODATION - OTHER,Peoples Services,Supported Living,A56088
London Borough of Sutton,03/10/2022,50352303,"1,307.32",Direct Care And Support Services,ACCOMMODATION - OTHER,Peoples Services,Supported Living,A56088
London Borough of Sutton,03/10/2022,50352303,553.76,Direct Care And Support Services,ACCOMMODATION - OTHER,Peoples Services,Supported Living,A56088
London Borough of Sutton,31/01/2023,50352305,"3,700.72",Direct Care And Support Services,ACCOMMODATION - OTHER,Peoples Services,Supported Living,A56088
London Borough of Sutton,31/01/2023,50352305,"1,307.32",Direct Care And Support Services,ACCOMMODATION - OTHER,Peoples Services,Supported Living,A56088
London Borough of Sutton,31/01/2023,50352305,553.76,Direct Care And Support Services,ACCOMMODATION - OTHER,Peoples Services,Supported Living,A56088
London Borough of Sutton,03/10/2022,50352306,"3,700.72",Direct Care And Support Services,ACCOMMODATION - OTHER,Peoples Services,Supported Living,A56088
London Borough of Sutton,03/10/2022,50352306,"1,307.32",Direct Care And Support Services,ACCOMMODATION - OTHER,Peoples Services,Supported Living,A56088
London Borough of Sutton,03/10/2022,50352306,553.76,Direct Care And Support Services,ACCOMMODATION - OTHER,Peoples Services,Supported Living,A56088
London Borough of Sutton,12/07/2022,50352307,"3,700.72",Direct Care And Support Services,ACCOMMODATION - OTHER,Peoples Services,Supported Living,A56088
London Borough of Sutton,12/07/2022,50352307,"1,307.32",Direct Care And Support Services,ACCOMMODATION - OTHER,Peoples Services,Supported Living,A56088
London Borough of Sutton,12/07/2022,50352307,553.76,Direct Care And Support Services,ACCOMMODATION - OTHER,Peoples Services,Supported Living,A56088
London Borough of Sutton,10/05/2022,50352308,"4,154.16",Direct Care And Support Services,ACCOMMODATION - OTHER,Peoples Services,Supported Living,A56088
London Borough of Sutton,10/05/2022,50352308,980.49,Direct Care And Support Services,ACCOMMODATION - OTHER,Peoples Services,Supported Living,A56088
London Borough of Sutton,10/05/2022,50352308,415.32,Direct Care And Support Services,ACCOMMODATION - OTHER,Peoples Services,Supported Living,A56088
London Borough of Sutton,01/12/2022,50352310,"5,561.80",Direct Care And Support Services,ACCOMMODATION - OTHER,Peoples Services,Supported Living,A56088
London Borough of Sutton,06/05/2023,50352311,"1,626.80",Direct Care And Support Services,ACCOMMODATION - OTHER,Peoples Services,Supported Living,A56088
London Borough of Sutton,06/05/2023,50352311,"3,935.00",Direct Care And Support Services,ACCOMMODATION - OTHER,Peoples Services,Supported Living,A56088
London Borough of Sutton,25/01/2023,50352312,"3,700.72",Direct Care And Support Services,ACCOMMODATION - OTHER,Peoples Services,Supported Living,A56088
London Borough of Sutton,25/01/2023,50352312,"1,307.32",Direct Care And Support Services,ACCOMMODATION - OTHER,Peoples Services,Supported Living,A56088
London Borough of Sutton,25/01/2023,50352312,553.76,Direct Care And Support Services,ACCOMMODATION - OTHER,Peoples Services,Supported Living,A56088
London Borough of Sutton,06/05/2023,50352313,"3,204.60",Direct Care And Support Services,ACCOMMODATION - OTHER,Peoples Services,Supported Living,A56088
London Borough of Sutton,06/05/2023,50352313,"2,357.20",Direct Care And Support Services,ACCOMMODATION - OTHER,Peoples Services,Supported Living,A56088
London Borough of Sutton,06/05/2023,50352314,"1,626.80",Direct Care And Support Services,ACCOMMODATION - OTHER,Peoples Services,Supported Living,A56088
London Borough of Sutton,06/05/2023,50352314,"3,935.00",Direct Care And Support Services,ACCOMMODATION - OTHER,Peoples Services,Supported Living,A56088
London Borough of Sutton,06/05/2023,50355626,"3,935.00",Direct Care And Support Services,ACCOMMODATION - OTHER,Peoples Services,Supported Living,A56088
London Borough of Sutton,06/05/2023,50355626,"1,626.80",Direct Care And Support Services,ACCOMMODATION - OTHER,Peoples Services,Supported Living,A56088
London Borough of Sutton,28/04/2023,20048342,"1,808.80",DMA Signs Limited,AGRICULTURAL & ESTATE SERVICES,Resources,Payments to Contractors,C14000
London Borough of Sutton,28/04/2023,20048344,"2,552.06",DMA Signs Limited,AGRICULTURAL & ESTATE SERVICES,Resources,Payments to Contractors,C14000
London Borough of Sutton,27/04/2023,20048827,938.34,REDACTED - PERSONAL DATA,PLS LANDLORDS,Environment Housing and Neighbourhoods,Temporary Protection - Homeless Persons,A62028
London Borough of Sutton,11/05/2023,50350769,912.60,REDACTED - PERSONAL DATA,GRANTS & EX GRATIA PAYMENTS,Peoples Services,Payment - Nursery Funding,A51056
London Borough of Sutton,11/05/2023,50350441,"203,667.51",Dorchester Primary School,GRANTS & EX GRATIA PAYMENTS,Peoples Services,Payments to Schools,A51013
London Borough of Sutton,11/05/2023,50350500,"16,140.60",Dorchester Primary School,GRANTS & EX GRATIA PAYMENTS,Peoples Services,Place Funding,A56110
London Borough of Sutton,11/05/2023,50350538,"3,150.00",Dorchester Primary School,GRANTS & EX GRATIA PAYMENTS,Resources,"Grants, Contributions & Donations",A47005
London Borough of Sutton,11/05/2023,50350604,"34,940.00",Dorchester Primary School,GRANTS & EX GRATIA PAYMENTS,Peoples Services,Other payments to schools,A51023
London Borough of Sutton,09/05/2023,50352094,"2,051.30",Dorchester Primary School,GRANTS & EX GRATIA PAYMENTS,Peoples Services,Top-up Funding,A51016
London Borough of Sutton,28/04/2023,20048343,"1,096.98",REDACTED - PERSONAL DATA,GRANTS & EX GRATIA PAYMENTS,Environment Housing and Neighbourhoods,Temporary Protection - Homeless Persons,A62028
London Borough of Sutton,30/03/2023,20048397,"1,096.98",REDACTED - PERSONAL DATA,GRANTS & EX GRATIA PAYMENTS,Environment Housing and Neighbourhoods,Temporary Protection - Homeless Persons,A62028
London Borough of Sutton,04/04/2023,20048435,"1,120.00",REDACTED - PERSONAL DATA,TCES RETAILERS (PHARMACYS),Health and Wellbeing,Provider Contract Payments,A44290
London Borough of Sutton,08/05/2023,20048734,709.00,REDACTED - PERSONAL DATA,"SOCIAL SERVICES - DOLS, GUM & BIA ASSESSMENTS",Peoples Services,Client Related Assessments,A56017
London Borough of Sutton,04/05/2023,50351166,"3,214.24",Dreamfo Housing Ltd,CHILDREN'S SERVICE - OTHER,Peoples Services,Approved Lodgings,A61000
London Borough of Sutton,04/05/2023,50351166,267.86,Dreamfo Housing Ltd,CHILDREN'S SERVICE - OTHER,Peoples Services,Approved Lodgings,A61000
London Borough of Sutton,30/03/2023,20048581,"2,400.00",DSA Engineering Limited,TEMP STAFF & CONSULTANCY,HRA,Payments to Contractors,C14000
London Borough of Sutton,01/04/2023,20048398,"2,028.56",Dunfield & Mead Ltd,CHILDREN'S SERVICES - RESIDENTIAL,Peoples Services,Approved Lodgings,A61000
London Borough of Sutton,01/05/2023,20048736,"3,930.35",Dunfield & Mead Ltd,CHILDREN'S SERVICES - RESIDENTIAL,Peoples Services,Approved Lodgings,A61000
London Borough of Sutton,01/05/2023,20048737,"1,335.71",Dunfield & Mead Ltd,CHILDREN'S SERVICES - RESIDENTIAL,Peoples Services,Approved Lodgings,A61000
London Borough of Sutton,01/05/2023,20048738,"3,203.57",Dunfield & Mead Ltd,CHILDREN'S SERVICES - RESIDENTIAL,Peoples Services,Approved Lodgings,A61000
London Borough of Sutton,01/05/2023,20048739,"1,771.42",Dunfield & Mead Ltd,CHILDREN'S SERVICES - RESIDENTIAL,Peoples Services,Approved Lodgings,A61000
London Borough of Sutton,01/05/2023,20048741,"1,542.85",Dunfield & Mead Ltd,CHILDREN'S SERVICES - RESIDENTIAL,Peoples Services,Approved Lodgings,A61000
London Borough of Sutton,01/05/2023,20048742,"1,667.85",Dunfield & Mead Ltd,CHILDREN'S SERVICES - RESIDENTIAL,Peoples Services,Approved Lodgings,A61000
London Borough of Sutton,01/05/2023,20048743,"2,269.64",Dunfield & Mead Ltd,CHILDREN'S SERVICES - RESIDENTIAL,Peoples Services,Approved Lodgings,A61000
London Borough of Sutton,01/05/2023,20048744,"3,930.35",Dunfield & Mead Ltd,CHILDREN'S SERVICES - RESIDENTIAL,Peoples Services,Approved Lodgings,A61000
London Borough of Sutton,01/05/2023,20048745,"2,778.57",Dunfield & Mead Ltd,CHILDREN'S SERVICES - RESIDENTIAL,Peoples Services,C.C.A Travel & Subsistance,A61010
London Borough of Sutton,01/04/2023,50351152,"4,178.56",Dunfield & Mead Ltd,CHILDREN'S SERVICES - RESIDENTIAL,Peoples Services,Accommodation - Supported Living,A62001
London Borough of Sutton,01/04/2023,50351152,267.86,Dunfield & Mead Ltd,CHILDREN'S SERVICES - RESIDENTIAL,Peoples Services,Accommodation - Supported Living,A62001
London Borough of Sutton,01/04/2023,50351153,"3,535.70",Dunfield & Mead Ltd,CHILDREN'S SERVICES - RESIDENTIAL,Peoples Services,Approved Lodgings,A61000
London Borough of Sutton,01/04/2023,50351153,267.86,Dunfield & Mead Ltd,CHILDREN'S SERVICES - RESIDENTIAL,Peoples Services,Approved Lodgings,A61000
London Borough of Sutton,01/04/2023,50351154,"1,775.00",Dunfield & Mead Ltd,CHILDREN'S SERVICES - RESIDENTIAL,Peoples Services,Accommodation - Supported Living,A62001
London Borough of Sutton,30/04/2023,20048659,"7,380.00",Dunheved Hotel Ltd,ACCOMMODATION BED & BREAKFAST,Environment Housing and Neighbourhoods,Bed & Breakfast,A56000
London Borough of Sutton,12/05/2023,50354077,"3,016.00",Dunheved Lodge,SOCIAL SERVICES RESIDENTIAL,Peoples Services,One to One Care,A56108
London Borough of Sutton,12/05/2023,50354077,"3,187.44",Dunheved Lodge,SOCIAL SERVICES RESIDENTIAL,Peoples Services,Residential Care - Ext Provider,A56114
London Borough of Sutton,24/02/2023,50355742,"1,050.00",DWT Windows & Doors,CONSTRUCTION INDUSTRY,HRA,Payments to Contractors,C14000
London Borough of Sutton,30/04/2023,50351104,267.86,Dynamic Care Ltd,SOCIAL SERVICES RESIDENTIAL,Peoples Services,Approved Lodgings,A61000
London Borough of Sutton,30/04/2023,50351104,"5,035.70",Dynamic Care Ltd,SOCIAL SERVICES RESIDENTIAL,Peoples Services,Accommodation - Supported Living,A62001
London Borough of Sutton,30/04/2023,20048450,"24,942.00",E Homes And Shelters,ACCOMMODATION BED & BREAKFAST,Environment Housing and Neighbourhoods,Bed & Breakfast,A56000
London Borough of Sutton,03/05/2023,20048678,659.00,Earth Anchors Ltd,REFUSE COLLECTION / DISPOSAL,Environment Housing and Neighbourhoods,Furniture - Purchase,A40015
London Borough of Sutton,30/03/2023,50352120,"1,980.00",East Surrey Tutors Limited,CHILDREN'S SERVICES - SEN SERVICES,Peoples Services,Independent School Fees,A56002
London Borough of Sutton,17/05/2023,50354586,"2,200.00",East Surrey Tutors Limited,CHILDREN'S SERVICES - SEN SERVICES,Peoples Services,Independent School Fees,A56002
London Borough of Sutton,12/05/2023,50354171,-952.23,Eastcroft Nursing Home,SOCIAL SERVICES RESIDENTIAL,Peoples Services,Nursing Care - 3rd party top up payment,A56023
London Borough of Sutton,12/05/2023,50354171,"4,237.77",Eastcroft Nursing Home,SOCIAL SERVICES RESIDENTIAL,Peoples Services,Nursing Care - Ext Provider,A56025
London Borough of Sutton,12/05/2023,50354245,-836.76,Eastcroft Nursing Home,SOCIAL SERVICES RESIDENTIAL,Peoples Services,Nursing Care - 3rd party top up payment,A56023
London Borough of Sutton,12/05/2023,50354245,"4,052.76",Eastcroft Nursing Home,SOCIAL SERVICES RESIDENTIAL,Peoples Services,Nursing Care Short Term,A56026
London Borough of Sutton,12/05/2023,50354293,-836.76,Eastcroft Nursing Home,SOCIAL SERVICES RESIDENTIAL,Peoples Services,Nursing Care - 3rd party top up payment,A56023
London Borough of Sutton,12/05/2023,50354293,"3,821.24",Eastcroft Nursing Home,SOCIAL SERVICES RESIDENTIAL,Peoples Services,Nursing Care Short Term,A56026
London Borough of Sutton,12/05/2023,50354365,-836.76,Eastcroft Nursing Home,SOCIAL SERVICES RESIDENTIAL,Peoples Services,Nursing Care - 3rd party top up payment,A56023
London Borough of Sutton,12/05/2023,50354365,"4,321.24",Eastcroft Nursing Home,SOCIAL SERVICES RESIDENTIAL,Peoples Services,Nursing Care Short Term,A56026
London Borough of Sutton,12/05/2023,50354369,-836.76,Eastcroft Nursing Home,SOCIAL SERVICES RESIDENTIAL,Peoples Services,Nursing Care - 3rd party top up payment,A56023
London Borough of Sutton,12/05/2023,50354369,"3,821.24",Eastcroft Nursing Home,SOCIAL SERVICES RESIDENTIAL,Peoples Services,Nursing Care Short Term,A56026
London Borough of Sutton,12/05/2023,50354391,-298.84,Eastcroft Nursing Home,SOCIAL SERVICES RESIDENTIAL,Peoples Services,Nursing Care - 3rd party top up payment,A56023
London Borough of Sutton,12/05/2023,50354391,"1,864.73",Eastcroft Nursing Home,SOCIAL SERVICES RESIDENTIAL,Peoples Services,Nursing Care Short Term,A56026
London Borough of Sutton,12/05/2023,50354416,"4,302.54",Eastcroft Nursing Home,SOCIAL SERVICES RESIDENTIAL,Peoples Services,Nursing Care - Ext Provider,A56025
London Borough of Sutton,12/05/2023,50354416,-925.43,Eastcroft Nursing Home,SOCIAL SERVICES RESIDENTIAL,Peoples Services,Nursing Care - 3rd party top up payment,A56023
London Borough of Sutton,12/05/2023,50354439,"3,821.24",Eastcroft Nursing Home,SOCIAL SERVICES RESIDENTIAL,Peoples Services,Nursing Care Short Term,A56026
London Borough of Sutton,12/05/2023,50354449,"4,302.54",Eastcroft Nursing Home,SOCIAL SERVICES RESIDENTIAL,Peoples Services,Nursing Care - Ext Provider,A56025
London Borough of Sutton,12/05/2023,50354449,-952.23,Eastcroft Nursing Home,SOCIAL SERVICES RESIDENTIAL,Peoples Services,Nursing Care - 3rd party top up payment,A56023
London Borough of Sutton,12/05/2023,50354486,"4,321.24",Eastcroft Nursing Home,SOCIAL SERVICES RESIDENTIAL,Peoples Services,Respite Care,A56116
London Borough of Sutton,12/05/2023,50354486,-836.76,Eastcroft Nursing Home,SOCIAL SERVICES RESIDENTIAL,Peoples Services,Nursing Care - 3rd party top up payment,A56023
London Borough of Sutton,24/04/2023,20049041,-350.00,EDF Energy ,UTILITIES,HRA,Electricity,A21000
London Borough of Sutton,24/04/2023,20049041,"1,089.48",EDF Energy ,UTILITIES,HRA,Electricity,A21000
London Borough of Sutton,31/03/2023,20049049,"2,028.22",EDF Energy ,UTILITIES,HRA,Electricity,A21000
London Borough of Sutton,31/03/2023,20049049,"-3,160.93",EDF Energy ,UTILITIES,HRA,Electricity,A21000
London Borough of Sutton,02/05/2023,20049073,928.20,EDF Energy ,UTILITIES,Environment Housing and Neighbourhoods,Electricity,A21000
London Borough of Sutton,02/02/2023,20049542,"7,995.19",EDF Energy ,UTILITIES,Resources,Electricity,A21000
London Borough of Sutton,02/03/2023,20049543,"6,955.89",EDF Energy ,UTILITIES,Resources,Electricity,A21000
London Borough of Sutton,03/03/2023,20049723,"2,093.68",EDF Energy ,UTILITIES,Environment Housing and Neighbourhoods,Electricity,A21000
London Borough of Sutton,03/05/2023,20049725,"7,914.89",EDF Energy ,UTILITIES,Resources,Electricity,A21000
London Borough of Sutton,04/04/2023,20049729,"6,951.35",EDF Energy ,UTILITIES,Resources,Electricity,A21000
London Borough of Sutton,26/05/2023,50358654,552.90,REDACTED - PERSONAL DATA,SUNDRY SUPPLIER - EDUCATION,Peoples Services,Miscellaneous Expenses,A49000
London Borough of Sutton,16/04/2023,50356768,"20,588.00",EK OUTREACH SERVICES LTD,CHILDREN'S SERVICES - SEN SERVICES,Peoples Services,Independent School Fees,A56002
London Borough of Sutton,23/02/2023,50356779,"5,064.00",EK OUTREACH SERVICES LTD,CHILDREN'S SERVICES - SEN SERVICES,Peoples Services,Independent School Fees,A56002
London Borough of Sutton,11/05/2023,50350642,"1,514.70",REDACTED - PERSONAL DATA,GRANTS & EX GRATIA PAYMENTS,Peoples Services,Payment - Nursery Funding,A51056
London Borough of Sutton,26/05/2023,50358617,982.80,REDACTED - PERSONAL DATA,SUNDRY SUPPLIER - EDUCATION,Peoples Services,Miscellaneous Expenses,A49000
London Borough of Sutton,02/05/2023,20048441,"2,632.00",Elite Guarding (UK) Ltd,GRANTS & EX GRATIA PAYMENTS,HRA,Payments to Contractors,C14000
London Borough of Sutton,11/05/2023,20049426,"2,340.00",Sassy Box Ltd,CHILDREN'S SERVICE - OTHER,Resources,Other Supplies & Services,A44291
London Borough of Sutton,18/05/2023,50356765,680.00,REDACTED - PERSONAL DATA,CHILDREN'S SERVICES - SEN SERVICES,Peoples Services,Special Educational Needs,A51015
London Borough of Sutton,12/05/2023,50353992,"9,101.84",Elysium Healthcare Ltd,CHILDREN'S SERVICES - FOSTERING & ADOPTION SERVICES,Peoples Services,Residential Care - Ext Provider,A56114
London Borough of Sutton,12/05/2023,50354098,"7,668.40",Elysium Supported Living Limited,SOCIAL SERVICES RESIDENTIAL,Peoples Services,Residential Care - Ext Provider,A56114
London Borough of Sutton,12/05/2023,50354029,"13,924.00",Emas Ltd,SOCIAL SERVICES RESIDENTIAL,Peoples Services,Interim Placements - Ext Provider,A56102
London Borough of Sutton,11/05/2023,50350710,757.35,REDACTED - PERSONAL DATA,SOCIAL SERVICES - DIRECT PAYMENTS,Peoples Services,Payment - Nursery Funding,A51056
London Borough of Sutton,02/05/2023,50352063,"21,615.00",EMPOWER KNOWLEDGE LIMITED,CHILDREN'S SERVICES - SEN SERVICES,Peoples Services,Independent School Fees,A56002
London Borough of Sutton,14/05/2023,50354579,"20,707.50",EMPOWER KNOWLEDGE LIMITED,CHILDREN'S SERVICES - SEN SERVICES,Peoples Services,Independent School Fees,A56002
London Borough of Sutton,25/05/2023,50359428,566.00,ENA Hourly Care Limited,SOCIAL SERVICES-HOME CARE,Peoples Services,Home Care Services,A56019
London Borough of Sutton,19/05/2023,50355535,"3,764.29",Enriched Care Ltd,CHILDREN'S SERVICES - RESIDENTIAL,Peoples Services,Supported Living,A56088
London Borough of Sutton,12/12/2022,20049213,"3,357.08",E-on Energy,UTILITIES,Resources,Gas,A21003
London Borough of Sutton,23/03/2023,20047782,"11,263.54",Epsom & St Helier Nhs Trust,OFFICE SERVICES,Peoples Services,Agency Staff - Other,A10505
London Borough of Sutton,24/03/2023,20048305,"19,552.00",Epsom & St Helier Nhs Trust,OFFICE SERVICES,Peoples Services,Agency Staff - Other,A10505
London Borough of Sutton,18/11/2022,20048393,"29,500.00",Epsom & St Helier Nhs Trust,OFFICE SERVICES,Environment Housing and Neighbourhoods,Mortuary,A56079
London Borough of Sutton,11/05/2023,50350754,"21,794.85",Epsom & St Helier Nhs Trust,OFFICE SERVICES,Peoples Services,Payment - Nursery Funding,A51056
London Borough of Sutton,30/05/2023,50359523,"2,000.00",Epsom & St Helier Nhs Trust,OFFICE SERVICES,Peoples Services,Predictable Needs funding,A56125
London Borough of Sutton,12/05/2023,50354132,"4,276.00",Equinox Care,SOCIAL SERVICES RESIDENTIAL,Peoples Services,Interim Placements - Ext Provider,A56102
London Borough of Sutton,23/04/2023,50349036,"1,008.00",Escoben Care Services Ltd,SOCIAL SERVICES RESIDENTIAL,Peoples Services,Home Care Services,A56019
London Borough of Sutton,23/04/2023,50349047,797.90,Escoben Care Services Ltd,SOCIAL SERVICES RESIDENTIAL,Peoples Services,Home Care Services,A56019
London Borough of Sutton,23/04/2023,50349137,506.95,Escoben Care Services Ltd,SOCIAL SERVICES RESIDENTIAL,Peoples Services,Home Care Services,A56019
London Borough of Sutton,30/04/2023,50351377,"1,008.00",Escoben Care Services Ltd,SOCIAL SERVICES RESIDENTIAL,Peoples Services,Home Care Services,A56019
London Borough of Sutton,30/04/2023,50351380,797.90,Escoben Care Services Ltd,SOCIAL SERVICES RESIDENTIAL,Peoples Services,Home Care Services,A56019
London Borough of Sutton,30/04/2023,50351428,506.95,Escoben Care Services Ltd,SOCIAL SERVICES RESIDENTIAL,Peoples Services,Home Care Services,A56019
London Borough of Sutton,30/04/2023,50351429,631.97,Escoben Care Services Ltd,SOCIAL SERVICES RESIDENTIAL,Peoples Services,Home Care Services,A56019
London Borough of Sutton,30/04/2023,50351436,702.00,Escoben Care Services Ltd,SOCIAL SERVICES RESIDENTIAL,Peoples Services,Home Care Services,A56019
London Borough of Sutton,24/04/2023,50352319,702.00,Escoben Care Services Ltd,SOCIAL SERVICES RESIDENTIAL,Peoples Services,Home Care Services,A56019
London Borough of Sutton,10/05/2023,50352320,747.00,Escoben Care Services Ltd,SOCIAL SERVICES RESIDENTIAL,Peoples Services,Home Care Services,A56019
London Borough of Sutton,10/05/2023,50352322,702.00,Escoben Care Services Ltd,SOCIAL SERVICES RESIDENTIAL,Peoples Services,Home Care Services,A56019
London Borough of Sutton,07/05/2023,50353558,539.96,Escoben Care Services Ltd,SOCIAL SERVICES RESIDENTIAL,Peoples Services,Home Care Services,A56019
London Borough of Sutton,07/05/2023,50353559,673.47,Escoben Care Services Ltd,SOCIAL SERVICES RESIDENTIAL,Peoples Services,Home Care Services,A56019
London Borough of Sutton,07/05/2023,50353603,747.00,Escoben Care Services Ltd,SOCIAL SERVICES RESIDENTIAL,Peoples Services,Home Care Services,A56019
London Borough of Sutton,07/05/2023,50353632,859.41,Escoben Care Services Ltd,SOCIAL SERVICES RESIDENTIAL,Peoples Services,Home Care Services,A56019
London Borough of Sutton,07/05/2023,50353655,"1,080.00",Escoben Care Services Ltd,SOCIAL SERVICES RESIDENTIAL,Peoples Services,Home Care Services,A56019
London Borough of Sutton,14/05/2023,50356266,"1,080.00",Escoben Care Services Ltd,SOCIAL SERVICES RESIDENTIAL,Peoples Services,Home Care Services,A56019
London Borough of Sutton,14/05/2023,50356267,859.41,Escoben Care Services Ltd,SOCIAL SERVICES RESIDENTIAL,Peoples Services,Home Care Services,A56019
London Borough of Sutton,14/05/2023,50356413,539.96,Escoben Care Services Ltd,SOCIAL SERVICES RESIDENTIAL,Peoples Services,Home Care Services,A56019
London Borough of Sutton,14/05/2023,50356414,18.00,Escoben Care Services Ltd,SOCIAL SERVICES RESIDENTIAL,Peoples Services,Home Care Services,A56019
London Borough of Sutton,14/05/2023,50356414,655.47,Escoben Care Services Ltd,SOCIAL SERVICES RESIDENTIAL,Peoples Services,Home Care Services,A56019
London Borough of Sutton,14/05/2023,50356434,747.00,Escoben Care Services Ltd,SOCIAL SERVICES RESIDENTIAL,Peoples Services,Home Care Services,A56019
London Borough of Sutton,21/05/2023,50359719,506.95,Escoben Care Services Ltd,SOCIAL SERVICES RESIDENTIAL,Peoples Services,Home Care Services,A56019
London Borough of Sutton,21/05/2023,50359720,17.97,Escoben Care Services Ltd,SOCIAL SERVICES RESIDENTIAL,Peoples Services,Home Care Services,A56019
London Borough of Sutton,21/05/2023,50359720,632.00,Escoben Care Services Ltd,SOCIAL SERVICES RESIDENTIAL,Peoples Services,Home Care Services,A56019
London Borough of Sutton,21/05/2023,50359727,702.00,Escoben Care Services Ltd,SOCIAL SERVICES RESIDENTIAL,Peoples Services,Home Care Services,A56019
London Borough of Sutton,21/05/2023,50359756,"1,008.00",Escoben Care Services Ltd,SOCIAL SERVICES RESIDENTIAL,Peoples Services,Home Care Services,A56019
London Borough of Sutton,21/05/2023,50359757,797.90,Escoben Care Services Ltd,SOCIAL SERVICES RESIDENTIAL,Peoples Services,Home Care Services,A56019
London Borough of Sutton,30/04/2023,50351128,"24,600.00",Esland North Ltd ,CHILDREN'S SERVICES - RESIDENTIAL,Peoples Services,Residential Care-Children,A56115
London Borough of Sutton,05/04/2023,50351106,"13,897.16",Ethelbert Specialist Homes Ltd,CHILDREN'S SERVICES - RESIDENTIAL,Peoples Services,Residential Care-Children,A56115
London Borough of Sutton,05/04/2023,50351112,"3,795.86",Ethelbert Specialist Homes Ltd,CHILDREN'S SERVICES - RESIDENTIAL,Peoples Services,Foster Parents Support,A44110
London Borough of Sutton,05/04/2023,50351125,"3,795.86",Ethelbert Specialist Homes Ltd,CHILDREN'S SERVICES - RESIDENTIAL,Peoples Services,Foster Parents Support,A44110
London Borough of Sutton,05/04/2023,50351126,"4,205.49",Ethelbert Specialist Homes Ltd,CHILDREN'S SERVICES - RESIDENTIAL,Peoples Services,Foster Parents Support,A44110
